Local authority department which incurred the expenditure,Service Division,Cost Centre,Summary of the Purpose of Expenditure,Expense Type,Expense Code,Detailed Expense Type,Date of Transaction,Transaction Number,Beneficiary,Merchant Category Number,Merchant Category,Gross Amount,VAT,Net Amount
Resources BK0010,Digital and Customer Services,065481,Technical Services 065481,Supplies and Services,372009,Subscriptions E372,01-Nov-2021,000007770183732,WEB NETWORKSOLUTIONS,5968,Subscriptions 372009,0.91,0.00,0.91
Children and Young Peoples Services,Head of Early Help Inclusion & Vulnerable Children.,088115,Young Parents Programme 088115,Supplies and Services,384999,Miscellaneous Expenses,01-Nov-2021,000007770183794,Amazon.co.uk ZK3US2PC5,5969,Other expenses,26.52,4.44,22.08
Regeneration Economy and Growth,Business Durham CL0850,030689,Inward Investment and Aftercare,Supplies and Services,336005,Advertising E336,01-Nov-2021,000007776278568,LINKEDIN-719 5199954,7311,Advertising other than for staff,8.00,0.00,8.00
Dedicated Schools Grant BG0015,DSG Schools Block,110013,The Woodlands 1100 - Primary,Supplies and Services,384985,Miscellaneous Expenses,01-Nov-2021,000007776278576,ASDA GROCERIES ONLINE,5411,Miscellaneous-special facilities,83.54,0.00,83.54
Dedicated Schools Grant BG0015,DSG Schools Block,110013,The Woodlands 1100 - Primary,Supplies and Services,384985,Miscellaneous Expenses,01-Nov-2021,000007776278578,ASDA GROCERIES ONLINE,5411,Miscellaneous-special facilities,-7.56,0.00,-7.56
Children and Young Peoples Services,Head of Childrens Social Care,085341,High Etherley Satelite Home,Supplies and Services,324117,Provisions E324,01-Nov-2021,000007776278594,TESCO STORES 6329,5411,Catering costs - provisions,19.07,0.00,19.07
Children and Young Peoples Services,Head of Childrens Social Care,085332,Middlestone Moor CU,Supplies and Services,324117,Provisions E324,01-Nov-2021,000007776278600,TESCO STORES 2371,5411,Catering costs - provisions,156.24,0.00,156.24
Regeneration Economy and Growth,Culture Sport and Tourism,011263,Louisa Centre 011263,Supplies and Services,324117,Provisions E324,01-Nov-2021,000007776278614,JR HOLLAND FOODSERVICE,5499,Catering costs - provisions,-10.24,0.00,-10.24
Regeneration Economy and Growth,Corporate Property and Land,021242,Catering - County Hall,Supplies and Services,324117,Provisions E324,01-Nov-2021,000007776278640,JR HOLLAND FOODSERVICE,5499,Catering costs - provisions,103.59,0.00,103.59
Regeneration Economy and Growth,Culture Sport and Tourism,054233,Bishop Auckland Town Hall Library,Supplies and Services,324117,Provisions E324,01-Nov-2021,000007776278642,HERON FOODS,5411,Catering costs - provisions,5.67,0.00,5.67
Regeneration Economy and Growth,Culture Sport and Tourism,054233,Bishop Auckland Town Hall Library,Supplies and Services,324117,Provisions E324,01-Nov-2021,000007776278644,ASDA STORES,5411,Catering costs - provisions,77.44,0.00,77.44
Regeneration Economy and Growth,Development and Housing,030771,Durham Advance Flexible Fund,Transport,235057,Public Transport,01-Nov-2021,000007776278646,WWW.GONORTHEAST.CO.UK,4111,Staff travelling,34.00,0.00,34.00
Children and Young Peoples Services,Head of Early Help Inclusion & Vulnerable Children.,085965,Barnard,Supplies and Services,308011,Furniture,01-Nov-2021,000007776278656,WF WAYFAIR 3653091744,5712,Furniture repair and replacement,165.45,0.00,165.45
Children and Young Peoples Services,Head of Early Help Inclusion & Vulnerable Children.,085952,Secure Education,Supplies and Services,324117,Provisions E324,01-Nov-2021,000007776278658,TESCO STORES 6329,5411,Catering costs - provisions,113.27,0.00,113.27
Regeneration Economy and Growth,Corporate Property and Land,021242,Catering - County Hall,Supplies and Services,304403,Equipment and Materials,01-Nov-2021,000007776278662,AMZNMktplace,5999,Other consumables,136.79,22.80,113.99
Regeneration Economy and Growth,Corporate Property and Land,021242,Catering - County Hall,Supplies and Services,324117,Provisions E324,01-Nov-2021,000007776278664,TESCO STORES 2371,5411,Catering costs - provisions,34.78,0.00,34.78
Children and Young Peoples Services,Head of Childrens Social Care,085358,Orchard House Sacriston Solo Home,Supplies and Services,344033,Telephones,01-Nov-2021,000007776278694,giffgaff,4814,Telephones general-all costs,10.00,0.00,10.00
Children and Young Peoples Services,Head of Education and Skills,071732,Dean Bank Childcare,Supplies and Services,324117,Provisions E324,01-Nov-2021,000007776278710,ASDA GROCERIES ONLINE,5411,Catering costs - provisions,52.89,0.00,52.89
Children and Young Peoples Services,Head of Early Help Inclusion & Vulnerable Children.,085956,Lumley,Transfer Payments,515002,Social Services Clients,01-Nov-2021,000007776278726,AMZNMktplace,5999,Pocket money,6.48,0.00,6.48
Neighbourhoods and Climate Change,Environmental Services,010367,C&G - South Grounds Maintenance,Supplies and Services,304221,Equipment and Materials,01-Nov-2021,000007776278730,MKM PETERLEE,5211,Direct materials,180.08,0.00,180.08
Children and Young Peoples Services,Head of Childrens Social Care,085334,West Rainton Satelite Home,Supplies and Services,328041,Clothing uniforms and laundry E328,01-Nov-2021,000007776278734,NEW LOOK,5621,Clothing uniforms and laundry,23.99,0.00,23.99
Children and Young Peoples Services,Head of Childrens Social Care,085621,Families First Aycliffe,Supplies and Services,324117,Provisions E324,01-Nov-2021,000007776278742,ASDA STORES LTD,5411,Catering costs - provisions,101.69,0.00,101.69
Regeneration Economy and Growth,Corporate Property and Land,010525,Catering - Green Lane,Supplies and Services,324117,Provisions E324,01-Nov-2021,000007776278748,JR HOLLAND FOODSERVICE,5499,Catering costs - provisions,53.79,0.00,53.79
Children and Young Peoples Services,Head of Childrens Social Care,085333,Coxhoe Satelite Home,Supplies and Services,324117,Provisions E324,01-Nov-2021,000007776278796,TESCO STORES 6329,5411,Catering costs - provisions,50.64,0.00,50.64
Children and Young Peoples Services,Head of Childrens Social Care,085333,Coxhoe Satelite Home,Supplies and Services,324117,Provisions E324,01-Nov-2021,000007776278798,TESCO STORES 6329,5411,Catering costs - provisions,32.00,0.00,32.00
Neighbourhoods and Climate Change,Environmental Services,010367,C&G - South Grounds Maintenance,Supplies and Services,304221,Equipment and Materials,01-Nov-2021,000007776278810,WWW.TUDORENVIRONMENTAL,5261,Direct materials,102.41,0.00,102.41
Regeneration Economy and Growth,Culture Sport and Tourism,011291,Peterlee Leisure Centre,Supplies and Services,304259,Equipment and Materials,01-Nov-2021,000007776278814,AMZNMKTPLACE AMAZON.CO,5999,Equipment-purchase and rental,-11.20,-1.87,-9.33
Adult and Health Services,Head of Adults,055643,Hawthorn House LD Respite Unit,Supplies and Services,324117,Provisions E324,01-Nov-2021,000007776278834,JR HOLLAND FOODSERVICE,5499,Catering costs - provisions,17.54,0.00,17.54
Adult and Health Services,Head of Adults,055643,Hawthorn House LD Respite Unit,Supplies and Services,324117,Provisions E324,01-Nov-2021,000007776278836,JR HOLLAND FOODSERVICE,5499,Catering costs - provisions,18.90,0.00,18.90
Adult and Health Services,Head of Adults,055643,Hawthorn House LD Respite Unit,Supplies and Services,324117,Provisions E324,01-Nov-2021,000007776278838,JR HOLLAND FOODSERVICE,5499,Catering costs - provisions,-3.90,0.00,-3.90
Children and Young Peoples Services,Head of Childrens Social Care,085334,West Rainton Satelite Home,Supplies and Services,304403,Equipment and Materials,01-Nov-2021,000007776278848,AMZNMktplace,5999,Other consumables,24.95,4.16,20.79
Children and Young Peoples Services,Head of Childrens Social Care,085334,West Rainton Satelite Home,Supplies and Services,304403,Equipment and Materials,01-Nov-2021,000007776278850,AMZNMktplace,5999,Other consumables,16.98,2.83,14.15
Children and Young Peoples Services,Head of Childrens Social Care,085334,West Rainton Satelite Home,Supplies and Services,332047,Printing Stationery and Gen Off Exps,01-Nov-2021,000007776278852,ODEON CINEMAS,7832,Stationery,22.50,0.00,22.50
Children and Young Peoples Services,Head of Childrens Social Care,085334,West Rainton Satelite Home,Supplies and Services,304403,Equipment and Materials,01-Nov-2021,000007776278854,AMZNMktplace,5999,Other consumables,5.14,0.86,4.28
Resources BK0010,Digital and Customer Services,065335,School Services - Implementations,Supplies and Services,304303,Equipment and Materials,01-Nov-2021,000007776278870,TOOLSTATION UK,5251,Network for resale,59.96,0.00,59.96
Resources BK0010,Procurement Sales & Business Services,065503,Business Support - Spectrum,Supplies and Services,324117,Provisions E324,01-Nov-2021,000007776278880,ASDA GROCERIES ONLINE,5411,Catering costs - provisions,48.94,0.00,48.94
Children and Young Peoples Services,Head of Early Help Inclusion & Vulnerable Children.,088111,Easington Horden & Seascape Family Centre,Supplies and Services,304259,Equipment and Materials,01-Nov-2021,000007776278882,WWW.EMBLEMATIC.CO.UK,5611,Equipment-purchase and rental,-162.88,0.00,-162.88
Children and Young Peoples Services,Head of Early Help Inclusion & Vulnerable Children.,088111,Easington Horden & Seascape Family Centre,Supplies and Services,324117,Provisions E324,01-Nov-2021,000007776278884,ASDA GROCERIES ONLINE,5411,Catering costs - provisions,-0.44,0.00,-0.44
Children and Young Peoples Services,Head of Childrens Social Care,085332,Middlestone Moor CU,Supplies and Services,304999,Equipment and Materials,01-Nov-2021,000007776278898,Microsoft Console 1-Mo,5816,Misc equipment tools and materials,7.99,0.00,7.99
Children and Young Peoples Services,Head of Childrens Social Care,085331,New Lea Childrens Home,Supplies and Services,328041,Clothing uniforms and laundry E328,01-Nov-2021,000007776278958,NEXT RETAIL LTD,5651,Clothing uniforms and laundry,30.10,0.00,30.10
Regeneration Economy and Growth,Communications Management,060270,Communications and Marketing,Supplies and Services,336005,Advertising E336,01-Nov-2021,000007776278960,LINKEDIN-697 0550003,7311,Advertising other than for staff,11.40,0.00,11.40
Regeneration Economy and Growth,Culture Sport and Tourism,054798,dli Museum - WW1 Education Programme,Supplies and Services,304259,Equipment and Materials,01-Nov-2021,000007779728092,AMZNMKTPLACE AMAZON.CO,5999,Equipment-purchase and rental,10.99,1.83,9.16
Children and Young Peoples Services,Head of Early Help Inclusion & Vulnerable Children.,088105,W/Close and Willington Family Centre,Supplies and Services,304259,Equipment and Materials,01-Nov-2021,000007779728176,AMZNMKTPLACE AMAZON.CO,5999,Equipment-purchase and rental,74.95,12.50,62.45
Regeneration Economy and Growth,Culture Sport and Tourism,054233,Bishop Auckland Town Hall Library,Supplies and Services,324117,Provisions E324,01-Nov-2021,000007779728186,WM MORRISONS STORE,5411,Catering costs - provisions,16.90,0.00,16.90
Regeneration Economy and Growth,Culture Sport and Tourism,054812,Gala Theatre - Catering etc,Supplies and Services,324117,Provisions E324,01-Nov-2021,000007779728210,BATLEYS PERTH,5300,Catering costs - provisions,156.12,26.02,130.10
Regeneration Economy and Growth,Culture Sport and Tourism,054812,Gala Theatre - Catering etc,Supplies and Services,324117,Provisions E324,01-Nov-2021,000007779728210 - 1,BATLEYS PERTH,5300,Catering costs - provisions,106.31,,106.31
Children and Young Peoples Services,Head of Education and Skills,071732,Dean Bank Childcare,Supplies and Services,324117,Provisions E324,01-Nov-2021,000007779728258,CO-OP GROUP 010503,5411,Catering costs - provisions,6.30,0.00,6.30
Children and Young Peoples Services,Head of Education and Skills,071732,Dean Bank Childcare,Supplies and Services,324117,Provisions E324,01-Nov-2021,000007779728260,Wm Morrisons Store Pic,5411,Catering costs - provisions,40.66,0.00,40.66
Resources BK0010,Legal & Democratic Services,067910,Democratic Representation 067910,Supplies and Services,384965,Miscellaneous Expenses,01-Nov-2021,000007779728270,CO-OP GROUP 310015,5411,Civic Functions,5.00,0.00,5.00
Neighbourhoods and Climate Change,Environmental Services,026591,C&G - Hardwick Park,Supplies and Services,304403,Equipment and Materials,01-Nov-2021,000007779728274,AMZNMKTPLACE AMAZON.CO,5999,Other consumables,57.96,9.66,48.30
Children and Young Peoples Services,Head of Education and Skills,071732,Dean Bank Childcare,Supplies and Services,324117,Provisions E324,01-Nov-2021,000007779728382,CO-OP GROUP 010518,5411,Catering costs - provisions,1.60,0.00,1.60
Children and Young Peoples Services,Head of Education and Skills,071732,Dean Bank Childcare,Supplies and Services,324117,Provisions E324,01-Nov-2021,000007779728384,CO-OP GROUP 010518,5411,Catering costs - provisions,5.25,0.00,5.25
Regeneration Economy and Growth,Corporate Property and Land,030691,Catering - Durham Dales Centre,Supplies and Services,324117,Provisions E324,01-Nov-2021,000007779728388,BATLEYS PERTH,5300,Catering costs - provisions,25.62,4.27,21.35
Regeneration Economy and Growth,Corporate Property and Land,030691,Catering - Durham Dales Centre,Supplies and Services,324117,Provisions E324,01-Nov-2021,000007779728388 - 1,BATLEYS PERTH,5300,Catering costs - provisions,44.68,,44.68
Regeneration Economy and Growth,Culture Sport and Tourism,011263,Louisa Centre 011263,Supplies and Services,304221,Equipment and Materials,01-Nov-2021,000007779728418,SCREWFIX DIRECT,5211,Direct materials,29.98,0.00,29.98
Resources BK0010,Digital and Customer Services,065335,School Services - Implementations,Supplies and Services,304639,Equipment and Materials,01-Nov-2021,000007779728438,AMZNMKTPLACE AMAZON.CO,5999,Technicians-supplies,54.90,9.15,45.75
Adult and Health Services,Head of Adults,052229,Countywide AMHP Team,Supplies and Services,338048,Services,01-Nov-2021,000007779728468,HMCOURTS-SERVICE.G,9222,Court costs 338048,81.00,0.00,81.00
Children and Young Peoples Services,Head of Early Help Inclusion & Vulnerable Children.,088107,Wheatley Hill & N. Aycliffe Family Centre,Supplies and Services,324117,Provisions E324,01-Nov-2021,000007779728534,SAINSBURYS S/MKTS,5411,Catering costs - provisions,8.55,0.00,8.55
Regeneration Economy and Growth,Culture Sport and Tourism,054966,Gala Theatre - Gala Productions,Supplies and Services,338047,Services,01-Nov-2021,000007788055134,Hancock Cash Carry Ltd,5441,Direct production costs,303.11,0.00,303.11
Adult and Health Services,Head of Adults,052765,Deprivation of Liberty,Supplies and Services,304403,Equipment and Materials,02-Nov-2021,000007776278570,AMZNMktplace,5999,Other consumables,7.99,1.33,6.66
Resources BK0010,Digital and Customer Services,065487,ICT Telephony Recharges,Supplies and Services,304403,Equipment and Materials,02-Nov-2021,000007776278572,AMZNMktplace,5999,Other consumables,194.40,32.40,162.00
Resources BK0010,Digital and Customer Services,065487,ICT Telephony Recharges,Supplies and Services,304403,Equipment and Materials,02-Nov-2021,000007776278572 - 1,AMZNMktplace,5999,Other consumables,0.30,,0.30
Resources BK0010,Digital and Customer Services,065482,Data Centres,Supplies and Services,304403,Equipment and Materials,02-Nov-2021,000007776278574,AMZNMktplace,5999,Other consumables,43.97,7.34,36.63
Children and Young Peoples Services,Head of Early Help Inclusion & Vulnerable Children.,088105,W/Close and Willington Family Centre,Supplies and Services,304259,Equipment and Materials,02-Nov-2021,000007776278638,AMZNMktplace,5999,Equipment-purchase and rental,29.99,5.00,24.99
Children and Young Peoples Services,Head of Early Help Inclusion & Vulnerable Children.,079599,Psychological-HQ,Supplies and Services,384999,Miscellaneous Expenses,02-Nov-2021,000007776278652,Amazon.co.uk XT51S3QC5,5969,Other expenses,226.16,0.00,226.16
Children and Young Peoples Services,Head of Early Help Inclusion & Vulnerable Children.,079599,Psychological-HQ,Supplies and Services,384999,Miscellaneous Expenses,02-Nov-2021,000007776278654,Amazon.co.uk Y315A92Z5,5969,Other expenses,282.70,0.00,282.70
Children and Young Peoples Services,Head of Early Help Inclusion & Vulnerable Children.,085956,Lumley,Supplies and Services,304403,Equipment and Materials,02-Nov-2021,000007776278660,AMZNMktplace,5999,Other consumables,15.00,2.50,12.50
Children and Young Peoples Services,Head of Early Help Inclusion & Vulnerable Children.,085956,Lumley,Supplies and Services,304403,Equipment and Materials,02-Nov-2021,000007776278660 - 1,AMZNMktplace,5999,Other consumables,12.71,,12.71
Neighbourhoods and Climate Change,Environmental Services,031238,North Pennines - Tees Swale,Supplies and Services,384999,Miscellaneous Expenses,02-Nov-2021,000007776278738,Amazon.co.uk PV2L31WE5,5969,Other expenses,31.32,5.22,26.10
Neighbourhoods and Climate Change,Environmental Services,031238,North Pennines - Tees Swale,Supplies and Services,384999,Miscellaneous Expenses,02-Nov-2021,000007776278738 - 1,Amazon.co.uk PV2L31WE5,5969,Other expenses,0.06,,0.06
Resources BK0010,Digital and Customer Services,065335,School Services - Implementations,Supplies and Services,304639,Equipment and Materials,02-Nov-2021,000007776278874,Amazon.co.uk CI3678G75,5969,Technicians-supplies,53.10,8.85,44.25
Regeneration Economy and Growth,Business Durham CL0850,030689,Inward Investment and Aftercare,Supplies and Services,304403,Equipment and Materials,02-Nov-2021,000007779728050,ADOBE CREATIVE CLOUD,5734,Other consumables,49.94,0.00,49.94
Regeneration Economy and Growth,Business Durham CL0850,030689,Inward Investment and Aftercare,Supplies and Services,342222,Computers and Communications,02-Nov-2021,000007779728052,FASTHOSTS INTERNET,4816,Comp hardware purch-network servers,67.20,0.00,67.20
Regeneration Economy and Growth,Business Durham CL0850,030689,Inward Investment and Aftercare,Supplies and Services,342222,Computers and Communications,02-Nov-2021,000007779728054,FASTHOSTS INTERNET,4816,Comp hardware purch-network servers,75.06,0.00,75.06
Children and Young Peoples Services,Head of Childrens Social Care,085341,High Etherley Satelite Home,Supplies and Services,324117,Provisions E324,02-Nov-2021,000007779728056,TESCO STORES 6329,5411,Catering costs - provisions,3.45,0.00,3.45
Children and Young Peoples Services,Head of Education and Skills,071801,Selby Cottage Childcare Centre,Supplies and Services,324117,Provisions E324,02-Nov-2021,000007779728058,TESCO STORES 2278,5411,Catering costs - provisions,37.64,0.00,37.64
Resources BK0010,Digital and Customer Services,065481,Technical Services 065481,Employees,040149,Recruitment Instruction and Training,02-Nov-2021,000007779728060,Pluralsight,8299,Training-all costs,294.00,0.00,294.00
Resources BK0010,Digital and Customer Services,065481,Technical Services 065481,Employees,040149,Recruitment Instruction and Training,02-Nov-2021,000007779728062,Pluralsight,8299,Training-all costs,294.00,0.00,294.00
Resources BK0010,Digital and Customer Services,065481,Technical Services 065481,Employees,040149,Recruitment Instruction and Training,02-Nov-2021,000007779728064,Pluralsight,8299,Training-all costs,294.00,0.00,294.00
Regeneration Economy and Growth,Culture Sport and Tourism,010605,Woodhouse Close Leisure Complex,Supplies and Services,304403,Equipment and Materials,02-Nov-2021,000007779728068,AMZNMktplace,5999,Other consumables,289.00,48.17,240.83
Children and Young Peoples Services,Head of Childrens Social Care,085501,Child Care Cases Legal Expenses,Supplies and Services,304403,Equipment and Materials,02-Nov-2021,000007779728080,GEN REGISTER OFFICE,9399,Other consumables,35.00,0.00,35.00
Children and Young Peoples Services,Head of Education and Skills,075024,Durham Directions,Supplies and Services,364301,Grants to Voluntary Organisations,02-Nov-2021,000007779728086,AMZ Paper Cavalier UK,5999,Hardship,-32.78,0.00,-32.78
Neighbourhoods and Climate Change,Environmental Services,010383,C&G - South Street Cleansing,Supplies and Services,304221,Equipment and Materials,02-Nov-2021,000007779728090,CARRS BILLINGTON SPENN,5599,Direct materials,50.33,0.00,50.33
Regeneration Economy and Growth,Culture Sport and Tourism,030712,VCD - Project Delivery,Supplies and Services,384199,Miscellaneous Expenses,02-Nov-2021,000007779728098,MAILCHIMP MONTHLY,5968,Other hired and contracted services,206.83,0.00,206.83
Regeneration Economy and Growth,Culture Sport and Tourism,030712,VCD - Project Delivery,Supplies and Services,384199,Miscellaneous Expenses,02-Nov-2021,000007779728100,RADISSON BLU,3583,Other hired and contracted services,294.00,0.00,294.00
Children and Young Peoples Services,Head of Early Help Inclusion & Vulnerable Children.,085956,Lumley,Supplies and Services,304403,Equipment and Materials,02-Nov-2021,000007779728132,AMZNMktplace,5999,Other consumables,4.99,0.00,4.99
Children and Young Peoples Services,Head of Childrens Social Care,085331,New Lea Childrens Home,Supplies and Services,304999,Equipment and Materials,02-Nov-2021,000007779728164,HOME BARGAINS,5251,Misc equipment tools and materials,5.77,0.00,5.77
Children and Young Peoples Services,Head of Childrens Social Care,085331,New Lea Childrens Home,Supplies and Services,304999,Equipment and Materials,02-Nov-2021,000007779728166,HOME BARGAINS,5251,Misc equipment tools and materials,9.34,0.00,9.34
Children and Young Peoples Services,Head of Childrens Social Care,085331,New Lea Childrens Home,Supplies and Services,324117,Provisions E324,02-Nov-2021,000007779728168,ASDA SUPERSTORE,5411,Catering costs - provisions,42.80,0.00,42.80
Children and Young Peoples Services,Head of Childrens Social Care,085331,New Lea Childrens Home,Supplies and Services,324117,Provisions E324,02-Nov-2021,000007779728170,TESCO STORES 4358,5411,Catering costs - provisions,15.00,0.00,15.00
Children and Young Peoples Services,Head of Early Help Inclusion & Vulnerable Children.,088104,BA/BC/Crook Intensive Family Support Team,Supplies and Services,384302,Miscellaneous Expenses,02-Nov-2021,000007779728174,AMZNMktplace,5999,Activity expenses,17.99,3.00,14.99
Children and Young Peoples Services,Head of Early Help Inclusion & Vulnerable Children.,088105,W/Close and Willington Family Centre,Supplies and Services,304259,Equipment and Materials,02-Nov-2021,000007779728178,AMZNMKTPLACE AMAZON.CO,5999,Equipment-purchase and rental,59.94,9.99,49.95
Children and Young Peoples Services,Head of Early Help Inclusion & Vulnerable Children.,088105,W/Close and Willington Family Centre,Supplies and Services,304259,Equipment and Materials,02-Nov-2021,000007779728178 - 1,AMZNMKTPLACE AMAZON.CO,5999,Equipment-purchase and rental,0.03,,0.03
Regeneration Economy and Growth,Corporate Property and Land,021242,Catering - County Hall,Supplies and Services,324117,Provisions E324,02-Nov-2021,000007779728184,JR HOLLAND FOODSERVICE,5499,Catering costs - provisions,43.16,0.00,43.16
Regeneration Economy and Growth,Culture Sport and Tourism,054812,Gala Theatre - Catering etc,Supplies and Services,324117,Provisions E324,02-Nov-2021,000007779728212,JR HOLLAND FOODSERVICE,5499,Catering costs - provisions,7.75,0.00,7.75
Regeneration Economy and Growth,Culture Sport and Tourism,054812,Gala Theatre - Catering etc,Supplies and Services,324117,Provisions E324,02-Nov-2021,000007779728214,JR HOLLAND FOODSERVICE,5499,Catering costs - provisions,42.65,0.00,42.65
Children and Young Peoples Services,Head of Education and Skills,071732,Dean Bank Childcare,Supplies and Services,304403,Equipment and Materials,02-Nov-2021,000007779728262,AMZNMKTPLACE AMAZON.CO,5999,Other consumables,98.53,0.00,98.53
Children and Young Peoples Services,Head of Education and Skills,071732,Dean Bank Childcare,Supplies and Services,324117,Provisions E324,02-Nov-2021,000007779728266,ASDA SUPERSTORE 4987,5411,Catering costs - provisions,26.85,0.00,26.85
Regeneration Economy and Growth,Culture Sport and Tourism,054966,Gala Theatre - Gala Productions,Supplies and Services,338047,Services,02-Nov-2021,000007779728268,SP MSUPPLIES,5399,Direct production costs,237.36,0.00,237.36
Regeneration Economy and Growth,Development and Housing,030771,Durham Advance Flexible Fund,Transport,235057,Public Transport,02-Nov-2021,000007779728284,WWW.GONORTHEAST.CO.UK,4111,Staff travelling,17.00,0.00,17.00
Neighbourhoods and Climate Change,Environmental Services,031228,North Pennines - Fellfoot Forward,Supplies and Services,324117,Provisions E324,02-Nov-2021,000007779728302,HALLBANKGATE HUB LIMIT,5411,Catering costs - provisions,10.45,0.00,10.45
Neighbourhoods and Climate Change,Environmental Services,011060,C&G - Hardwick Park Catering,Supplies and Services,324117,Provisions E324,02-Nov-2021,000007779728304,JR HOLLAND FOODSERVICE,5499,Catering costs - provisions,14.68,0.00,14.68
Children and Young Peoples Services,Head of Childrens Social Care,085334,West Rainton Satelite Home,Supplies and Services,324117,Provisions E324,02-Nov-2021,000007779728306,B&M 681 - DURHAM,5399,Catering costs - provisions,5.75,0.00,5.75
Resources BK0010,People & Talent Management,010984,Training and Development,Employees,040149,Recruitment Instruction and Training,02-Nov-2021,000007779728308,WWW.JIB.ORG.UK,8699,Training-all costs,250.00,0.00,250.00
Regeneration Economy and Growth,Corporate Property and Land,021234,Catering - Locomotion,Supplies and Services,384999,Miscellaneous Expenses,02-Nov-2021,000007779728320,ON A ROLL SANDWICH COM,5199,Other expenses,460.51,0.00,460.51
Neighbourhoods and Climate Change,Environmental Services,010367,C&G - South Grounds Maintenance,Supplies and Services,304999,Equipment and Materials,02-Nov-2021,000007779728356,NEW ROW FARM NURSERIES,780,Misc equipment tools and materials,164.58,0.00,164.58
Children and Young Peoples Services,Head of Education and Skills,071802,Louisa Cent Nursery,Supplies and Services,324117,Provisions E324,02-Nov-2021,000007779728376,ASDA SUPERSTORE,5411,Catering costs - provisions,9.00,0.00,9.00
Children and Young Peoples Services,Head of Childrens Social Care,085351,Framwellgate Moor CU,Supplies and Services,304221,Equipment and Materials,02-Nov-2021,000007779728386,WWW.TONERGIANT.CO.UK,5085,Direct materials,57.53,0.00,57.53
Children and Young Peoples Services,Head of Childrens Social Care,085334,West Rainton Satelite Home,Supplies and Services,324117,Provisions E324,02-Nov-2021,000007779728420,TESCO STORES 2371,5411,Catering costs - provisions,111.26,0.00,111.26
Resources BK0010,Digital and Customer Services,065335,School Services - Implementations,Supplies and Services,304639,Equipment and Materials,02-Nov-2021,000007779728436,NETS zandparts.com,4812,Technicians-supplies,31.49,0.00,31.49
Regeneration Economy and Growth,Communications Management,060270,Communications and Marketing,Supplies and Services,312009,Newspapers books and periodicals E312,02-Nov-2021,000007779728470,DURHAM CITY NEWS,5994,Newspapers books and periodicals,120.26,0.00,120.26
Children and Young Peoples Services,Head of Early Help Inclusion & Vulnerable Children.,085801,CDYJS - Support,Supplies and Services,324117,Provisions E324,02-Nov-2021,000007779728492,B&M 681 - DURHAM,5399,Catering costs - provisions,83.27,0.00,83.27
Children and Young Peoples Services,Head of Childrens Social Care,085333,Coxhoe Satelite Home,Supplies and Services,324117,Provisions E324,02-Nov-2021,000007779728518,TESCO STORES 2916,5411,Catering costs - provisions,99.26,0.00,99.26
Regeneration Economy and Growth,Corporate Property and Land,021235,Catering - Wharton Park,Supplies and Services,384999,Miscellaneous Expenses,02-Nov-2021,000007779728616,ON A ROLL SANDWICH COM,5199,Other expenses,153.79,0.00,153.79
Children and Young Peoples Services,Head of Childrens Social Care,085334,West Rainton Satelite Home,Supplies and Services,308013,Furniture,02-Nov-2021,000007779728620,hillarys blinds ltd,5963,Curtains and carpets,420.00,0.00,420.00
Children and Young Peoples Services,Head of Childrens Social Care,085334,West Rainton Satelite Home,Employees,040149,Recruitment Instruction and Training,02-Nov-2021,000007779728622,VIRTUAL COLLEGE LIMITE,8299,Training-all costs,144.00,0.00,144.00
Adult and Health Services,Head of Adults,055309,Peterlee Pathways,Supplies and Services,304403,Equipment and Materials,02-Nov-2021,000007779728624,AMZNMktplace,5999,Other consumables,8.00,1.33,6.67
Children and Young Peoples Services,Head of Early Help Inclusion & Vulnerable Children.,088113,Seaham & Laurel Avenue Family Centre,Supplies and Services,324117,Provisions E324,02-Nov-2021,000007779728656,ASDA GROCERIES ONLINE,5411,Catering costs - provisions,63.70,0.00,63.70
Adult and Health Services,Head of Adults,055309,Peterlee Pathways,Supplies and Services,304999,Equipment and Materials,02-Nov-2021,000007779728672,HOME BARGAINS PETERLEE,5251,Misc equipment tools and materials,2.76,0.00,2.76
Children and Young Peoples Services,Head of Childrens Social Care,085634,Families First Easington,Supplies and Services,304259,Equipment and Materials,02-Nov-2021,000007779728698,GEN REGISTER OFFICE,9399,Equipment-purchase and rental,11.00,0.00,11.00
Resources BK0010,Finance & Transactional Services,065180,Collections,Supplies and Services,338045,Services,02-Nov-2021,000007783698864,HMCOURTS-SERVICE.G,9222,Legal expenses 338045,590.00,0.00,590.00
Neighbourhoods and Climate Change,Technical Services CM0300,025120,Strategic Highways - Asset Management,Supplies and Services,304403,Equipment and Materials,02-Nov-2021,000007783698876,AMZNMKTPLACE AMAZON.CO,5999,Other consumables,75.98,12.66,63.32
Children and Young Peoples Services,Head of Childrens Social Care,085351,Framwellgate Moor CU,Supplies and Services,324117,Provisions E324,02-Nov-2021,000007783698918,SAINSBURY`S S/MKT,5411,Catering costs - provisions,17.05,0.00,17.05
Children and Young Peoples Services,Head of Childrens Social Care,085331,New Lea Childrens Home,Supplies and Services,304221,Equipment and Materials,02-Nov-2021,000007783698938,SCREWFIX DIR LTD,5211,Direct materials,15.99,0.00,15.99
Children and Young Peoples Services,Head of Childrens Social Care,085331,New Lea Childrens Home,Supplies and Services,348037,Subsistence E348,02-Nov-2021,000007783698940,MCDONALDS,5812,Subsistence,1.11,0.00,1.11
Regeneration Economy and Growth,Corporate Property and Land,021242,Catering - County Hall,Supplies and Services,324117,Provisions E324,02-Nov-2021,000007783698950,BATLEYS PERTH,5300,Catering costs - provisions,71.52,11.92,59.60
Regeneration Economy and Growth,Corporate Property and Land,021242,Catering - County Hall,Supplies and Services,324117,Provisions E324,02-Nov-2021,000007783698950 - 1,BATLEYS PERTH,5300,Catering costs - provisions,31.66,,31.66
Children and Young Peoples Services,Head of Early Help Inclusion & Vulnerable Children.,079599,Psychological-HQ,Employees,040149,Recruitment Instruction and Training,02-Nov-2021,000007783698982,WWW.ELKLAN.CO.UK,8299,Training-all costs,72.00,0.00,72.00
Children and Young Peoples Services,Head of Education and Skills,071732,Dean Bank Childcare,Supplies and Services,324117,Provisions E324,02-Nov-2021,000007783699034,ALDI 59 774,5411,Catering costs - provisions,33.69,0.00,33.69
Children and Young Peoples Services,Head of Education and Skills,071732,Dean Bank Childcare,Supplies and Services,324117,Provisions E324,02-Nov-2021,000007783699036,SAINSBURYS S/MKTS,5411,Catering costs - provisions,3.60,0.00,3.60
Neighbourhoods and Climate Change,Environmental Services,026591,C&G - Hardwick Park,Supplies and Services,328041,Clothing uniforms and laundry E328,02-Nov-2021,000007783699046,WWW.THEWORKS.CO.UK,5310,Clothing uniforms and laundry,30.00,0.00,30.00
Regeneration Economy and Growth,Business Durham CL0850,030714,Salvus House,Supplies and Services,304403,Equipment and Materials,02-Nov-2021,000007783699064,AMZNMKTPLACE AMAZON.CO,5999,Other consumables,16.04,2.68,13.36
Regeneration Economy and Growth,Business Durham CL0850,030714,Salvus House,Supplies and Services,304403,Equipment and Materials,02-Nov-2021,000007783699066,AMZNMKTPLACE AMAZON.CO,5999,Other consumables,11.70,1.95,9.75
Regeneration Economy and Growth,Business Durham CL0850,030714,Salvus House,Supplies and Services,304403,Equipment and Materials,02-Nov-2021,000007783699066 - 1,AMZNMKTPLACE AMAZON.CO,5999,Other consumables,0.10,,0.10
Regeneration Economy and Growth,Business Durham CL0850,030714,Salvus House,Supplies and Services,304403,Equipment and Materials,02-Nov-2021,000007783699068,AMZNMKTPLACE AMAZON.CO,5999,Other consumables,16.95,2.85,14.10
Children and Young Peoples Services,Head of Early Help Inclusion & Vulnerable Children.,085962,Aycliffe Secure - Durham,Transfer Payments,515002,Social Services Clients,02-Nov-2021,000007783699076,JD SPORTS INTERNET,5941,Pocket money,58.99,0.00,58.99
Neighbourhoods and Climate Change,Environmental Services,010919,C&G - Countryside Site Management,Supplies and Services,304259,Equipment and Materials,02-Nov-2021,000007783699096,SCREWFIX DIRECT,5211,Equipment-purchase and rental,7.99,1.33,6.66
Neighbourhoods and Climate Change,Environmental Services,011060,C&G - Hardwick Park Catering,Supplies and Services,324117,Provisions E324,02-Nov-2021,000007783699100,BATLEYS PERTH,5300,Catering costs - provisions,92.04,15.34,76.70
Neighbourhoods and Climate Change,Environmental Services,011060,C&G - Hardwick Park Catering,Supplies and Services,324117,Provisions E324,02-Nov-2021,000007783699100 - 1,BATLEYS PERTH,5300,Catering costs - provisions,129.03,,129.03
Children and Young Peoples Services,Head of Childrens Social Care,085351,Framwellgate Moor CU,Supplies and Services,324117,Provisions E324,02-Nov-2021,000007783699208,SAINSBURY`S S/MKT,5411,Catering costs - provisions,55.28,0.00,55.28
Resources BK0010,Procurement Sales & Business Services,065503,Business Support - Spectrum,Supplies and Services,304259,Equipment and Materials,02-Nov-2021,000007783699268,AO RETAIL LIMITED,5722,Equipment-purchase and rental,284.00,0.00,284.00
Regeneration Economy and Growth,Culture Sport and Tourism,054235,Bishop Auckland Town Hall Cafe,Supplies and Services,324117,Provisions E324,02-Nov-2021,000007783699270,BATLEYS PERTH,5300,Catering costs - provisions,88.20,14.70,73.50
Regeneration Economy and Growth,Culture Sport and Tourism,054235,Bishop Auckland Town Hall Cafe,Supplies and Services,324117,Provisions E324,02-Nov-2021,000007783699270 - 1,BATLEYS PERTH,5300,Catering costs - provisions,81.38,,81.38
Regeneration Economy and Growth,Transport and Contracted Services,031704,Care Connect - CCTV Countywide,Supplies and Services,384956,Miscellaneous Expenses,02-Nov-2021,000007783699274,SECURITY INDUSTRY,7393,Licences,190.00,0.00,190.00
Regeneration Economy and Growth,Corporate Property and Land,021324,Catering - Meadowfield,Supplies and Services,324117,Provisions E324,02-Nov-2021,000007783699284,BATLEYS PERTH,5300,Catering costs - provisions,40.20,6.70,33.50
Regeneration Economy and Growth,Corporate Property and Land,021324,Catering - Meadowfield,Supplies and Services,324117,Provisions E324,02-Nov-2021,000007783699284 - 1,BATLEYS PERTH,5300,Catering costs - provisions,89.24,,89.24
Children and Young Peoples Services,Head of Childrens Social Care,085332,Middlestone Moor CU,Supplies and Services,344033,Telephones,02-Nov-2021,000007783699358,THREE,4814,Telephones general-all costs,10.00,0.00,10.00
Adult and Health Services,Head of Adults,055310,Positive Journeys (Tudhoe),Supplies and Services,324117,Provisions E324,02-Nov-2021,000007783699420,ALDI 59 774,5411,Catering costs - provisions,2.53,0.00,2.53
Children and Young Peoples Services,Head of Childrens Social Care,085333,Coxhoe Satelite Home,Supplies and Services,324117,Provisions E324,02-Nov-2021,000007783699468,CO-OP GROUP 310016,5411,Catering costs - provisions,4.50,0.00,4.50
Children and Young Peoples Services,Head of Early Help Inclusion & Vulnerable Children.,088107,Wheatley Hill & N. Aycliffe Family Centre,Supplies and Services,384302,Miscellaneous Expenses,02-Nov-2021,000007783699500,WWW.THEWORKS.CO.UK,5310,Activity expenses,39.00,0.00,39.00
Children and Young Peoples Services,Head of Childrens Social Care,085634,Families First Easington,Supplies and Services,304259,Equipment and Materials,02-Nov-2021,000007793663928,GEN REGISTER OFFICE,9399,Equipment-purchase and rental,-11.00,0.00,-11.00
Regeneration Economy and Growth,Corporate Property and Land,021234,Catering - Locomotion,Supplies and Services,324117,Provisions E324,02-Nov-2021,000007803538754,BATLEYS PERTH,5300,Catering costs - provisions,311.34,51.89,259.45
Regeneration Economy and Growth,Corporate Property and Land,021234,Catering - Locomotion,Supplies and Services,324117,Provisions E324,02-Nov-2021,000007803538754 - 1,BATLEYS PERTH,5300,Catering costs - provisions,22.95,,22.95
Regeneration Economy and Growth,Corporate Property and Land,021234,Catering - Locomotion,Supplies and Services,324117,Provisions E324,02-Nov-2021,000007803538760,BATLEYS PERTH,5300,Catering costs - provisions,8.48,0.00,8.48
Children and Young Peoples Services,Head of Early Help Inclusion & Vulnerable Children.,088105,W/Close and Willington Family Centre,Supplies and Services,304259,Equipment and Materials,03-Nov-2021,000007779728180,Amazon.co.uk XP1CI8DM5,5969,Equipment-purchase and rental,23.46,3.91,19.55
Children and Young Peoples Services,Head of Early Help Inclusion & Vulnerable Children.,088104,BA/BC/Crook Intensive Family Support Team,Supplies and Services,384302,Miscellaneous Expenses,03-Nov-2021,000007779728182,Amazon.co.uk 4197D1UD5,5969,Activity expenses,25.88,4.32,21.56
Children and Young Peoples Services,Head of Early Help Inclusion & Vulnerable Children.,085957,Secure Management,Supplies and Services,304403,Equipment and Materials,03-Nov-2021,000007779728218,AMZNMktplace,5999,Other consumables,35.38,5.90,29.48
Children and Young Peoples Services,Head of Early Help Inclusion & Vulnerable Children.,085957,Secure Management,Supplies and Services,332047,Printing Stationery and Gen Off Exps,03-Nov-2021,000007779728286,AMZNMktplace,5999,Stationery,13.59,2.27,11.32
Dedicated Schools Grant BG0015,DSG Schools Block,418514,Belmont Community School 004185 - Music,Supplies and Services,312075,Newspapers books and periodicals E312,03-Nov-2021,000007779728348,Amazon.co.uk FG9UP41S5,5969,Text books,10.68,1.78,8.90
Dedicated Schools Grant BG0015,DSG Schools Block,418514,Belmont Community School 004185 - Music,Supplies and Services,312075,Newspapers books and periodicals E312,03-Nov-2021,000007779728348 - 1,Amazon.co.uk FG9UP41S5,5969,Text books,13.38,,13.38
Resources BK0010,Digital and Customer Services,065335,School Services - Implementations,Supplies and Services,304639,Equipment and Materials,03-Nov-2021,000007779728440,Amazon.co.uk 2Z9VH5T05,5969,Technicians-supplies,22.50,3.76,18.74
Children and Young Peoples Services,Head of Early Help Inclusion & Vulnerable Children.,085956,Lumley,Transfer Payments,515002,Social Services Clients,03-Nov-2021,000007779728460,AMZNMktplace,5999,Pocket money,9.90,0.00,9.90
Children and Young Peoples Services,Head of Early Help Inclusion & Vulnerable Children.,085957,Secure Management,Supplies and Services,304405,Equipment and Materials,03-Nov-2021,000007779728464,AMZNMktplace,5999,Medical supplies,31.80,5.30,26.50
Children and Young Peoples Services,Head of Early Help Inclusion & Vulnerable Children.,085956,Lumley,Transfer Payments,515002,Social Services Clients,03-Nov-2021,000007779728466,AMZNMktplace,5999,Pocket money,3.88,0.65,3.23
Resources BK0010,Digital and Customer Services,065481,Technical Services 065481,Employees,040149,Recruitment Instruction and Training,03-Nov-2021,000007783698870,Pluralsight,8299,Training-all costs,294.00,0.00,294.00
Resources BK0010,Digital and Customer Services,065481,Technical Services 065481,Employees,040149,Recruitment Instruction and Training,03-Nov-2021,000007783698872,Pluralsight,8299,Training-all costs,294.00,0.00,294.00
Resources BK0010,Digital and Customer Services,065481,Technical Services 065481,Employees,040149,Recruitment Instruction and Training,03-Nov-2021,000007783698874,Pluralsight,8299,Training-all costs,294.00,0.00,294.00
Dedicated Schools Grant BG0015,DSG Schools Block,417624,Greenfield Community College 004176 - DFE One Vision Funding,Supplies and Services,384199,Miscellaneous Expenses,03-Nov-2021,000007783698884,WWW.AAT-ORG.UK,8931,Other hired and contracted services,155.00,0.00,155.00
Regeneration Economy and Growth,Culture Sport and Tourism,010605,Woodhouse Close Leisure Complex,Supplies and Services,304403,Equipment and Materials,03-Nov-2021,000007783698894,AMZNMktplace,5999,Other consumables,17.99,3.00,14.99
Regeneration Economy and Growth,Culture Sport and Tourism,010605,Woodhouse Close Leisure Complex,Supplies and Services,304403,Equipment and Materials,03-Nov-2021,000007783698896,AMZNMktplace,5999,Other consumables,6.48,1.08,5.40
Regeneration Economy and Growth,Culture Sport and Tourism,030705,Visit County Durham 030705,Supplies and Services,384199,Miscellaneous Expenses,03-Nov-2021,000007783698904,FASTHOSTS INTERNET,4816,Other hired and contracted services,7.54,1.26,6.28
Children and Young Peoples Services,Head of Education and Skills,078100,Curric and Professional Development 078100,Supplies and Services,304403,Equipment and Materials,03-Nov-2021,000007783698910,ADOBE STOCK,5734,Other consumables,23.99,0.00,23.99
Children and Young Peoples Services,Head of Childrens Social Care,085357,LAC Bespoke Placements,Transport,235057,Public Transport,03-Nov-2021,000007783698914,Hotel at Booking.com,7011,Staff travelling,"2,294.25",0.00,2294.25
Children and Young Peoples Services,Head of Childrens Social Care,085357,LAC Bespoke Placements,Transport,235057,Public Transport,03-Nov-2021,000007783698916,HARROWGATE HILL LODGE,7011,Staff travelling,665.00,0.00,665.00
Children and Young Peoples Services,Head of Early Help Inclusion & Vulnerable Children.,088104,BA/BC/Crook Intensive Family Support Team,Supplies and Services,364301,Grants to Voluntary Organisations,03-Nov-2021,000007783698948,ASDA GROCERIES ONLINE,5411,Hardship,97.94,0.00,97.94
Regeneration Economy and Growth,Corporate Property and Land,021242,Catering - County Hall,Supplies and Services,324117,Provisions E324,03-Nov-2021,000007783698952,JR HOLLAND FOODSERVICE,5499,Catering costs - provisions,13.80,2.30,11.50
Regeneration Economy and Growth,Corporate Property and Land,021242,Catering - County Hall,Supplies and Services,324117,Provisions E324,03-Nov-2021,000007783698952 - 1,JR HOLLAND FOODSERVICE,5499,Catering costs - provisions,34.59,,34.59
Regeneration Economy and Growth,Culture Sport and Tourism,054812,Gala Theatre - Catering etc,Supplies and Services,324117,Provisions E324,03-Nov-2021,000007783698978,JR HOLLAND FOODSERVICE,5499,Catering costs - provisions,18.40,0.00,18.40
Children and Young Peoples Services,Head of Early Help Inclusion & Vulnerable Children.,085952,Secure Education,Supplies and Services,304403,Equipment and Materials,03-Nov-2021,000007783698984,AMZNMktplace,5999,Other consumables,5.92,0.00,5.92
Children and Young Peoples Services,Head of Childrens Social Care,085361,LAC & Permanence Team 1,Supplies and Services,338045,Services,03-Nov-2021,000007783698998,GEN REGISTER OFFICE,9399,Legal expenses 338045,33.00,0.00,33.00
Children and Young Peoples Services,Head of Early Help Inclusion & Vulnerable Children.,074000,National Supporting Families Programme,Transfer Payments,525033,Other,03-Nov-2021,000007783699008,Frank`s Flooring Spenn,5713,Grants to individuals,250.00,0.00,250.00
Children and Young Peoples Services,Head of Childrens Social Care,085358,Orchard House Sacriston Solo Home,Supplies and Services,344033,Telephones,03-Nov-2021,000007783699014,giffgaff,4814,Telephones general-all costs,10.00,0.00,10.00
Adult and Health Services,Head of Adults,055807,Newton Aycliffe Pathways,Supplies and Services,340001,Postages E340,03-Nov-2021,000007783699038,POST OFFICE COUNTER,9402,Postages,6.85,0.00,6.85
Regeneration Economy and Growth,Business Durham CL0850,030714,Salvus House,Supplies and Services,304403,Equipment and Materials,03-Nov-2021,000007783699062,AMZNMKTPLACE AMAZON.CO,5999,Other consumables,11.99,2.00,9.99
Regeneration Economy and Growth,Business Durham CL0850,030714,Salvus House,Supplies and Services,304403,Equipment and Materials,03-Nov-2021,000007783699070,AMZNMKTPLACE AMAZON.CO,5999,Other consumables,76.19,12.73,63.46
Children and Young Peoples Services,Head of Early Help Inclusion & Vulnerable Children.,085954,Walworth,Transfer Payments,515002,Social Services Clients,03-Nov-2021,000007783699078,Blacks Outdoor Retail,5655,Pocket money,75.00,0.00,75.00
Children and Young Peoples Services,Head of Early Help Inclusion & Vulnerable Children.,085956,Lumley,Transfer Payments,515002,Social Services Clients,03-Nov-2021,000007783699080,SP STYLEDUP.CO.UK,5691,Pocket money,13.50,0.00,13.50
Children and Young Peoples Services,Head of Early Help Inclusion & Vulnerable Children.,085962,Aycliffe Secure - Durham,Transfer Payments,515002,Social Services Clients,03-Nov-2021,000007783699082,AMZNMktplace,5999,Pocket money,9.30,0.00,9.30
Children and Young Peoples Services,Head of Early Help Inclusion & Vulnerable Children.,085962,Aycliffe Secure - Durham,Supplies and Services,324117,Provisions E324,03-Nov-2021,000007783699084,TESCO STORES 6329,5411,Catering costs - provisions,65.80,0.00,65.80
Children and Young Peoples Services,Head of Early Help Inclusion & Vulnerable Children.,085954,Walworth,Transfer Payments,515002,Social Services Clients,03-Nov-2021,000007783699086,NEXT DIRECTORY,5965,Pocket money,22.00,0.00,22.00
Children and Young Peoples Services,Head of Early Help Inclusion & Vulnerable Children.,085956,Lumley,Transfer Payments,515002,Social Services Clients,03-Nov-2021,000007783699088,SPORTSDIRECT.COM,5691,Pocket money,11.98,0.00,11.98
Children and Young Peoples Services,Head of Education and Skills,075029,Poverty Action Group,Supplies and Services,364301,Grants to Voluntary Organisations,03-Nov-2021,000007783699104,RIVER ISLAND 400,5691,Hardship,58.00,0.00,58.00
Resources BK0010,People & Talent Management,010984,Training and Development,Employees,040149,Recruitment Instruction and Training,03-Nov-2021,000007783699106,WWW.CIOB.ORG.UK,8699,Training-all costs,298.80,49.80,249.00
Neighbourhoods and Climate Change,Environmental Services,031238,North Pennines - Tees Swale,Supplies and Services,304403,Equipment and Materials,03-Nov-2021,000007783699114,AMZNMktplace,5999,Other consumables,14.94,2.49,12.45
Neighbourhoods and Climate Change,Environmental Services,031238,North Pennines - Tees Swale,Supplies and Services,304403,Equipment and Materials,03-Nov-2021,000007783699114 - 1,AMZNMktplace,5999,Other consumables,0.03,,0.03
Children and Young Peoples Services,Head of Childrens Social Care,085331,New Lea Childrens Home,Supplies and Services,324117,Provisions E324,03-Nov-2021,000007783699126,ASDA SUPERSTORE,5411,Catering costs - provisions,223.37,0.00,223.37
Children and Young Peoples Services,Head of Early Help Inclusion & Vulnerable Children.,088109,Dean Bank and Tudhoe Family Centre,Supplies and Services,384302,Miscellaneous Expenses,03-Nov-2021,000007783699158,AMZNMktplace,5999,Activity expenses,32.70,5.46,27.24
Children and Young Peoples Services,Head of Early Help Inclusion & Vulnerable Children.,088109,Dean Bank and Tudhoe Family Centre,Supplies and Services,384302,Miscellaneous Expenses,03-Nov-2021,000007783699160,AMZNMktplace,5999,Activity expenses,32.70,5.46,27.24
Children and Young Peoples Services,Head of Early Help Inclusion & Vulnerable Children.,088109,Dean Bank and Tudhoe Family Centre,Supplies and Services,384302,Miscellaneous Expenses,03-Nov-2021,000007783699162,AMZNMktplace,5999,Activity expenses,32.70,5.46,27.24
Children and Young Peoples Services,Head of Early Help Inclusion & Vulnerable Children.,088109,Dean Bank and Tudhoe Family Centre,Supplies and Services,384302,Miscellaneous Expenses,03-Nov-2021,000007783699164,AMZNMktplace,5999,Activity expenses,47.05,7.85,39.20
Children and Young Peoples Services,Head of Early Help Inclusion & Vulnerable Children.,088109,Dean Bank and Tudhoe Family Centre,Supplies and Services,384302,Miscellaneous Expenses,03-Nov-2021,000007783699166,AMZNMktplace,5999,Activity expenses,47.05,7.85,39.20
Children and Young Peoples Services,Head of Education and Skills,071802,Louisa Cent Nursery,Supplies and Services,304999,Equipment and Materials,03-Nov-2021,000007783699192,HOME BARGAINS,5251,Misc equipment tools and materials,39.29,0.00,39.29
Children and Young Peoples Services,Head of Childrens Social Care,085333,Coxhoe Satelite Home,Supplies and Services,324117,Provisions E324,03-Nov-2021,000007783699196,ASDA SUPERSTORE 4987,5411,Catering costs - provisions,69.97,0.00,69.97
Regeneration Economy and Growth,Corporate Property and Land,030691,Catering - Durham Dales Centre,Supplies and Services,324117,Provisions E324,03-Nov-2021,000007783699212,JR HOLLAND FOODSERVICE,5499,Catering costs - provisions,78.79,0.00,78.79
Adult and Health Services,Head of Adults,055643,Hawthorn House LD Respite Unit,Supplies and Services,324117,Provisions E324,03-Nov-2021,000007783699226,JR HOLLAND FOODSERVICE,5499,Catering costs - provisions,11.07,0.00,11.07
Resources BK0010,Procurement Sales & Business Services,065506,Business Support - Green Lane,Supplies and Services,304403,Equipment and Materials,03-Nov-2021,000007783699234,AMZNMktplace,5999,Other consumables,24.89,4.15,20.74
Resources BK0010,Digital and Customer Services,065335,School Services - Implementations,Supplies and Services,304639,Equipment and Materials,03-Nov-2021,000007783699250,NETS zandparts.com,4812,Technicians-supplies,36.47,0.00,36.47
Children and Young Peoples Services,Head of Early Help Inclusion & Vulnerable Children.,085952,Secure Education,Premises,108099,Service Repairs and Maintenance,03-Nov-2021,000007783699258,Connect Distribution S,5722,General repairs 108099,23.98,4.00,19.98
Children and Young Peoples Services,Head of Early Help Inclusion & Vulnerable Children.,085957,Secure Management,Premises,108251,Service Repairs and Maintenance,03-Nov-2021,000007783699260,CURRYS ONLINE,5732,Alarm and security maintenance,53.97,9.00,44.97
Regeneration Economy and Growth,Culture Sport and Tourism,054235,Bishop Auckland Town Hall Cafe,Supplies and Services,324117,Provisions E324,03-Nov-2021,000007783699272,JR HOLLAND FOODSERVICE,5499,Catering costs - provisions,308.53,0.00,308.53
Neighbourhoods and Climate Change,Environmental Services,010301,C&G - North Grounds Maintenance,Supplies and Services,304999,Equipment and Materials,03-Nov-2021,000007783699312,GUSTHARTS,5072,Misc equipment tools and materials,325.93,0.00,325.93
Children and Young Peoples Services,Head of Early Help Inclusion & Vulnerable Children.,085801,CDYJS - Support,Supplies and Services,304403,Equipment and Materials,03-Nov-2021,000007783699314,AMZNMktplace,5999,Other consumables,42.79,0.00,42.79
Children and Young Peoples Services,Head of Early Help Inclusion & Vulnerable Children.,085801,CDYJS - Support,Supplies and Services,384237,Miscellaneous Expenses,03-Nov-2021,000007783699316,HTTPS://WWW.DURHAMKART,7999,Recreational exps outings parties,75.00,0.00,75.00
Children and Young Peoples Services,Head of Childrens Social Care,085332,Middlestone Moor CU,Supplies and Services,384999,Miscellaneous Expenses,03-Nov-2021,000007783699360,PETS AT HOME LTD,5995,Other expenses,7.29,0.00,7.29
Children and Young Peoples Services,Head of Childrens Social Care,085332,Middlestone Moor CU,Transport,235057,Public Transport,03-Nov-2021,000007783699362,ARRIVA UK BUS,4131,Staff travelling,14.80,0.00,14.80
Children and Young Peoples Services,Head of Childrens Social Care,085332,Middlestone Moor CU,Supplies and Services,304999,Equipment and Materials,03-Nov-2021,000007783699364,HOME BARGAINS,5251,Misc equipment tools and materials,5.98,0.00,5.98
Children and Young Peoples Services,Head of Childrens Social Care,085332,Middlestone Moor CU,Supplies and Services,328041,Clothing uniforms and laundry E328,03-Nov-2021,000007783699366,TK MAXX,5331,Clothing uniforms and laundry,16.99,0.00,16.99
Regeneration Economy and Growth,Culture Sport and Tourism,054233,Bishop Auckland Town Hall Library,Supplies and Services,324117,Provisions E324,03-Nov-2021,000007783699374,HERON FOODS,5411,Catering costs - provisions,4.16,0.00,4.16
Regeneration Economy and Growth,Culture Sport and Tourism,054233,Bishop Auckland Town Hall Library,Supplies and Services,324117,Provisions E324,03-Nov-2021,000007783699376,HERON FOODS,5411,Catering costs - provisions,4.96,0.00,4.96
Regeneration Economy and Growth,Culture Sport and Tourism,054820,Gala Theatre - Overheads,Supplies and Services,324117,Provisions E324,03-Nov-2021,000007783699396,TESCO STORES 6029,5411,Catering costs - provisions,5.80,0.00,5.80
Adult and Health Services,Head of Adults,055310,Positive Journeys (Tudhoe),Supplies and Services,324117,Provisions E324,03-Nov-2021,000007783699422,ASDA SUPERSTORE 4987,5411,Catering costs - provisions,1.15,0.00,1.15
Neighbourhoods and Climate Change,Community Protection,011293,Horden Making Every Adult Matter (MEAM),Supplies and Services,324117,Provisions E324,03-Nov-2021,000007783699430,SPAR 11081,5411,Catering costs - provisions,16.06,0.00,16.06
Regeneration Economy and Growth,Development and Housing,031634,LOCAL LETTINGS AGENCY,Supplies and Services,324117,Provisions E324,03-Nov-2021,000007783699442,ASDA SUPERSTORE 4987,5411,Catering costs - provisions,2.20,0.00,2.20
Children and Young Peoples Services,Head of Education and Skills,076001,Music Service,Supplies and Services,328041,Clothing uniforms and laundry E328,03-Nov-2021,000007783699452,POUNDSTRETCHER 692,5331,Clothing uniforms and laundry,13.77,0.00,13.77
Adult and Health Services,Head of Adults,055309,Peterlee Pathways,Supplies and Services,324117,Provisions E324,03-Nov-2021,000007783699482,LIDL GB,5411,Catering costs - provisions,2.68,0.00,2.68
Regeneration Economy and Growth,Corporate Property and Land,030691,Catering - Durham Dales Centre,Supplies and Services,304221,Equipment and Materials,03-Nov-2021,000007783699484,CITY ELECTRICAL FA,5211,Direct materials,5.76,0.00,5.76
Children and Young Peoples Services,Head of Early Help Inclusion & Vulnerable Children.,088107,Wheatley Hill & N. Aycliffe Family Centre,Supplies and Services,384302,Miscellaneous Expenses,03-Nov-2021,000007783699502,AMZNMktplace,5999,Activity expenses,13.99,2.33,11.66
Children and Young Peoples Services,Head of Early Help Inclusion & Vulnerable Children.,088107,Wheatley Hill & N. Aycliffe Family Centre,Supplies and Services,384302,Miscellaneous Expenses,03-Nov-2021,000007783699504,AMZNMktplace,5999,Activity expenses,17.58,2.93,14.65
Children and Young Peoples Services,Head of Early Help Inclusion & Vulnerable Children.,088107,Wheatley Hill & N. Aycliffe Family Centre,Supplies and Services,384302,Miscellaneous Expenses,03-Nov-2021,000007783699504 - 1,AMZNMktplace,5999,Activity expenses,28.50,,28.50
Children and Young Peoples Services,Head of Early Help Inclusion & Vulnerable Children.,088107,Wheatley Hill & N. Aycliffe Family Centre,Supplies and Services,384302,Miscellaneous Expenses,03-Nov-2021,000007783699506,AMZNMktplace,5999,Activity expenses,14.99,2.50,12.49
Children and Young Peoples Services,Head of Early Help Inclusion & Vulnerable Children.,088107,Wheatley Hill & N. Aycliffe Family Centre,Supplies and Services,384302,Miscellaneous Expenses,03-Nov-2021,000007783699508,AMZNMktplace,5999,Activity expenses,8.45,0.00,8.45
Children and Young Peoples Services,Head of Early Help Inclusion & Vulnerable Children.,088107,Wheatley Hill & N. Aycliffe Family Centre,Supplies and Services,384302,Miscellaneous Expenses,03-Nov-2021,000007783699510,AMZNMktplace,5999,Activity expenses,26.34,4.39,21.95
Children and Young Peoples Services,Head of Early Help Inclusion & Vulnerable Children.,088107,Wheatley Hill & N. Aycliffe Family Centre,Supplies and Services,384302,Miscellaneous Expenses,03-Nov-2021,000007783699510 - 1,AMZNMktplace,5999,Activity expenses,0.03,,0.03
Children and Young Peoples Services,Head of Early Help Inclusion & Vulnerable Children.,088107,Wheatley Hill & N. Aycliffe Family Centre,Supplies and Services,384302,Miscellaneous Expenses,03-Nov-2021,000007783699512,AMZNMktplace,5999,Activity expenses,37.50,6.25,31.25
Children and Young Peoples Services,Head of Early Help Inclusion & Vulnerable Children.,088107,Wheatley Hill & N. Aycliffe Family Centre,Supplies and Services,384302,Miscellaneous Expenses,03-Nov-2021,000007783699512 - 1,AMZNMktplace,5999,Activity expenses,9.26,,9.26
Children and Young Peoples Services,Head of Childrens Social Care,085341,High Etherley Satelite Home,Supplies and Services,328041,Clothing uniforms and laundry E328,03-Nov-2021,000007788055130,SCHOOLUNIFORMSPECIALIS,5137,Clothing uniforms and laundry,21.50,0.00,21.50
Regeneration Economy and Growth,Development and Housing,030776,LINKCD Flexible Fund,Supplies and Services,304259,Equipment and Materials,03-Nov-2021,000007788055182,WWW.DURHAM.GOV.UK,9399,Equipment-purchase and rental,54.00,0.00,54.00
Regeneration Economy and Growth,Culture Sport and Tourism,054812,Gala Theatre - Catering etc,Supplies and Services,324117,Provisions E324,03-Nov-2021,000007788055228,BATLEYS PERTH,5300,Catering costs - provisions,-8.83,-1.47,-7.36
Children and Young Peoples Services,Head of Early Help Inclusion & Vulnerable Children.,085954,Walworth,Supplies and Services,304259,Equipment and Materials,03-Nov-2021,000007788055234,JD SPORTS INTERNET,5941,Equipment-purchase and rental,-51.99,0.00,-51.99
Regeneration Economy and Growth,Corporate Property and Land,021242,Catering - County Hall,Supplies and Services,342033,Computers and Communications,03-Nov-2021,000007788055240,WWW.NISBETS.COM,5964,Computer hardware,13.94,0.00,13.94
Children and Young Peoples Services,Head of Childrens Social Care,085361,LAC & Permanence Team 1,Supplies and Services,338045,Services,03-Nov-2021,000007788055262,WWW.DURHAM.GOV.UK,9399,Legal expenses 338045,11.00,0.00,11.00
Neighbourhoods and Climate Change,Environmental Services,010900,Fleet - Meadowfield Fleet,Transport,215013,Running Costs of Vehicles,03-Nov-2021,000007788055274,DVLA VEHICLE TAX,9311,Vehicle Excise Duty (VED),277.50,0.00,277.50
Neighbourhoods and Climate Change,Environmental Services,010900,Fleet - Meadowfield Fleet,Transport,215013,Running Costs of Vehicles,03-Nov-2021,000007788055276,DVLA VEHICLE TAX,9311,Vehicle Excise Duty (VED),277.50,0.00,277.50
Neighbourhoods and Climate Change,Environmental Services,010551,Fleet - Chilton Fleet,Transport,215013,Running Costs of Vehicles,03-Nov-2021,000007788055280,DVLA VEHICLE TAX,9311,Vehicle Excise Duty (VED),277.50,0.00,277.50
Neighbourhoods and Climate Change,Environmental Services,010551,Fleet - Chilton Fleet,Transport,215013,Running Costs of Vehicles,03-Nov-2021,000007788055282,DVLA VEHICLE TAX,9311,Vehicle Excise Duty (VED),277.50,0.00,277.50
Neighbourhoods and Climate Change,Environmental Services,010900,Fleet - Meadowfield Fleet,Transport,215013,Running Costs of Vehicles,03-Nov-2021,000007788055286,DVLA VEHICLE TAX,9311,Vehicle Excise Duty (VED),277.50,0.00,277.50
Neighbourhoods and Climate Change,Environmental Services,010561,Fleet - Morrison Busty Fleet,Transport,215013,Running Costs of Vehicles,03-Nov-2021,000007788055288,DVLA VEHICLE TAX,9311,Vehicle Excise Duty (VED),277.50,0.00,277.50
Neighbourhoods and Climate Change,Environmental Services,010864,Fleet - Hackworth Road Fleet,Transport,215013,Running Costs of Vehicles,03-Nov-2021,000007788055290,DVLA VEHICLE TAX,9311,Vehicle Excise Duty (VED),277.50,0.00,277.50
Neighbourhoods and Climate Change,Environmental Services,010900,Fleet - Meadowfield Fleet,Transport,215013,Running Costs of Vehicles,03-Nov-2021,000007788055294,DVLA VEHICLE TAX,9311,Vehicle Excise Duty (VED),277.50,0.00,277.50
Neighbourhoods and Climate Change,Environmental Services,010900,Fleet - Meadowfield Fleet,Transport,215013,Running Costs of Vehicles,03-Nov-2021,000007788055296,DVLA VEHICLE TAX,9311,Vehicle Excise Duty (VED),277.50,0.00,277.50
Neighbourhoods and Climate Change,Environmental Services,010900,Fleet - Meadowfield Fleet,Transport,215013,Running Costs of Vehicles,03-Nov-2021,000007788055298,DVLA VEHICLE TAX,9311,Vehicle Excise Duty (VED),277.50,0.00,277.50
Neighbourhoods and Climate Change,Environmental Services,010900,Fleet - Meadowfield Fleet,Transport,215013,Running Costs of Vehicles,03-Nov-2021,000007788055300,DVLA VEHICLE TAX,9311,Vehicle Excise Duty (VED),277.50,0.00,277.50
Neighbourhoods and Climate Change,Environmental Services,010551,Fleet - Chilton Fleet,Transport,215013,Running Costs of Vehicles,03-Nov-2021,000007788055304,DVLA VEHICLE TAX,9311,Vehicle Excise Duty (VED),277.50,0.00,277.50
Neighbourhoods and Climate Change,Environmental Services,010864,Fleet - Hackworth Road Fleet,Transport,215013,Running Costs of Vehicles,03-Nov-2021,000007788055308,DVLA VEHICLE TAX,9311,Vehicle Excise Duty (VED),277.50,0.00,277.50
Neighbourhoods and Climate Change,Environmental Services,010561,Fleet - Morrison Busty Fleet,Transport,215013,Running Costs of Vehicles,03-Nov-2021,000007788055310,DVLA VEHICLE TAX,9311,Vehicle Excise Duty (VED),277.50,0.00,277.50
Neighbourhoods and Climate Change,Environmental Services,010900,Fleet - Meadowfield Fleet,Transport,215013,Running Costs of Vehicles,03-Nov-2021,000007788055314,DVLA VEHICLE TAX,9311,Vehicle Excise Duty (VED),277.50,0.00,277.50
Neighbourhoods and Climate Change,Environmental Services,010561,Fleet - Morrison Busty Fleet,Transport,215013,Running Costs of Vehicles,03-Nov-2021,000007788055318,DVLA VEHICLE TAX,9311,Vehicle Excise Duty (VED),277.50,0.00,277.50
Neighbourhoods and Climate Change,Environmental Services,010864,Fleet - Hackworth Road Fleet,Transport,215013,Running Costs of Vehicles,03-Nov-2021,000007788055322,DVLA VEHICLE TAX,9311,Vehicle Excise Duty (VED),277.50,0.00,277.50
Neighbourhoods and Climate Change,Environmental Services,010900,Fleet - Meadowfield Fleet,Transport,215013,Running Costs of Vehicles,03-Nov-2021,000007788055326,DVLA VEHICLE TAX,9311,Vehicle Excise Duty (VED),277.50,0.00,277.50
Neighbourhoods and Climate Change,Environmental Services,010900,Fleet - Meadowfield Fleet,Transport,215013,Running Costs of Vehicles,03-Nov-2021,000007788055328,DVLA VEHICLE TAX,9311,Vehicle Excise Duty (VED),277.50,0.00,277.50
Neighbourhoods and Climate Change,Environmental Services,010900,Fleet - Meadowfield Fleet,Transport,215013,Running Costs of Vehicles,03-Nov-2021,000007788055332,DVLA VEHICLE TAX,9311,Vehicle Excise Duty (VED),277.50,0.00,277.50
Neighbourhoods and Climate Change,Environmental Services,010864,Fleet - Hackworth Road Fleet,Transport,215013,Running Costs of Vehicles,03-Nov-2021,000007788055336,DVLA VEHICLE TAX,9311,Vehicle Excise Duty (VED),277.50,0.00,277.50
Neighbourhoods and Climate Change,Environmental Services,010900,Fleet - Meadowfield Fleet,Transport,215013,Running Costs of Vehicles,03-Nov-2021,000007788055340,DVLA VEHICLE TAX,9311,Vehicle Excise Duty (VED),277.50,0.00,277.50
Neighbourhoods and Climate Change,Environmental Services,010900,Fleet - Meadowfield Fleet,Transport,215013,Running Costs of Vehicles,03-Nov-2021,000007788055344,DVLA VEHICLE TAX,9311,Vehicle Excise Duty (VED),277.50,0.00,277.50
Neighbourhoods and Climate Change,Environmental Services,010900,Fleet - Meadowfield Fleet,Transport,215013,Running Costs of Vehicles,03-Nov-2021,000007788055346,DVLA VEHICLE TAX,9311,Vehicle Excise Duty (VED),277.50,0.00,277.50
Neighbourhoods and Climate Change,Environmental Services,010864,Fleet - Hackworth Road Fleet,Transport,215013,Running Costs of Vehicles,03-Nov-2021,000007788055350,DVLA VEHICLE TAX,9311,Vehicle Excise Duty (VED),277.50,0.00,277.50
Regeneration Economy and Growth,Culture Sport and Tourism,054966,Gala Theatre - Gala Productions,Supplies and Services,338047,Services,03-Nov-2021,000007788055384,PAYPAL LARPLEATHER,5945,Direct production costs,55.20,0.00,55.20
Neighbourhoods and Climate Change,Environmental Services,026591,C&G - Hardwick Park,Supplies and Services,304245,Equipment and Materials,03-Nov-2021,000007788055408,B&Q LTD,5211,Materials,64.95,0.00,64.95
Regeneration Economy and Growth,Development and Housing,030771,Durham Advance Flexible Fund,Supplies and Services,304221,Equipment and Materials,03-Nov-2021,000007788055440,SCREWFIX DIR LTD,5211,Direct materials,15.79,0.00,15.79
Children and Young Peoples Services,Head of Early Help Inclusion & Vulnerable Children.,085954,Walworth,Transfer Payments,515002,Social Services Clients,03-Nov-2021,000007788055448,JD SPORTS INTERNET,5941,Pocket money,135.00,0.00,135.00
Children and Young Peoples Services,Head of Childrens Social Care,085334,West Rainton Satelite Home,Supplies and Services,328041,Clothing uniforms and laundry E328,03-Nov-2021,000007788055522,FINLEY LEISURE LTD,7996,Clothing uniforms and laundry,8.20,0.00,8.20
Children and Young Peoples Services,Head of Childrens Social Care,085334,West Rainton Satelite Home,Supplies and Services,328041,Clothing uniforms and laundry E328,03-Nov-2021,000007788055526,ROF59,7996,Clothing uniforms and laundry,8.50,0.00,8.50
Children and Young Peoples Services,Head of Childrens Social Care,085331,New Lea Childrens Home,Supplies and Services,328041,Clothing uniforms and laundry E328,03-Nov-2021,000007788055532,ARGOS SUNDERLAND,5310,Clothing uniforms and laundry,159.99,0.00,159.99
Children and Young Peoples Services,Head of Childrens Social Care,085331,New Lea Childrens Home,Supplies and Services,348037,Subsistence E348,03-Nov-2021,000007788055534,MCDONALDS,5812,Subsistence,5.71,0.00,5.71
Resources BK0010,Procurement Sales & Business Services,065503,Business Support - Spectrum,Supplies and Services,328041,Clothing uniforms and laundry E328,03-Nov-2021,000007788055762,ARGOS LTD,5310,Clothing uniforms and laundry,-249.99,0.00,-249.99
Children and Young Peoples Services,Head of Childrens Social Care,085333,Coxhoe Satelite Home,Supplies and Services,304259,Equipment and Materials,03-Nov-2021,000007788055876,SPORTSDIRECT 264,5941,Equipment-purchase and rental,113.57,0.00,113.57
Children and Young Peoples Services,Head of Childrens Social Care,085351,Framwellgate Moor CU,Supplies and Services,304259,Equipment and Materials,03-Nov-2021,000007788055884,CHESTER-LE-STREET,9399,Equipment-purchase and rental,7.00,0.00,7.00
Children and Young Peoples Services,Head of Childrens Social Care,085332,Middlestone Moor CU,Supplies and Services,324117,Provisions E324,03-Nov-2021,000007788055936,STARBUCKS BISHOP AUCKL,5499,Catering costs - provisions,7.25,0.00,7.25
Children and Young Peoples Services,Head of Childrens Social Care,085332,Middlestone Moor CU,Supplies and Services,304221,Equipment and Materials,03-Nov-2021,000007788055940,SCREWFIX DIR LTD,5211,Direct materials,25.98,0.00,25.98
Children and Young Peoples Services,Head of Childrens Social Care,085332,Middlestone Moor CU,Supplies and Services,328041,Clothing uniforms and laundry E328,03-Nov-2021,000007788055944,POUNDLAND LTD 1554,5310,Clothing uniforms and laundry,21.20,0.00,21.20
Children and Young Peoples Services,Head of Childrens Social Care,085332,Middlestone Moor CU,Supplies and Services,324001,Provisions E324,03-Nov-2021,000007788055948,KASHS OFF LICENCE,5921,Bar supplies,1.50,0.00,1.50
Children and Young Peoples Services,Head of Childrens Social Care,085332,Middlestone Moor CU,Supplies and Services,304259,Equipment and Materials,03-Nov-2021,000007788055950,JD SPORTS PLC,5941,Equipment-purchase and rental,33.10,0.00,33.10
Adult and Health Services,Head of Adults,055309,Peterlee Pathways,Supplies and Services,328041,Clothing uniforms and laundry E328,03-Nov-2021,000007788056010,ARGOS LTD,5310,Clothing uniforms and laundry,20.95,3.49,17.46
Children and Young Peoples Services,Head of Childrens Social Care,085334,West Rainton Satelite Home,Supplies and Services,344033,Telephones,03-Nov-2021,000007788056032,O2 UK PAY & GO,4814,Telephones general-all costs,10.00,0.00,10.00
Regeneration Economy and Growth,Culture Sport and Tourism,054966,Gala Theatre - Gala Productions,Supplies and Services,338047,Services,03-Nov-2021,000007793662452,AMZNMKTPLACE AMAZON.CO,5999,Direct production costs,17.98,0.00,17.98
Regeneration Economy and Growth,Business Durham CL0850,030714,Salvus House,Supplies and Services,304403,Equipment and Materials,03-Nov-2021,000007793662558,AMZNMKTPLACE AMAZON.CO,5999,Other consumables,20.05,3.35,16.70
Dedicated Schools Grant BG0015,DSG Schools Block,418517,Belmont Community School 004185 - Pupil Premium,Supplies and Services,312075,Newspapers books and periodicals E312,03-Nov-2021,000007793662734,AMZNMKTPLACE AMAZON.CO,5999,Text books,42.00,7.00,35.00
Children and Young Peoples Services,Head of Early Help Inclusion & Vulnerable Children.,085957,Secure Management,Supplies and Services,304405,Equipment and Materials,03-Nov-2021,000007793663142,AMZNMKTPLACE AMAZON.CO,5999,Medical supplies,14.99,2.50,12.49
Children and Young Peoples Services,Head of Early Help Inclusion & Vulnerable Children.,088101,Bullion Lane & Brandon Family Centre,Supplies and Services,304403,Equipment and Materials,04-Nov-2021,000007783698878,AMZNMktplace,5999,Other consumables,15.98,2.66,13.32
Children and Young Peoples Services,Head of Early Help Inclusion & Vulnerable Children.,088107,Wheatley Hill & N. Aycliffe Family Centre,Supplies and Services,304403,Equipment and Materials,04-Nov-2021,000007783699072,AMZNMktplace,5999,Other consumables,8.98,1.50,7.48
Children and Young Peoples Services,Head of Early Help Inclusion & Vulnerable Children.,085957,Secure Management,Supplies and Services,332047,Printing Stationery and Gen Off Exps,04-Nov-2021,000007783699090,Amazon.co.uk QZ55R3UT5,5969,Stationery,18.48,3.08,15.40
Children and Young Peoples Services,Head of Early Help Inclusion & Vulnerable Children.,085957,Secure Management,Supplies and Services,332047,Printing Stationery and Gen Off Exps,04-Nov-2021,000007783699090 - 1,Amazon.co.uk QZ55R3UT5,5969,Stationery,0.04,,0.04
Children and Young Peoples Services,Head of Early Help Inclusion & Vulnerable Children.,085962,Aycliffe Secure - Durham,Supplies and Services,384302,Miscellaneous Expenses,04-Nov-2021,000007783699092,Amazon.co.uk ZZ2K53VC5,5969,Activity expenses,34.99,5.83,29.16
Resources BK0010,People & Talent Management,010984,Training and Development,Supplies and Services,384999,Miscellaneous Expenses,04-Nov-2021,000007783699108,Amazon.co.uk BI5D34HV5,5969,Other expenses,5.04,0.84,4.20
Resources BK0010,People & Talent Management,010984,Training and Development,Supplies and Services,384999,Miscellaneous Expenses,04-Nov-2021,000007783699108 - 1,Amazon.co.uk BI5D34HV5,5969,Other expenses,6.28,,6.28
Resources BK0010,People & Talent Management,010984,Training and Development,Supplies and Services,384999,Miscellaneous Expenses,04-Nov-2021,000007783699110,Amazon.co.uk 9B8W73E15,5969,Other expenses,70.56,11.76,58.80
Resources BK0010,People & Talent Management,010984,Training and Development,Supplies and Services,384999,Miscellaneous Expenses,04-Nov-2021,000007783699110 - 1,Amazon.co.uk 9B8W73E15,5969,Other expenses,155.84,,155.84
Resources BK0010,People & Talent Management,010984,Training and Development,Employees,040149,Recruitment Instruction and Training,04-Nov-2021,000007783699112,THOMAS TELFORD LIMIT,8999,Training-all costs,-246.00,0.00,-246.00
Children and Young Peoples Services,Head of Early Help Inclusion & Vulnerable Children.,088109,Dean Bank and Tudhoe Family Centre,Supplies and Services,384302,Miscellaneous Expenses,04-Nov-2021,000007783699168,AMZNMktplace,5999,Activity expenses,10.90,1.82,9.08
Children and Young Peoples Services,Head of Childrens Social Care,085351,Framwellgate Moor CU,Supplies and Services,384999,Miscellaneous Expenses,04-Nov-2021,000007783699210,Amazon.co.uk MF5BR5RI5,5969,Other expenses,15.10,2.52,12.58
Children and Young Peoples Services,Head of Early Help Inclusion & Vulnerable Children.,085957,Secure Management,Premises,108099,Service Repairs and Maintenance,04-Nov-2021,000007783699262,Amazon.co.uk BR5894KY5,5969,General repairs 108099,5.99,1.00,4.99
Adult and Health Services,Head of Adults,055309,Peterlee Pathways,Supplies and Services,304403,Equipment and Materials,04-Nov-2021,000007783699448,AMZNMktplace,5999,Other consumables,7.99,1.33,6.66
Adult and Health Services,Head of Adults,055309,Peterlee Pathways,Supplies and Services,304403,Equipment and Materials,04-Nov-2021,000007783699450,AMZNMktplace,5999,Other consumables,14.99,2.50,12.49
Regeneration Economy and Growth,Business Durham CL0850,030689,Inward Investment and Aftercare,Supplies and Services,336005,Advertising E336,04-Nov-2021,000007788055034,GOOGLE ADS6853017821,7311,Advertising other than for staff,151.59,0.00,151.59
Regeneration Economy and Growth,Business Durham CL0850,030689,Inward Investment and Aftercare,Supplies and Services,342222,Computers and Communications,04-Nov-2021,000007788055038,FASTHOSTS INTERNET,4816,Comp hardware purch-network servers,7.54,0.00,7.54
Children and Young Peoples Services,Head of Education and Skills,071801,Selby Cottage Childcare Centre,Supplies and Services,324117,Provisions E324,04-Nov-2021,000007788055042,TESCO STORES 2278,5411,Catering costs - provisions,46.06,0.00,46.06
Resources BK0010,Digital and Customer Services,065481,Technical Services 065481,Employees,040149,Recruitment Instruction and Training,04-Nov-2021,000007788055104,Pluralsight,8299,Training-all costs,294.00,0.00,294.00
Children and Young Peoples Services,Head of Childrens Social Care,085561,Social Work Academy,Supplies and Services,324117,Provisions E324,04-Nov-2021,000007788055108,SP SPIFFY,5399,Catering costs - provisions,140.00,0.00,140.00
Children and Young Peoples Services,Head of Childrens Social Care,085357,LAC Bespoke Placements,Supplies and Services,304403,Equipment and Materials,04-Nov-2021,000007788055168,AMZNMktplace,5999,Other consumables,199.96,0.00,199.96
Children and Young Peoples Services,Head of Childrens Social Care,085331,New Lea Childrens Home,Transport,215995,Running Costs of Vehicles,04-Nov-2021,000007788055184,CHESTER ROAD SERVICE S,5541,Vehicle running expenses,20.00,0.00,20.00
Children and Young Peoples Services,Head of Childrens Social Care,085331,New Lea Childrens Home,Supplies and Services,304999,Equipment and Materials,04-Nov-2021,000007788055188,HOME BARGAINS,5251,Misc equipment tools and materials,89.74,0.00,89.74
Children and Young Peoples Services,Head of Childrens Social Care,085331,New Lea Childrens Home,Supplies and Services,304999,Equipment and Materials,04-Nov-2021,000007788055190,HOME BARGAINS,5251,Misc equipment tools and materials,7.22,0.00,7.22
Children and Young Peoples Services,Head of Childrens Social Care,085331,New Lea Childrens Home,Supplies and Services,324117,Provisions E324,04-Nov-2021,000007788055194,ASDA SUPERSTORE,5411,Catering costs - provisions,13.45,0.00,13.45
Children and Young Peoples Services,Head of Early Help Inclusion & Vulnerable Children.,071670,Willington Childrens Centre,Supplies and Services,304259,Equipment and Materials,04-Nov-2021,000007788055200,Amazon.co.uk LY75G1GK5,5969,Equipment-purchase and rental,89.98,15.00,74.98
Regeneration Economy and Growth,Development and Housing,030544,Rural Employability - Client Engagement,Employees,040149,Recruitment Instruction and Training,04-Nov-2021,000007788055224,Cre8ive Graphics Limit,8999,Training-all costs,72.48,12.08,60.40
Regeneration Economy and Growth,Development and Housing,030544,Rural Employability - Client Engagement,Employees,040149,Recruitment Instruction and Training,04-Nov-2021,000007788055224 - 1,Cre8ive Graphics Limit,8999,Training-all costs,62.47,,62.47
Children and Young Peoples Services,Head of Early Help Inclusion & Vulnerable Children.,085952,Secure Education,Supplies and Services,304403,Equipment and Materials,04-Nov-2021,000007788055230,AMZNMktplace,5999,Other consumables,12.00,2.00,10.00
Regeneration Economy and Growth,Culture Sport and Tourism,054966,Gala Theatre - Gala Productions,Supplies and Services,338047,Services,04-Nov-2021,000007788055376,AMZNMktplace,5999,Direct production costs,15.32,0.00,15.32
Regeneration Economy and Growth,Culture Sport and Tourism,054813,Gala Theatre - Technical,Supplies and Services,304999,Equipment and Materials,04-Nov-2021,000007788055388,SHUTTERSTOCK IRELAND L,7333,Misc equipment tools and materials,70.80,0.00,70.80
Regeneration Economy and Growth,Culture Sport and Tourism,054813,Gala Theatre - Technical,Supplies and Services,340001,Postages E340,04-Nov-2021,000007788055392,DPD WL,4215,Postages,14.39,0.00,14.39
Regeneration Economy and Growth,Culture Sport and Tourism,054966,Gala Theatre - Gala Productions,Supplies and Services,338047,Services,04-Nov-2021,000007788055396,PETER EVANS STUDIO,5046,Direct production costs,228.24,0.00,228.24
Regeneration Economy and Growth,Culture Sport and Tourism,011207,Physical Activity 011207,Supplies and Services,352001,Conference Expenses,04-Nov-2021,000007788055420,RETENTIONGURU.COM,8999,Conferencesseminars fees etc,37.08,0.00,37.08
Neighbourhoods and Climate Change,Environmental Services,010301,C&G - North Grounds Maintenance,Supplies and Services,304221,Equipment and Materials,04-Nov-2021,000007788055426,GREENHAM TRADING LTD,5085,Direct materials,204.96,34.16,170.80
Children and Young Peoples Services,Head of Early Help Inclusion & Vulnerable Children.,085956,Lumley,Transfer Payments,515002,Social Services Clients,04-Nov-2021,000007788055452,Freedom Sportsline Ltd,5661,Pocket money,54.99,0.00,54.99
Children and Young Peoples Services,Head of Early Help Inclusion & Vulnerable Children.,085956,Lumley,Transfer Payments,515002,Social Services Clients,04-Nov-2021,000007788055456,SPORTSDIRECT.COM,5691,Pocket money,158.96,0.00,158.96
Children and Young Peoples Services,Head of Early Help Inclusion & Vulnerable Children.,085962,Aycliffe Secure - Durham,Supplies and Services,384302,Miscellaneous Expenses,04-Nov-2021,000007788055458,AMZNMktplace,5999,Activity expenses,4.98,0.83,4.15
Children and Young Peoples Services,Head of Early Help Inclusion & Vulnerable Children.,085954,Walworth,Supplies and Services,384302,Miscellaneous Expenses,04-Nov-2021,000007788055462,AMZNMktplace,5999,Activity expenses,96.66,0.00,96.66
Neighbourhoods and Climate Change,Environmental Services,011060,C&G - Hardwick Park Catering,Supplies and Services,324117,Provisions E324,04-Nov-2021,000007788055478,JR HOLLAND FOODSERVICE,5499,Catering costs - provisions,107.31,0.00,107.31
Resources BK0010,People & Talent Management,010984,Training and Development,Employees,040149,Recruitment Instruction and Training,04-Nov-2021,000007788055490,NCS VUE WAMITAB TEST,8299,Training-all costs,147.00,0.00,147.00
Regeneration Economy and Growth,Development and Housing,030771,Durham Advance Flexible Fund,Transport,235057,Public Transport,04-Nov-2021,000007788055556,3C_ NSL Durham WAP,7523,Staff travelling,1.20,0.20,1.00
Regeneration Economy and Growth,Development and Housing,030771,Durham Advance Flexible Fund,Employees,040149,Recruitment Instruction and Training,04-Nov-2021,000007788055558,iZ THE WITHAM HAL,8398,Training-all costs,4.70,0.00,4.70
Children and Young Peoples Services,Head of Childrens Social Care,085351,Framwellgate Moor CU,Supplies and Services,304403,Equipment and Materials,04-Nov-2021,000007788055616,AMZNMktplace,5999,Other consumables,26.65,4.44,22.21
Children and Young Peoples Services,Head of Childrens Social Care,085351,Framwellgate Moor CU,Supplies and Services,304403,Equipment and Materials,04-Nov-2021,000007788055620,AMZNMktplace,5999,Other consumables,6.86,1.14,5.72
Regeneration Economy and Growth,Corporate Property and Land,030691,Catering - Durham Dales Centre,Supplies and Services,324117,Provisions E324,04-Nov-2021,000007788055632,JR HOLLAND FOODSERVICE,5499,Catering costs - provisions,4.70,0.00,4.70
Resources BK0010,Procurement Sales & Business Services,065503,Business Support - Spectrum,Supplies and Services,324117,Provisions E324,04-Nov-2021,000007788055656,WILKO.COM,5399,Catering costs - provisions,100.20,0.00,100.20
Neighbourhoods and Climate Change,Environmental Services,031200,North Pennines Core,Transport,235057,Public Transport,04-Nov-2021,000007788055670,LNE RAILWAY YRK SST,4112,Staff travelling,17.10,0.00,17.10
Neighbourhoods and Climate Change,Environmental Services,031200,North Pennines Core,Transport,235057,Public Transport,04-Nov-2021,000007788055684,LNER CAR PARK DHM,4112,Staff travelling,5.00,0.00,5.00
Neighbourhoods and Climate Change,Environmental Services,031200,North Pennines Core,Supplies and Services,348037,Subsistence E348,04-Nov-2021,000007788055686,MICKLEGATE FISHERIES,5814,Subsistence,5.40,0.00,5.40
Children and Young Peoples Services,Head of Childrens Social Care,085334,West Rainton Satelite Home,Supplies and Services,384999,Miscellaneous Expenses,04-Nov-2021,000007788055690,Lush UK,5977,Other expenses,15.90,0.00,15.90
Children and Young Peoples Services,Head of Early Help Inclusion & Vulnerable Children.,085957,Secure Management,Supplies and Services,304083,Equipment and Materials,04-Nov-2021,000007788055722,AMZNMktplace,5999,Catering equipment,106.15,17.70,88.45
Resources BK0010,Procurement Sales & Business Services,065503,Business Support - Spectrum,Supplies and Services,324117,Provisions E324,04-Nov-2021,000007788055772,ASDA STORES LTD,5411,Catering costs - provisions,32.20,0.00,32.20
Resources BK0010,Procurement Sales & Business Services,065503,Business Support - Spectrum,Supplies and Services,304403,Equipment and Materials,04-Nov-2021,000007788055778,AMZNMktplace,5999,Other consumables,19.92,3.32,16.60
Resources BK0010,Procurement Sales & Business Services,065503,Business Support - Spectrum,Supplies and Services,304403,Equipment and Materials,04-Nov-2021,000007788055778 - 1,AMZNMktplace,5999,Other consumables,0.04,,0.04
Regeneration Economy and Growth,Culture Sport and Tourism,054235,Bishop Auckland Town Hall Cafe,Supplies and Services,324117,Provisions E324,04-Nov-2021,000007788055796,JR HOLLAND FOODSERVICE,5499,Catering costs - provisions,70.00,0.00,70.00
Regeneration Economy and Growth,Communications Management,060270,Communications and Marketing,Supplies and Services,336005,Advertising E336,04-Nov-2021,000007788055810,FACEBK X8VJR97QP2,7311,Advertising other than for staff,17.00,0.00,17.00
Neighbourhoods and Climate Change,Community Protection,010809,Community Protection Management,Supplies and Services,304221,Equipment and Materials,04-Nov-2021,000007788055852,BES LTD,5074,Direct materials,198.57,0.00,198.57
Neighbourhoods and Climate Change,Environmental Services,010301,C&G - North Grounds Maintenance,Supplies and Services,304403,Equipment and Materials,04-Nov-2021,000007788055866,BESCOL,5231,Other consumables,39.60,0.00,39.60
Neighbourhoods and Climate Change,Environmental Services,010301,C&G - North Grounds Maintenance,Supplies and Services,304999,Equipment and Materials,04-Nov-2021,000007788055874,Harelaw sawmill delive,5251,Misc equipment tools and materials,149.82,0.00,149.82
Children and Young Peoples Services,Head of Early Help Inclusion & Vulnerable Children.,085801,CDYJS - Support,Supplies and Services,384237,Miscellaneous Expenses,04-Nov-2021,000007788055888,HTTPS://WWW.DURHAMKART,7999,Recreational exps outings parties,100.00,0.00,100.00
Children and Young Peoples Services,Head of Childrens Social Care,085333,Coxhoe Satelite Home,Supplies and Services,324117,Provisions E324,04-Nov-2021,000007788055900,TESCO STORES 2916,5411,Catering costs - provisions,63.02,0.00,63.02
Regeneration Economy and Growth,Development and Housing,030554,International Relations 030554,Transport,235057,Public Transport,04-Nov-2021,000007788055930,LNE RAILWAY DHM STN,4112,Staff travelling,9.70,0.00,9.70
Children and Young Peoples Services,Head of Childrens Social Care,085334,West Rainton Satelite Home,Supplies and Services,348037,Subsistence E348,04-Nov-2021,000007788055962,BUFFET KING,5812,Subsistence,44.70,0.00,44.70
Children and Young Peoples Services,Head of Childrens Social Care,085334,West Rainton Satelite Home,Supplies and Services,304403,Equipment and Materials,04-Nov-2021,000007788056006,AMZNMktplace,5999,Other consumables,309.48,0.00,309.48
Adult and Health Services,Head of Adults,055309,Peterlee Pathways,Supplies and Services,304403,Equipment and Materials,04-Nov-2021,000007788056012,AMZNMktplace,5999,Other consumables,62.55,10.43,52.12
Adult and Health Services,Head of Adults,055309,Peterlee Pathways,Supplies and Services,324117,Provisions E324,04-Nov-2021,000007788056014,WILKO RETAIL LIMITED,5399,Catering costs - provisions,12.00,0.00,12.00
Adult and Health Services,Head of Adults,055309,Peterlee Pathways,Supplies and Services,328041,Clothing uniforms and laundry E328,04-Nov-2021,000007788056016,W BOYES & CO LTD NEWTO,5310,Clothing uniforms and laundry,19.99,0.00,19.99
Adult and Health Services,Head of Adults,055309,Peterlee Pathways,Supplies and Services,328041,Clothing uniforms and laundry E328,04-Nov-2021,000007788056018,W BOYES & CO LTD NEWTO,5310,Clothing uniforms and laundry,11.17,0.00,11.17
Adult and Health Services,Head of Adults,055309,Peterlee Pathways,Supplies and Services,338057,Services,04-Nov-2021,000007788056022,TRIMBIO LTD,5047,Medical fees 338057,118.80,19.80,99.00
Neighbourhoods and Climate Change,Environmental Services,031200,North Pennines Core,Supplies and Services,340001,Postages E340,04-Nov-2021,000007788056038,POST OFFICE COUNTER,9402,Postages,2.70,0.00,2.70
Children and Young Peoples Services,Head of Early Help Inclusion & Vulnerable Children.,088113,Seaham & Laurel Avenue Family Centre,Supplies and Services,324117,Provisions E324,04-Nov-2021,000007788056052,TESCO STORES 2371,5411,Catering costs - provisions,18.73,0.00,18.73
Resources BK0010,Digital and Customer Services,065487,ICT Telephony Recharges,Supplies and Services,304403,Equipment and Materials,04-Nov-2021,000007793661802,AMZNMKTPLACE AMAZON.CO,5999,Other consumables,7.99,1.33,6.66
Dedicated Schools Grant BG0015,DSG Schools Block,110011,The Woodlands 1100 - Hair & Beauty,Supplies and Services,304259,Equipment and Materials,04-Nov-2021,000007793661818,AMZNMKTPLACE AMAZON.CO,5999,Equipment-purchase and rental,420.99,70.17,350.82
Regeneration Economy and Growth,Culture Sport and Tourism,054320,Easington Colliery Library,Supplies and Services,304252,Equipment and Materials,04-Nov-2021,000007793661962,AMZNMKTPLACE AMAZON.CO,5999,Equipment-repairsserviceinsurance,5.74,0.96,4.78
Children and Young Peoples Services,Head of Early Help Inclusion & Vulnerable Children.,071569,Woodhouse Close Childrens Centre,Supplies and Services,304259,Equipment and Materials,04-Nov-2021,000007793662182,AMZNMKTPLACE AMAZON.CO,5999,Equipment-purchase and rental,9.99,1.67,8.32
Regeneration Economy and Growth,Culture Sport and Tourism,054812,Gala Theatre - Catering etc,Supplies and Services,384999,Miscellaneous Expenses,04-Nov-2021,000007793662204,G M PACKAGING UK LIMIT,5046,Other expenses,139.06,0.00,139.06
Children and Young Peoples Services,Head of Education and Skills,071732,Dean Bank Childcare,Supplies and Services,324117,Provisions E324,04-Nov-2021,000007793662436,Wm Morrisons Store Pic,5411,Catering costs - provisions,8.00,0.00,8.00
Regeneration Economy and Growth,Development and Housing,030771,Durham Advance Flexible Fund,Supplies and Services,348037,Subsistence E348,04-Nov-2021,000007793662534,TOWN HALL,9399,Subsistence,3.30,0.00,3.30
Regeneration Economy and Growth,Business Durham CL0850,030714,Salvus House,Supplies and Services,304403,Equipment and Materials,04-Nov-2021,000007793662562,AMZNMKTPLACE AMAZON.CO,5999,Other consumables,20.05,3.35,16.70
Children and Young Peoples Services,Head of Early Help Inclusion & Vulnerable Children.,085965,Barnard,Supplies and Services,384302,Miscellaneous Expenses,04-Nov-2021,000007793662564,WALLPAPERDIRECT.CO,5211,Activity expenses,64.92,0.00,64.92
Children and Young Peoples Services,Head of Early Help Inclusion & Vulnerable Children.,085962,Aycliffe Secure - Durham,Supplies and Services,340001,Postages E340,04-Nov-2021,000007793662576,JD SPORTS INTERNET,5941,Postages,-6.99,0.00,-6.99
Neighbourhoods and Climate Change,Environmental Services,011060,C&G - Hardwick Park Catering,Supplies and Services,324117,Provisions E324,04-Nov-2021,000007793662596,BATLEYS PERTH,5300,Catering costs - provisions,58.86,9.81,49.05
Neighbourhoods and Climate Change,Environmental Services,011060,C&G - Hardwick Park Catering,Supplies and Services,324117,Provisions E324,04-Nov-2021,000007793662596 - 1,BATLEYS PERTH,5300,Catering costs - provisions,38.77,,38.77
Neighbourhoods and Climate Change,Environmental Services,010367,C&G - South Grounds Maintenance,Transport,235057,Public Transport,04-Nov-2021,000007793662794,THE NEC,7523,Staff travelling,16.00,0.00,16.00
Children and Young Peoples Services,Head of Childrens Social Care,085351,Framwellgate Moor CU,Supplies and Services,324117,Provisions E324,04-Nov-2021,000007793662932,SAINSBURY`S S/MKT,5411,Catering costs - provisions,57.45,0.00,57.45
Resources BK0010,Procurement Sales & Business Services,065503,Business Support - Spectrum,Supplies and Services,324117,Provisions E324,04-Nov-2021,000007793663020,SAINSBURYS.CO.UK,5411,Catering costs - provisions,49.50,0.00,49.50
Children and Young Peoples Services,Head of Childrens Social Care,085334,West Rainton Satelite Home,Supplies and Services,304999,Equipment and Materials,04-Nov-2021,000007793663088,Namco Uk Ltd,7929,Misc equipment tools and materials,7.55,0.00,7.55
Children and Young Peoples Services,Head of Childrens Social Care,085331,New Lea Childrens Home,Supplies and Services,348037,Subsistence E348,04-Nov-2021,000007793663488,CHURCH MOUSE,5812,Subsistence,122.50,0.00,122.50
Children and Young Peoples Services,Head of Childrens Social Care,085334,West Rainton Satelite Home,Supplies and Services,304259,Equipment and Materials,04-Nov-2021,000007793663510,SPORTSDIRECT.COM,5941,Equipment-purchase and rental,12.99,0.00,12.99
Children and Young Peoples Services,Head of Childrens Social Care,085334,West Rainton Satelite Home,Supplies and Services,304259,Equipment and Materials,04-Nov-2021,000007793663512,SPORTSDIRECT.COM,5941,Equipment-purchase and rental,53.00,0.00,53.00
Children and Young Peoples Services,Head of Childrens Social Care,085334,West Rainton Satelite Home,Supplies and Services,304999,Equipment and Materials,04-Nov-2021,000007793663514,CLIP N CLIMB,7929,Misc equipment tools and materials,17.00,0.00,17.00
Regeneration Economy and Growth,Corporate Property and Land,021235,Catering - Wharton Park,Supplies and Services,324117,Provisions E324,04-Nov-2021,000009847026481,BATLEYS PERTH,5300,Catering costs - provisions,68.40,11.40,57.00
Regeneration Economy and Growth,Corporate Property and Land,021235,Catering - Wharton Park,Supplies and Services,324117,Provisions E324,04-Nov-2021,000009847026481 - 1,BATLEYS PERTH,5300,Catering costs - provisions,4.27,,4.27
Dedicated Schools Grant BG0015,DSG Schools Block,417604,Greenfield Community College 004176 - Geography,Supplies and Services,332047,Printing Stationery and Gen Off Exps,05-Nov-2021,000007788055122,AMZNMktplace,5999,Stationery,135.40,22.60,112.80
Regeneration Economy and Growth,Culture Sport and Tourism,054991,COMF Bids - CS&T Events Programme,Supplies and Services,338047,Services,05-Nov-2021,000007788055136,AMZNMktplace,5999,Direct production costs,47.88,7.98,39.90
Regeneration Economy and Growth,Culture Sport and Tourism,054991,COMF Bids - CS&T Events Programme,Supplies and Services,338047,Services,05-Nov-2021,000007788055136 - 1,AMZNMktplace,5999,Direct production costs,0.06,,0.06
Children and Young Peoples Services,Head of Early Help Inclusion & Vulnerable Children.,085957,Secure Management,Supplies and Services,384999,Miscellaneous Expenses,05-Nov-2021,000007788055232,Amazon.co.uk S41D74T45,5969,Other expenses,9.38,1.56,7.82
Regeneration Economy and Growth,Culture Sport and Tourism,011207,Physical Activity 011207,Supplies and Services,352001,Conference Expenses,05-Nov-2021,000007788055424,RETENTIONGURU.COM,8999,Conferencesseminars fees etc,1.02,0.00,1.02
Children and Young Peoples Services,Head of Early Help Inclusion & Vulnerable Children.,085956,Lumley,Transfer Payments,515002,Social Services Clients,05-Nov-2021,000007788055464,AMZNMktplace,5999,Pocket money,5.10,0.85,4.25
Children and Young Peoples Services,Head of Early Help Inclusion & Vulnerable Children.,085956,Lumley,Transfer Payments,515002,Social Services Clients,05-Nov-2021,000007788055464 - 1,AMZNMktplace,5999,Pocket money,9.90,,9.90
Children and Young Peoples Services,Head of Early Help Inclusion & Vulnerable Children.,085956,Lumley,Transfer Payments,515002,Social Services Clients,05-Nov-2021,000007788055468,AMZNMktplace,5999,Pocket money,8.85,1.48,7.37
Children and Young Peoples Services,Head of Early Help Inclusion & Vulnerable Children.,085956,Lumley,Transfer Payments,515002,Social Services Clients,05-Nov-2021,000007788055470,AMZNMktplace,5999,Pocket money,9.00,1.50,7.50
Children and Young Peoples Services,Head of Early Help Inclusion & Vulnerable Children.,085956,Lumley,Transfer Payments,515002,Social Services Clients,05-Nov-2021,000007788055470 - 1,AMZNMktplace,5999,Pocket money,59.97,,59.97
Children and Young Peoples Services,Head of Childrens Social Care,085351,Framwellgate Moor CU,Supplies and Services,304403,Equipment and Materials,05-Nov-2021,000007788055624,AMZNMktplace,5999,Other consumables,8.75,1.46,7.29
Children and Young Peoples Services,Head of Childrens Social Care,085351,Framwellgate Moor CU,Supplies and Services,304403,Equipment and Materials,05-Nov-2021,000007788055626,AMZNMktplace,5999,Other consumables,34.95,5.83,29.12
Adult and Health Services,Head of Adults,055608,LD Shared Lives,Supplies and Services,304403,Equipment and Materials,05-Nov-2021,000007788055754,AMZNMktplace,5999,Other consumables,23.99,4.00,19.99
Regeneration Economy and Growth,Business Durham CL0850,030689,Inward Investment and Aftercare,Supplies and Services,336005,Advertising E336,05-Nov-2021,000007793661668,LINKEDIN-721 1018684,7311,Advertising other than for staff,54.08,0.00,54.08
Children and Young Peoples Services,Head of Education and Skills,071801,Selby Cottage Childcare Centre,Supplies and Services,324117,Provisions E324,05-Nov-2021,000007793661734,SP TOTTER AND TUMBLE,5399,Catering costs - provisions,250.00,0.00,250.00
Dedicated Schools Grant BG0015,DSG Schools Block,110013,The Woodlands 1100 - Primary,Supplies and Services,384409,Miscellaneous Expenses,05-Nov-2021,000007793661824,DURHAM CLIMBING CENTRE,7032,Educational visits,322.50,0.00,322.50
Children and Young Peoples Services,Head of Childrens Social Care,085501,Child Care Cases Legal Expenses,Supplies and Services,304403,Equipment and Materials,05-Nov-2021,000007793661904,STOCKTON BOROUGH COUNC,9399,Other consumables,11.00,0.00,11.00
Children and Young Peoples Services,Head of Childrens Social Care,085501,Child Care Cases Legal Expenses,Supplies and Services,304403,Equipment and Materials,05-Nov-2021,000007793661910,DARLINGTON BC INTERNET,9399,Other consumables,11.00,0.00,11.00
Children and Young Peoples Services,Head of Education and Skills,075029,Poverty Action Group,Supplies and Services,364301,Grants to Voluntary Organisations,05-Nov-2021,000007793661920,WWW.GONORTHEAST.CO.UK,4111,Hardship,20.00,0.00,20.00
Children and Young Peoples Services,Head of Education and Skills,075029,Poverty Action Group,Supplies and Services,364301,Grants to Voluntary Organisations,05-Nov-2021,000007793661924,WWW.GONORTHEAST.CO.UK,4111,Hardship,20.00,0.00,20.00
Children and Young Peoples Services,Head of Education and Skills,075029,Poverty Action Group,Supplies and Services,364301,Grants to Voluntary Organisations,05-Nov-2021,000007793661926,WWW.GONORTHEAST.CO.UK,4111,Hardship,20.00,0.00,20.00
Regeneration Economy and Growth,Corporate Property and Land,021242,Catering - County Hall,Supplies and Services,324117,Provisions E324,05-Nov-2021,000007793662188,JR HOLLAND FOODSERVICE,5499,Catering costs - provisions,53.78,0.00,53.78
Regeneration Economy and Growth,Development and Housing,030771,Durham Advance Flexible Fund,Supplies and Services,328041,Clothing uniforms and laundry E328,05-Nov-2021,000007793662192,ARGOS LTD,5310,Clothing uniforms and laundry,53.94,0.00,53.94
Regeneration Economy and Growth,Culture Sport and Tourism,054812,Gala Theatre - Catering etc,Supplies and Services,324117,Provisions E324,05-Nov-2021,000007793662208,JR HOLLAND FOODSERVICE,5499,Catering costs - provisions,29.74,0.00,29.74
Children and Young Peoples Services,Head of Childrens Social Care,085361,LAC & Permanence Team 1,Supplies and Services,338045,Services,05-Nov-2021,000007793662248,HM PASSPORT OFFICE,9399,Legal expenses 338045,49.00,0.00,49.00
Children and Young Peoples Services,Head of Early Help Inclusion & Vulnerable Children.,074000,National Supporting Families Programme,Transfer Payments,525033,Other,05-Nov-2021,000007793662294,Frank`s Flooring Bisho,5713,Grants to individuals,250.00,0.00,250.00
Children and Young Peoples Services,Head of Childrens Social Care,085358,Orchard House Sacriston Solo Home,Supplies and Services,384999,Miscellaneous Expenses,05-Nov-2021,000007793662352,Amazon.co.uk 588NF6UW5,5969,Other expenses,11.41,0.00,11.41
Children and Young Peoples Services,Head of Education and Skills,071732,Dean Bank Childcare,Supplies and Services,304403,Equipment and Materials,05-Nov-2021,000007793662438,AMZNMktplace,5999,Other consumables,23.99,0.00,23.99
Neighbourhoods and Climate Change,Environmental Services,010301,C&G - North Grounds Maintenance,Supplies and Services,304221,Equipment and Materials,05-Nov-2021,000007793662538,DAVID BROWN TRANSPORT,5085,Direct materials,500.00,0.00,500.00
Children and Young Peoples Services,Head of Early Help Inclusion & Vulnerable Children.,085965,Barnard,Supplies and Services,324117,Provisions E324,05-Nov-2021,000007793662568,TESCO STORES 6329,5411,Catering costs - provisions,63.60,0.00,63.60
Resources BK0010,People & Talent Management,010984,Training and Development,Employees,040149,Recruitment Instruction and Training,05-Nov-2021,000007793662614,NCS VUE WAMITAB TEST,8299,Training-all costs,147.00,0.00,147.00
Dedicated Schools Grant BG0015,DSG Schools Block,418516,Belmont Community School 004185 - Non Curriculum,Supplies and Services,384984,Miscellaneous Expenses,05-Nov-2021,000007793662742,AMZNMKTPLACE AMAZON.CO,5999,Other school expenses,37.62,6.27,31.35
Dedicated Schools Grant BG0015,DSG Schools Block,418516,Belmont Community School 004185 - Non Curriculum,Supplies and Services,384984,Miscellaneous Expenses,05-Nov-2021,000007793662742 - 1,AMZNMKTPLACE AMAZON.CO,5999,Other school expenses,0.03,,0.03
Dedicated Schools Grant BG0015,DSG Schools Block,418517,Belmont Community School 004185 - Pupil Premium,Supplies and Services,304403,Equipment and Materials,05-Nov-2021,000007793662746,ARGOS LTD,5310,Other consumables,65.00,10.83,54.17
Regeneration Economy and Growth,Development and Housing,030554,International Relations 030554,Supplies and Services,304403,Equipment and Materials,05-Nov-2021,000007793662754,BEAMISH MUSEUM LTD,5947,Other consumables,51.45,0.00,51.45
Children and Young Peoples Services,Head of Early Help Inclusion & Vulnerable Children.,088108,Spennymoor & Shildon Intensive Family Support Team,Supplies and Services,364301,Grants to Voluntary Organisations,05-Nov-2021,000007793662762,ARGOS BISHOP AUCKL,5310,Hardship,14.99,0.00,14.99
Regeneration Economy and Growth,Corporate Property and Land,010814,Bldg Serv - R&M General,Supplies and Services,304403,Equipment and Materials,05-Nov-2021,000007793662890,AMZNMktplace,5999,Other consumables,23.26,3.88,19.38
Children and Young Peoples Services,Head of Childrens Social Care,085333,Coxhoe Satelite Home,Supplies and Services,324117,Provisions E324,05-Nov-2021,000007793662902,TESCO STORES 2371,5411,Catering costs - provisions,168.20,0.00,168.20
Children and Young Peoples Services,Head of Childrens Social Care,085351,Framwellgate Moor CU,Supplies and Services,304403,Equipment and Materials,05-Nov-2021,000007793662936,AMZNMktplace,5999,Other consumables,23.73,3.96,19.77
Children and Young Peoples Services,Head of Childrens Social Care,085351,Framwellgate Moor CU,Supplies and Services,384999,Miscellaneous Expenses,05-Nov-2021,000007793662938,Amazon.co.uk V32BR6YT5,5969,Other expenses,43.85,7.31,36.54
Regeneration Economy and Growth,Corporate Property and Land,030691,Catering - Durham Dales Centre,Supplies and Services,324117,Provisions E324,05-Nov-2021,000007793662950,JR HOLLAND FOODSERVICE,5499,Catering costs - provisions,65.18,0.00,65.18
Regeneration Economy and Growth,Corporate Property and Land,030691,Catering - Durham Dales Centre,Supplies and Services,324117,Provisions E324,05-Nov-2021,000007793662954,JR HOLLAND FOODSERVICE,5499,Catering costs - provisions,13.00,0.00,13.00
Resources BK0010,Procurement Sales & Business Services,065503,Business Support - Spectrum,Transport,235057,Public Transport,05-Nov-2021,000007793663022,WWW.GONORTHEAST.CO.UK,4111,Staff travelling,20.00,0.00,20.00
Resources BK0010,Procurement Sales & Business Services,065503,Business Support - Spectrum,Transport,235057,Public Transport,05-Nov-2021,000007793663024,WWW.GONORTHEAST.CO.UK,4111,Staff travelling,4.00,0.00,4.00
Resources BK0010,Procurement Sales & Business Services,065503,Business Support - Spectrum,Transport,235057,Public Transport,05-Nov-2021,000007793663028,WWW.GONORTHEAST.CO.UK,4111,Staff travelling,4.00,0.00,4.00
Adult and Health Services,Head of Adults,055643,Hawthorn House LD Respite Unit,Supplies and Services,324117,Provisions E324,05-Nov-2021,000007793663042,JR HOLLAND FOODSERVICE,5499,Catering costs - provisions,18.68,0.00,18.68
Adult and Health Services,Head of Adults,055643,Hawthorn House LD Respite Unit,Supplies and Services,324117,Provisions E324,05-Nov-2021,000007793663046,JR HOLLAND FOODSERVICE,5499,Catering costs - provisions,22.74,0.00,22.74
Children and Young Peoples Services,Head of Education and Skills,078100,Curric and Professional Development 078100,Supplies and Services,384999,Miscellaneous Expenses,05-Nov-2021,000007793663078,Amazon.co.uk UU2L955T5,5969,Other expenses,17.08,0.00,17.08
Children and Young Peoples Services,Head of Early Help Inclusion & Vulnerable Children.,088102,Consett & Stanley Intensive Family Support Team,Supplies and Services,384302,Miscellaneous Expenses,05-Nov-2021,000007793663098,PAYPAL LINQI0617,5732,Activity expenses,25.96,0.00,25.96
Children and Young Peoples Services,Head of Early Help Inclusion & Vulnerable Children.,088103,Stanley & Moorside Family Centre,Supplies and Services,364301,Grants to Voluntary Organisations,05-Nov-2021,000007793663102,ASDA GEORGE COM LEEDS,5411,Hardship,295.95,0.00,295.95
Children and Young Peoples Services,Head of Childrens Social Care,085363,Childrens Permanence Team,Supplies and Services,338045,Services,05-Nov-2021,000007793663104,Durham County CNCL,9399,Legal expenses 338045,22.00,0.00,22.00
Regeneration Economy and Growth,Culture Sport and Tourism,011217,Commercial Management 011217,Supplies and Services,342033,Computers and Communications,05-Nov-2021,000007793663116,Flextronics,7379,Computer hardware,142.56,0.00,142.56
Resources BK0010,Digital and Customer Services,065335,School Services - Implementations,Supplies and Services,304639,Equipment and Materials,05-Nov-2021,000007793663120,NETS zandparts.com,4812,Technicians-supplies,-31.49,0.00,-31.49
Children and Young Peoples Services,Head of Early Help Inclusion & Vulnerable Children.,085957,Secure Management,Supplies and Services,304405,Equipment and Materials,05-Nov-2021,000007793663144,AMZNMktplace,5999,Medical supplies,7.99,1.33,6.66
Resources BK0010,Procurement Sales & Business Services,065503,Business Support - Spectrum,Supplies and Services,384999,Miscellaneous Expenses,05-Nov-2021,000007793663174,Amazon.co.uk 4V6YR47L5,5969,Other expenses,87.52,14.59,72.93
Resources BK0010,Procurement Sales & Business Services,065503,Business Support - Spectrum,Supplies and Services,324117,Provisions E324,05-Nov-2021,000007793663180,ASDA STORES LTD,5411,Catering costs - provisions,73.17,0.00,73.17
Resources BK0010,Procurement Sales & Business Services,065503,Business Support - Spectrum,Supplies and Services,328041,Clothing uniforms and laundry E328,05-Nov-2021,000007793663182,ARGOS LTD,5310,Clothing uniforms and laundry,53.94,0.00,53.94
Regeneration Economy and Growth,Transport and Contracted Services,031701,Care Connect All Localities,Transport,215995,Running Costs of Vehicles,05-Nov-2021,000007793663188,JET CHILTON,5541,Vehicle running expenses,48.00,0.00,48.00
Children and Young Peoples Services,Head of Early Help Inclusion & Vulnerable Children.,085801,CDYJS - Support,Supplies and Services,384999,Miscellaneous Expenses,05-Nov-2021,000007793663268,Amazon.co.uk NA96Y9AH5,5969,Other expenses,7.32,1.22,6.10
Children and Young Peoples Services,Head of Early Help Inclusion & Vulnerable Children.,085801,CDYJS - Support,Supplies and Services,328041,Clothing uniforms and laundry E328,05-Nov-2021,000007793663270,PRINTERPIX UK LIMITED,5699,Clothing uniforms and laundry,159.09,0.00,159.09
Children and Young Peoples Services,Head of Early Help Inclusion & Vulnerable Children.,085801,CDYJS - Support,Supplies and Services,328041,Clothing uniforms and laundry E328,05-Nov-2021,000007793663274,PRINTERPIX UK LIMITED,5699,Clothing uniforms and laundry,48.70,0.00,48.70
Children and Young Peoples Services,Head of Early Help Inclusion & Vulnerable Children.,085801,CDYJS - Support,Supplies and Services,324117,Provisions E324,05-Nov-2021,000007793663278,TESCO GIFT CARD,5411,Catering costs - provisions,150.00,0.00,150.00
Children and Young Peoples Services,Head of Childrens Social Care,085351,Framwellgate Moor CU,Supplies and Services,304403,Equipment and Materials,05-Nov-2021,000007793663308,AMZNMKTPLACE AMAZON.CO,5999,Other consumables,56.99,9.50,47.49
Children and Young Peoples Services,Head of Education and Skills,071802,Louisa Cent Nursery,Supplies and Services,324117,Provisions E324,05-Nov-2021,000007793663318,ASDA GROCERIES ONLINE,5411,Catering costs - provisions,186.99,0.00,186.99
Children and Young Peoples Services,Head of Early Help Inclusion & Vulnerable Children.,088107,Wheatley Hill & N. Aycliffe Family Centre,Supplies and Services,324117,Provisions E324,05-Nov-2021,000007793663396,ASDA GEORGE COM LEEDS,5411,Catering costs - provisions,54.50,0.00,54.50
Regeneration Economy and Growth,Culture Sport and Tourism,054233,Bishop Auckland Town Hall Library,Supplies and Services,324117,Provisions E324,05-Nov-2021,000007793663410,WILKO RETAIL LIMITED,5399,Catering costs - provisions,28.90,0.00,28.90
Regeneration Economy and Growth,Culture Sport and Tourism,054233,Bishop Auckland Town Hall Library,Supplies and Services,324117,Provisions E324,05-Nov-2021,000007793663414,HERON FOODS,5411,Catering costs - provisions,7.14,0.00,7.14
Regeneration Economy and Growth,Culture Sport and Tourism,054233,Bishop Auckland Town Hall Library,Supplies and Services,328041,Clothing uniforms and laundry E328,05-Nov-2021,000007793663416,THEWORKS,5310,Clothing uniforms and laundry,2.00,0.00,2.00
Regeneration Economy and Growth,Culture Sport and Tourism,054233,Bishop Auckland Town Hall Library,Supplies and Services,324117,Provisions E324,05-Nov-2021,000007793663422,WM MORRISONS STORE,5411,Catering costs - provisions,14.85,0.00,14.85
Children and Young Peoples Services,Head of Childrens Social Care,085332,Middlestone Moor CU,Supplies and Services,348037,Subsistence E348,05-Nov-2021,000007793663492,KFC WEST AUCKLAND,5814,Subsistence,9.87,0.00,9.87
Children and Young Peoples Services,Head of Childrens Social Care,085332,Middlestone Moor CU,Supplies and Services,384999,Miscellaneous Expenses,05-Nov-2021,000007793663498,TEAM SPORT KARTING,7997,Other expenses,33.00,0.00,33.00
Children and Young Peoples Services,Head of Childrens Social Care,085332,Middlestone Moor CU,Supplies and Services,384999,Miscellaneous Expenses,05-Nov-2021,000007793663500,TEAMSPORT NEWCASTLE,7997,Other expenses,3.50,0.00,3.50
Children and Young Peoples Services,Head of Childrens Social Care,085332,Middlestone Moor CU,Supplies and Services,384999,Miscellaneous Expenses,05-Nov-2021,000007793663504,TEAMSPORT NEWCASTLE,7997,Other expenses,10.75,0.00,10.75
Regeneration Economy and Growth,Communications Management,060270,Communications and Marketing,Supplies and Services,336005,Advertising E336,05-Nov-2021,000007793663552,FACEBK JVCAK674B2,7311,Advertising other than for staff,500.00,0.00,500.00
Children and Young Peoples Services,Head of Childrens Social Care,085614,Families First Durham West,Supplies and Services,304259,Equipment and Materials,05-Nov-2021,000007793663640,HM PASSPORT OFFICE,9399,Equipment-purchase and rental,147.00,0.00,147.00
Children and Young Peoples Services,Head of Childrens Social Care,085334,West Rainton Satelite Home,Supplies and Services,324117,Provisions E324,05-Nov-2021,000007793663652,SPAR,5411,Catering costs - provisions,16.94,0.00,16.94
Children and Young Peoples Services,Head of Childrens Social Care,085551,Short Break Services-Park Hse Sher,Supplies and Services,324117,Provisions E324,05-Nov-2021,000007793663692,TESCO STORES 2371,5411,Catering costs - provisions,18.39,0.00,18.39
Children and Young Peoples Services,Head of Childrens Social Care,085551,Short Break Services-Park Hse Sher,Supplies and Services,324117,Provisions E324,05-Nov-2021,000007793663700,ICELAND FOODS,5411,Catering costs - provisions,113.81,0.00,113.81
Children and Young Peoples Services,Head of Early Help Inclusion & Vulnerable Children.,088113,Seaham & Laurel Avenue Family Centre,Supplies and Services,304403,Equipment and Materials,05-Nov-2021,000007793663730,AMZNMktplace,5999,Other consumables,114.99,0.00,114.99
Regeneration Economy and Growth,Development and Housing,030771,Durham Advance Flexible Fund,Supplies and Services,304259,Equipment and Materials,05-Nov-2021,000007793663750,DISCLOSURE AND BARRING,9399,Equipment-purchase and rental,23.00,0.00,23.00
Children and Young Peoples Services,Head of Childrens Social Care,085634,Families First Easington,Supplies and Services,384999,Miscellaneous Expenses,05-Nov-2021,000007793663918,Amazon.co.uk 298YF6MM5,5969,Other expenses,12.98,0.00,12.98
Children and Young Peoples Services,Head of Childrens Social Care,085634,Families First Easington,Supplies and Services,332047,Printing Stationery and Gen Off Exps,05-Nov-2021,000007793663922,WWW.RYMAN.CO.UK,5943,Stationery,31.91,0.00,31.91
Regeneration Economy and Growth,Corporate Property and Land,021234,Catering - Locomotion,Supplies and Services,324117,Provisions E324,05-Nov-2021,000009847025445,BATLEYS PERTH,5300,Catering costs - provisions,160.74,26.79,133.95
Regeneration Economy and Growth,Corporate Property and Land,021234,Catering - Locomotion,Supplies and Services,324117,Provisions E324,05-Nov-2021,000009847025445 - 1,BATLEYS PERTH,5300,Catering costs - provisions,22.35,,22.35
Regeneration Economy and Growth,Corporate Property and Land,021234,Catering - Locomotion,Supplies and Services,324117,Provisions E324,05-Nov-2021,000009847025461,BATLEYS PERTH,5300,Catering costs - provisions,-6.42,0.00,-6.42
Regeneration Economy and Growth,Business Durham CL0850,030689,Inward Investment and Aftercare,Supplies and Services,342033,Computers and Communications,06-Nov-2021,000007793661680,STK Shutterstock,7333,Computer hardware,19.00,0.00,19.00
Children and Young Peoples Services,Head of Education and Skills,071801,Selby Cottage Childcare Centre,Supplies and Services,304403,Equipment and Materials,06-Nov-2021,000007793661744,AMZNMktplace,5999,Other consumables,19.99,3.33,16.66
Children and Young Peoples Services,Head of Childrens Social Care,085341,High Etherley Satelite Home,Supplies and Services,324117,Provisions E324,06-Nov-2021,000007793661896,TESCO STORES 6329,5411,Catering costs - provisions,39.53,0.00,39.53
Children and Young Peoples Services,Head of Childrens Social Care,085341,High Etherley Satelite Home,Supplies and Services,304259,Equipment and Materials,06-Nov-2021,000007793661900,JD SPORTS PLC,5941,Equipment-purchase and rental,105.00,0.00,105.00
Regeneration Economy and Growth,Culture Sport and Tourism,030712,VCD - Project Delivery,Supplies and Services,384199,Miscellaneous Expenses,06-Nov-2021,000007793661982,GOOGLE Google Play Ap,5734,Other hired and contracted services,18.99,0.00,18.99
Children and Young Peoples Services,Head of Childrens Social Care,085358,Orchard House Sacriston Solo Home,Supplies and Services,324117,Provisions E324,06-Nov-2021,000007793662358,ASDA GROCERIES ONLINE,5411,Catering costs - provisions,185.29,0.00,185.29
Children and Young Peoples Services,Head of Childrens Social Care,085358,Orchard House Sacriston Solo Home,Supplies and Services,324117,Provisions E324,06-Nov-2021,000007793662368,ASDA GROCERIES ONLINE,5411,Catering costs - provisions,-0.75,0.00,-0.75
Regeneration Economy and Growth,Culture Sport and Tourism,054966,Gala Theatre - Gala Productions,Supplies and Services,338047,Services,06-Nov-2021,000007793662456,Amazon.co.uk 5C74J82L5,5969,Direct production costs,17.99,0.00,17.99
Regeneration Economy and Growth,Culture Sport and Tourism,054966,Gala Theatre - Gala Productions,Supplies and Services,338047,Services,06-Nov-2021,000007793662458,WWW.FLINTS.CO.UK,5691,Direct production costs,39.02,0.00,39.02
Children and Young Peoples Services,Head of Early Help Inclusion & Vulnerable Children.,085956,Lumley,Supplies and Services,324117,Provisions E324,06-Nov-2021,000007793662572,TESCO STORES 6329,5411,Catering costs - provisions,52.00,0.00,52.00
Dedicated Schools Grant BG0015,DSG Schools Block,418500,Belmont Community School 004185 - Admin,Supplies and Services,384981,Miscellaneous Expenses,06-Nov-2021,000007793662736,JUST EAT,5811,House Rewards,40.00,0.00,40.00
Regeneration Economy and Growth,Corporate Property and Land,011001,FM-Civic Bldgs-Green Lane Council Offices Spennymoor,Supplies and Services,304999,Equipment and Materials,06-Nov-2021,000007793662896,AMZNMKTPLACE AMAZON.CO,5999,Misc equipment tools and materials,62.99,0.00,62.99
Children and Young Peoples Services,Head of Education and Skills,078100,Curric and Professional Development 078100,Employees,040149,Recruitment Instruction and Training,06-Nov-2021,000007793663082,COL OF TEACHING,8699,Training-all costs,47.50,0.00,47.50
Children and Young Peoples Services,Head of Childrens Social Care,085332,Middlestone Moor CU,Supplies and Services,332047,Printing Stationery and Gen Off Exps,06-Nov-2021,000007793663220,Vue Cinema,7832,Stationery,11.98,0.00,11.98
Children and Young Peoples Services,Head of Childrens Social Care,085332,Middlestone Moor CU,Supplies and Services,324117,Provisions E324,06-Nov-2021,000007793663224,SAINSBURYS S/MKTS,5411,Catering costs - provisions,8.75,0.00,8.75
Children and Young Peoples Services,Head of Childrens Social Care,085332,Middlestone Moor CU,Supplies and Services,348037,Subsistence E348,06-Nov-2021,000007793663228,MCDONALD`S,5812,Subsistence,13.18,0.00,13.18
Resources BK0010,Finance & Transactional Services,060050,Service Management,Supplies and Services,324117,Provisions E324,06-Nov-2021,000007793663554,AMZNMktplace,5999,Catering costs - provisions,22.18,0.00,22.18
Regeneration Economy and Growth,Communications Management,060270,Communications and Marketing,Supplies and Services,336005,Advertising E336,06-Nov-2021,000007793663558,LINKEDIN IRELAND,7311,Advertising other than for staff,34.08,0.00,34.08
Children and Young Peoples Services,Head of Childrens Social Care,085334,West Rainton Satelite Home,Supplies and Services,304403,Equipment and Materials,06-Nov-2021,000007793663658,AMZNMKTPLACE AMAZON.CO,5999,Other consumables,8.99,0.00,8.99
Children and Young Peoples Services,Head of Childrens Social Care,085551,Short Break Services-Park Hse Sher,Supplies and Services,324117,Provisions E324,06-Nov-2021,000007793663708,ICELAND FOODS,5411,Catering costs - provisions,-1.00,0.00,-1.00
Children and Young Peoples Services,Head of Childrens Social Care,085333,Coxhoe Satelite Home,Supplies and Services,384999,Miscellaneous Expenses,06-Nov-2021,000007793663758,MAKING FACES,7230,Other expenses,4.99,0.00,4.99
Children and Young Peoples Services,Head of Childrens Social Care,085333,Coxhoe Satelite Home,Supplies and Services,304999,Equipment and Materials,06-Nov-2021,000007793663766,SUPERDRUG STORES PLC,5912,Misc equipment tools and materials,13.49,0.00,13.49
Children and Young Peoples Services,Head of Childrens Social Care,085333,Coxhoe Satelite Home,Supplies and Services,348037,Subsistence E348,06-Nov-2021,000007793663772,GREGGS,5812,Subsistence,2.85,0.00,2.85
Children and Young Peoples Services,Head of Childrens Social Care,085333,Coxhoe Satelite Home,Supplies and Services,348037,Subsistence E348,06-Nov-2021,000007793663776,KFC METROCENTRE FC,5814,Subsistence,9.78,0.00,9.78
Children and Young Peoples Services,Head of Childrens Social Care,085333,Coxhoe Satelite Home,Supplies and Services,328041,Clothing uniforms and laundry E328,06-Nov-2021,000007793663782,PRIMARK 670 GATESHEAD,5651,Clothing uniforms and laundry,15.00,0.00,15.00
Resources BK0010,Digital and Customer Services,070110,School Services - Man Info System (MIS) Support Team,Supplies and Services,342033,Computers and Communications,07-Nov-2021,000007793661808,WPMU DEV INCSUBFEE.COM,7372,Computer hardware,14.15,0.00,14.15
Children and Young Peoples Services,Head of Education and Skills,078100,Curric and Professional Development 078100,Supplies and Services,342033,Computers and Communications,07-Nov-2021,000007793662042,STK Shutterstock,7333,Computer hardware,22.80,0.00,22.80
Children and Young Peoples Services,Head of Childrens Social Care,085358,Orchard House Sacriston Solo Home,Supplies and Services,372009,Subscriptions E372,07-Nov-2021,000007793662362,NETFLIX.COM,4899,Subscriptions 372009,13.99,0.00,13.99
Children and Young Peoples Services,Head of Childrens Social Care,085358,Orchard House Sacriston Solo Home,Supplies and Services,324117,Provisions E324,07-Nov-2021,000007793662370,TESCO STORES 6334,5411,Catering costs - provisions,17.40,0.00,17.40
Regeneration Economy and Growth,Culture Sport and Tourism,010664,Freemans Quay Leisure Centre,Supplies and Services,304403,Equipment and Materials,07-Nov-2021,000007793662410,AMZNMKTPLACE AMAZON.CO,5999,Other consumables,31.77,5.31,26.46
Children and Young Peoples Services,Head of Early Help Inclusion & Vulnerable Children.,085954,Walworth,Supplies and Services,324117,Provisions E324,07-Nov-2021,000007793662578,TESCO STORES 6329,5411,Catering costs - provisions,105.91,0.00,105.91
Children and Young Peoples Services,Head of Childrens Social Care,085551,Short Break Services-Park Hse Sher,Supplies and Services,324117,Provisions E324,07-Nov-2021,000007793662726,TESCO STORES 2371,5411,Catering costs - provisions,43.61,0.00,43.61
Children and Young Peoples Services,Head of Childrens Social Care,085352,New Childrens Home (previously Tow Law),Supplies and Services,304999,Equipment and Materials,07-Nov-2021,000007793662730,WWW.INFINITEAIR.CO.UK,7991,Misc equipment tools and materials,12.95,0.00,12.95
Regeneration Economy and Growth,Culture Sport and Tourism,010599,Newton Aycliffe Leisure Ctr-General,Supplies and Services,304259,Equipment and Materials,07-Nov-2021,000007793662946,AMZNMktplace,5999,Equipment-purchase and rental,13.98,2.34,11.64
Children and Young Peoples Services,Head of Childrens Social Care,085332,Middlestone Moor CU,Supplies and Services,304403,Equipment and Materials,07-Nov-2021,000007793663232,KANDY KAYE,5947,Other consumables,3.00,0.00,3.00
Children and Young Peoples Services,Head of Early Help Inclusion & Vulnerable Children.,085801,CDYJS - Support,Supplies and Services,384999,Miscellaneous Expenses,07-Nov-2021,000007793663282,Amazon.co.uk Z03030Y45,5969,Other expenses,24.00,4.00,20.00
Resources BK0010,Finance & Transactional Services,060050,Service Management,Supplies and Services,324117,Provisions E324,07-Nov-2021,000007793663562,Amazon.co.uk 2K2K90SO5,5969,Catering costs - provisions,8.03,0.00,8.03
Regeneration Economy and Growth,Corporate Property and Land,011275,Catering -Durham Leadership Centre,Supplies and Services,324117,Provisions E324,07-Nov-2021,000007800008122,BATLEYS PERTH,5300,Catering costs - provisions,82.78,0.00,82.78
Children and Young Peoples Services,Head of Childrens Social Care,085334,West Rainton Satelite Home,Supplies and Services,328041,Clothing uniforms and laundry E328,07-Nov-2021,000007800008588,ARGOS LTD,5310,Clothing uniforms and laundry,29.99,0.00,29.99
Regeneration Economy and Growth,Culture Sport and Tourism,010601,Spennymoor Leisure Cr - General,Supplies and Services,304259,Equipment and Materials,07-Nov-2021,000007800008934,AMZNMKTPLACE AMAZON.CO,5999,Equipment-purchase and rental,13.98,2.34,11.64
Adult and Health Services,Head of Adults,055643,Hawthorn House LD Respite Unit,Supplies and Services,324117,Provisions E324,07-Nov-2021,000007800008960,BATLEYS PERTH,5300,Catering costs - provisions,55.49,0.00,55.49
Children and Young Peoples Services,Head of Early Help Inclusion & Vulnerable Children.,085962,Aycliffe Secure - Durham,Transfer Payments,515002,Social Services Clients,07-Nov-2021,000007800009012,AMZNMKTPLACE AMAZON.CO,5999,Pocket money,15.25,2.54,12.71
Children and Young Peoples Services,Head of Childrens Social Care,085332,Middlestone Moor CU,Supplies and Services,324117,Provisions E324,07-Nov-2021,000007800009088,WM MORRISONS STORE,5411,Catering costs - provisions,35.78,0.00,35.78
Children and Young Peoples Services,Head of Childrens Social Care,085333,Coxhoe Satelite Home,Supplies and Services,324117,Provisions E324,07-Nov-2021,000007800009120,CO-OP GROUP 310016,5411,Catering costs - provisions,19.50,0.00,19.50
Children and Young Peoples Services,Head of Childrens Social Care,085332,Middlestone Moor CU,Supplies and Services,324117,Provisions E324,07-Nov-2021,000007800009216,ALDI 32 774,5411,Catering costs - provisions,19.99,0.00,19.99
Resources BK0010,Digital and Customer Services,070110,School Services - Man Info System (MIS) Support Team,Supplies and Services,342033,Computers and Communications,08-Nov-2021,000007793661814,WPMU DEV INCSUBFEE.COM,7372,Computer hardware,0.39,0.00,0.39
Regeneration Economy and Growth,Culture Sport and Tourism,054820,Gala Theatre - Overheads,Supplies and Services,304252,Equipment and Materials,08-Nov-2021,000007793661966,AMZNMktplace,5999,Equipment-repairsserviceinsurance,38.07,6.36,31.71
Regeneration Economy and Growth,Business Durham CL0850,030689,Inward Investment and Aftercare,Supplies and Services,304259,Equipment and Materials,08-Nov-2021,000007800008066,CANVA I03233-17104738,7221,Equipment-purchase and rental,99.99,0.00,99.99
Children and Young Peoples Services,Head of Education and Skills,071801,Selby Cottage Childcare Centre,Supplies and Services,304999,Equipment and Materials,08-Nov-2021,000007800008076,Amazon Prime TH8IP2605,5968,Misc equipment tools and materials,7.99,0.00,7.99
Children and Young Peoples Services,Head of Education and Skills,071801,Selby Cottage Childcare Centre,Supplies and Services,304403,Equipment and Materials,08-Nov-2021,000007800008080,AMZNMktplace,5999,Other consumables,21.44,0.00,21.44
Children and Young Peoples Services,Head of Education and Skills,071801,Selby Cottage Childcare Centre,Supplies and Services,304403,Equipment and Materials,08-Nov-2021,000007800008086,AMZNMktplace,5999,Other consumables,28.99,4.83,24.16
Children and Young Peoples Services,Head of Education and Skills,071801,Selby Cottage Childcare Centre,Supplies and Services,304403,Equipment and Materials,08-Nov-2021,000007800008088,AMZNMktplace,5999,Other consumables,33.99,5.67,28.32
Children and Young Peoples Services,Head of Education and Skills,071801,Selby Cottage Childcare Centre,Supplies and Services,304403,Equipment and Materials,08-Nov-2021,000007800008092,AMZNMktplace,5999,Other consumables,24.97,4.17,20.80
Dedicated Schools Grant BG0015,DSG Schools Block,417624,Greenfield Community College 004176 - DFE One Vision Funding,Supplies and Services,384199,Miscellaneous Expenses,08-Nov-2021,000007800008114,PE SCHOLAR,8999,Other hired and contracted services,162.00,27.00,135.00
Children and Young Peoples Services,Head of Childrens Social Care,085341,High Etherley Satelite Home,Supplies and Services,348037,Subsistence E348,08-Nov-2021,000007800008130,Subway 65249 Arnison C,5814,Subsistence,13.58,0.00,13.58
Regeneration Economy and Growth,Culture Sport and Tourism,054775,Durham Town Hall 054775,Supplies and Services,304252,Equipment and Materials,08-Nov-2021,000007800008134,SP BUSINESS SUPPLIES,5734,Equipment-repairsserviceinsurance,208.91,0.00,208.91
Regeneration Economy and Growth,Culture Sport and Tourism,030712,VCD - Project Delivery,Supplies and Services,384199,Miscellaneous Expenses,08-Nov-2021,000007800008162,PAYPAL WEBALON,5817,Other hired and contracted services,5.82,0.00,5.82
Children and Young Peoples Services,Head of Childrens Social Care,085342,16 Hickstead Rise (previously 9 Cedar Ave),Supplies and Services,324117,Provisions E324,08-Nov-2021,000007800008164,TESCO STORES 2916,5411,Catering costs - provisions,188.76,0.00,188.76
Children and Young Peoples Services,Head of Childrens Social Care,085332,Middlestone Moor CU,Supplies and Services,324117,Provisions E324,08-Nov-2021,000007800008168,TESCO STORES 2371,5411,Catering costs - provisions,168.16,0.00,168.16
Children and Young Peoples Services,Head of Early Help Inclusion & Vulnerable Children.,085956,Lumley,Supplies and Services,348037,Subsistence E348,08-Nov-2021,000007800008228,BLYTH COSTA KIOSK,5812,Subsistence,10.90,0.00,10.90
Children and Young Peoples Services,Head of Early Help Inclusion & Vulnerable Children.,085956,Lumley,Supplies and Services,348037,Subsistence E348,08-Nov-2021,000007800008230,BLYTH COSTA KIOSK,5812,Subsistence,3.90,0.00,3.90
Children and Young Peoples Services,Head of Early Help Inclusion & Vulnerable Children.,085956,Lumley,Supplies and Services,348037,Subsistence E348,08-Nov-2021,000007800008234,BLYTH GREGGS,5812,Subsistence,3.70,0.00,3.70
Children and Young Peoples Services,Head of Early Help Inclusion & Vulnerable Children.,085956,Lumley,Supplies and Services,324117,Provisions E324,08-Nov-2021,000007800008236,COMPASS GRP T/A M&S SI,5499,Catering costs - provisions,13.90,0.00,13.90
Regeneration Economy and Growth,Development and Housing,030776,LINKCD Flexible Fund,Supplies and Services,304403,Equipment and Materials,08-Nov-2021,000007800008288,AMZNMKTPLACE AMAZON.CO,5999,Other consumables,24.45,4.08,20.37
Regeneration Economy and Growth,Development and Housing,030776,LINKCD Flexible Fund,Supplies and Services,304403,Equipment and Materials,08-Nov-2021,000007800008292,AMZNMKTPLACE AMAZON.CO,5999,Other consumables,45.99,7.67,38.32
Regeneration Economy and Growth,Corporate Property and Land,021242,Catering - County Hall,Supplies and Services,324117,Provisions E324,08-Nov-2021,000007800008306,JR HOLLAND FOODSERVICE,5499,Catering costs - provisions,232.17,0.00,232.17
Children and Young Peoples Services,Head of Early Help Inclusion & Vulnerable Children.,079599,Psychological-HQ,Employees,040149,Recruitment Instruction and Training,08-Nov-2021,000007800008358,SP SCHOOL WELLBEING,8299,Training-all costs,75.00,0.00,75.00
Children and Young Peoples Services,Head of Early Help Inclusion & Vulnerable Children.,085957,Secure Management,Supplies and Services,304403,Equipment and Materials,08-Nov-2021,000007800008368,AMZNMKTPLACE AMAZON.CO,5999,Other consumables,59.24,0.00,59.24
Children and Young Peoples Services,Head of Early Help Inclusion & Vulnerable Children.,085957,Secure Management,Supplies and Services,304403,Equipment and Materials,08-Nov-2021,000007800008374,AMZNMktplace,5999,Other consumables,26.52,4.42,22.10
Children and Young Peoples Services,Head of Early Help Inclusion & Vulnerable Children.,085952,Secure Education,Supplies and Services,324117,Provisions E324,08-Nov-2021,000007800008378,TESCO STORES 6329,5411,Catering costs - provisions,111.55,0.00,111.55
Children and Young Peoples Services,Head of Early Help Inclusion & Vulnerable Children.,085957,Secure Management,Supplies and Services,304403,Equipment and Materials,08-Nov-2021,000007800008384,AMZNMktplace,5999,Other consumables,32.89,5.49,27.40
Regeneration Economy and Growth,Development and Housing,031500,Housing Solutions - Core,Supplies and Services,342033,Computers and Communications,08-Nov-2021,000007800008506,WWW.SECURE-PAYMENT-SER,7372,Computer hardware,5.00,0.00,5.00
Children and Young Peoples Services,Head of Education and Skills,071732,Dean Bank Childcare,Supplies and Services,324117,Provisions E324,08-Nov-2021,000007800008510,ASDA GROCERIES ONLINE,5411,Catering costs - provisions,48.13,0.00,48.13
Children and Young Peoples Services,Head of Education and Skills,071732,Dean Bank Childcare,Supplies and Services,324117,Provisions E324,08-Nov-2021,000007800008512,TESCO STORES 2916,5411,Catering costs - provisions,92.15,0.00,92.15
Children and Young Peoples Services,Head of Education and Skills,071732,Dean Bank Childcare,Supplies and Services,324117,Provisions E324,08-Nov-2021,000007800008514,ASDA GROCERIES ONLINE,5411,Catering costs - provisions,-0.66,0.00,-0.66
Neighbourhoods and Climate Change,Environmental Services,011060,C&G - Hardwick Park Catering,Supplies and Services,324117,Provisions E324,08-Nov-2021,000007800008516,THOMAS RIDLEY FOODSERV,5499,Catering costs - provisions,19.16,0.00,19.16
Regeneration Economy and Growth,Development and Housing,031500,Housing Solutions - Core,Transport,235057,Public Transport,08-Nov-2021,000007800008534,MIDDLESBROUGH BOROUGH,4121,Staff travelling,27.00,0.00,27.00
Regeneration Economy and Growth,Development and Housing,030771,Durham Advance Flexible Fund,Transport,235057,Public Transport,08-Nov-2021,000007800008552,WWW.GONORTHEAST.CO.UK,4111,Staff travelling,34.00,0.00,34.00
Regeneration Economy and Growth,Development and Housing,030771,Durham Advance Flexible Fund,Transport,235057,Public Transport,08-Nov-2021,000007800008562,WWW.GONORTHEAST.CO.UK,4111,Staff travelling,17.00,0.00,17.00
Children and Young Peoples Services,Head of Childrens Social Care,085334,West Rainton Satelite Home,Supplies and Services,384999,Miscellaneous Expenses,08-Nov-2021,000007800008590,MAKING FACES,7230,Other expenses,12.97,0.00,12.97
Children and Young Peoples Services,Head of Childrens Social Care,085334,West Rainton Satelite Home,Supplies and Services,384999,Miscellaneous Expenses,08-Nov-2021,000007800008592,Lush UK,5977,Other expenses,41.05,0.00,41.05
Children and Young Peoples Services,Head of Childrens Social Care,085334,West Rainton Satelite Home,Supplies and Services,324117,Provisions E324,08-Nov-2021,000007800008594,WILKO RETAIL LIMITED,5399,Catering costs - provisions,23.00,0.00,23.00
Children and Young Peoples Services,Head of Childrens Social Care,085334,West Rainton Satelite Home,Supplies and Services,304403,Equipment and Materials,08-Nov-2021,000007800008596,CARD FACTORY,5947,Other consumables,30.48,0.00,30.48
Children and Young Peoples Services,Head of Childrens Social Care,085331,New Lea Childrens Home,Supplies and Services,304403,Equipment and Materials,08-Nov-2021,000007800008680,SP LOST UNIVERSE,5734,Other consumables,34.95,0.00,34.95
Children and Young Peoples Services,Head of Childrens Social Care,085331,New Lea Childrens Home,Supplies and Services,348037,Subsistence E348,08-Nov-2021,000007800008684,COSTA @ NEXT 43044010,5814,Subsistence,18.75,0.00,18.75
Children and Young Peoples Services,Head of Childrens Social Care,085331,New Lea Childrens Home,Supplies and Services,304999,Equipment and Materials,08-Nov-2021,000007800008690,HOME BARGAINS,5251,Misc equipment tools and materials,13.87,0.00,13.87
Regeneration Economy and Growth,Corporate Property and Land,010525,Catering - Green Lane,Supplies and Services,324117,Provisions E324,08-Nov-2021,000007800008734,JR HOLLAND FOODSERVICE,5499,Catering costs - provisions,54.74,0.00,54.74
Children and Young Peoples Services,Head of Childrens Social Care,085352,New Childrens Home (previously Tow Law),Supplies and Services,328041,Clothing uniforms and laundry E328,08-Nov-2021,000007800008738,Footasylum Limited,5651,Clothing uniforms and laundry,114.99,0.00,114.99
Children and Young Peoples Services,Head of Childrens Social Care,085352,New Childrens Home (previously Tow Law),Supplies and Services,324117,Provisions E324,08-Nov-2021,000007800008740,ASDA SUPERSTORE 4987,5411,Catering costs - provisions,3.75,0.00,3.75
Resources BK0010,Finance & Transactional Services,065116,Creditors/Purchasing,Supplies and Services,340001,Postages E340,08-Nov-2021,000007800008758,BROWN AND ILLINGWORTH,4214,Postages,131.80,21.97,109.83
Dedicated Schools Grant BG0015,DSG Schools Block,418507,Belmont Community School 004185 - Performing Arts,Supplies and Services,304259,Equipment and Materials,08-Nov-2021,000007800008772,Amazon.co.uk FS7LA3QM5,5969,Equipment-purchase and rental,45.00,7.50,37.50
Children and Young Peoples Services,Head of Early Help Inclusion & Vulnerable Children.,088115,Young Parents Programme 088115,Supplies and Services,384302,Miscellaneous Expenses,08-Nov-2021,000007800008788,ASDA STORES,5411,Activity expenses,90.63,0.00,90.63
Children and Young Peoples Services,Head of Early Help Inclusion & Vulnerable Children.,088115,Young Parents Programme 088115,Supplies and Services,384302,Miscellaneous Expenses,08-Nov-2021,000007800008796,AMZNMktplace,5999,Activity expenses,51.44,8.58,42.86
Neighbourhoods and Climate Change,Environmental Services,010367,C&G - South Grounds Maintenance,Transport,215995,Running Costs of Vehicles,08-Nov-2021,000007800008874,D WARD AUTOMOTIVE,5533,Vehicle running expenses,5.15,0.00,5.15
Neighbourhoods and Climate Change,Environmental Services,010367,C&G - South Grounds Maintenance,Supplies and Services,304999,Equipment and Materials,08-Nov-2021,000007800008876,Snowballs,5251,Misc equipment tools and materials,31.01,0.00,31.01
Children and Young Peoples Services,Head of Education and Skills,071802,Louisa Cent Nursery,Supplies and Services,324117,Provisions E324,08-Nov-2021,000007800008902,ASDA SUPERSTORE,5411,Catering costs - provisions,11.77,0.00,11.77
Children and Young Peoples Services,Head of Childrens Social Care,085351,Framwellgate Moor CU,Supplies and Services,304403,Equipment and Materials,08-Nov-2021,000007800008928,AMZNMktplace,5999,Other consumables,47.59,7.93,39.66
Children and Young Peoples Services,Head of Childrens Social Care,085351,Framwellgate Moor CU,Supplies and Services,304403,Equipment and Materials,08-Nov-2021,000007800008930,AMZNMktplace,5999,Other consumables,49.99,8.33,41.66
Adult and Health Services,Head of Adults,055643,Hawthorn House LD Respite Unit,Supplies and Services,324117,Provisions E324,08-Nov-2021,000007800008966,JR HOLLAND FOODSERVICE,5499,Catering costs - provisions,8.89,0.00,8.89
Adult and Health Services,Head of Adults,055643,Hawthorn House LD Respite Unit,Supplies and Services,324117,Provisions E324,08-Nov-2021,000007800008970,JR HOLLAND FOODSERVICE,5499,Catering costs - provisions,18.90,0.00,18.90
Regeneration Economy and Growth,Culture Sport and Tourism,011263,Louisa Centre 011263,Supplies and Services,304259,Equipment and Materials,08-Nov-2021,000007800008974,Connect Distribution S,5722,Equipment-purchase and rental,61.48,0.00,61.48
Children and Young Peoples Services,Head of Childrens Social Care,085334,West Rainton Satelite Home,Supplies and Services,348037,Subsistence E348,08-Nov-2021,000007800008976,Kaspa`s Desserts Sunde,5812,Subsistence,22.20,0.00,22.20
Children and Young Peoples Services,Head of Childrens Social Care,085334,West Rainton Satelite Home,Transport,235057,Public Transport,08-Nov-2021,000007800008980,CAR PARK CHARGES,7523,Staff travelling,3.00,0.00,3.00
Children and Young Peoples Services,Head of Early Help Inclusion & Vulnerable Children.,085957,Secure Management,Supplies and Services,384302,Miscellaneous Expenses,08-Nov-2021,000007800009016,Amazon MP3,5735,Activity expenses,0.98,0.00,0.98
Children and Young Peoples Services,Head of Early Help Inclusion & Vulnerable Children.,085957,Secure Management,Supplies and Services,384302,Miscellaneous Expenses,08-Nov-2021,000007800009018,Amazon MP3,5735,Activity expenses,11.46,1.91,9.55
Children and Young Peoples Services,Head of Early Help Inclusion & Vulnerable Children.,085957,Secure Management,Supplies and Services,384302,Miscellaneous Expenses,08-Nov-2021,000007800009022,Amazon MP3,5735,Activity expenses,7.58,0.00,7.58
Children and Young Peoples Services,Head of Early Help Inclusion & Vulnerable Children.,085957,Secure Management,Supplies and Services,384302,Miscellaneous Expenses,08-Nov-2021,000007800009024,Amazon MP3,5735,Activity expenses,5.48,0.00,5.48
Children and Young Peoples Services,Head of Early Help Inclusion & Vulnerable Children.,085957,Secure Management,Supplies and Services,384302,Miscellaneous Expenses,08-Nov-2021,000007800009026,Amazon MP3,5735,Activity expenses,7.95,1.33,6.62
Regeneration Economy and Growth,Culture Sport and Tourism,054235,Bishop Auckland Town Hall Cafe,Supplies and Services,324117,Provisions E324,08-Nov-2021,000007800009054,JR HOLLAND FOODSERVICE,5499,Catering costs - provisions,366.12,0.00,366.12
Regeneration Economy and Growth,Transport and Contracted Services,031701,Care Connect All Localities,Supplies and Services,304259,Equipment and Materials,08-Nov-2021,000007800009058,AMZNMktplace,5999,Equipment-purchase and rental,160.56,26.76,133.80
Regeneration Economy and Growth,Transport and Contracted Services,031701,Care Connect All Localities,Supplies and Services,304259,Equipment and Materials,08-Nov-2021,000007800009058 - 1,AMZNMktplace,5999,Equipment-purchase and rental,0.09,,0.09
Children and Young Peoples Services,Head of Childrens Social Care,085332,Middlestone Moor CU,Supplies and Services,348037,Subsistence E348,08-Nov-2021,000007800009094,SPENNYMOOR CROWN TAKEA,5814,Subsistence,4.00,0.00,4.00
Neighbourhoods and Climate Change,Environmental Services,010301,C&G - North Grounds Maintenance,Supplies and Services,304403,Equipment and Materials,08-Nov-2021,000007800009114,BESCOL,5231,Other consumables,89.28,0.00,89.28
Children and Young Peoples Services,Head of Early Help Inclusion & Vulnerable Children.,085801,CDYJS - Support,Supplies and Services,328041,Clothing uniforms and laundry E328,08-Nov-2021,000007800009130,THINFORD SADDLERY,5691,Clothing uniforms and laundry,56.49,0.00,56.49
Children and Young Peoples Services,Head of Early Help Inclusion & Vulnerable Children.,088107,Wheatley Hill & N. Aycliffe Family Centre,Supplies and Services,324117,Provisions E324,08-Nov-2021,000007800009224,ASDA GROCERIES ONLINE,5411,Catering costs - provisions,45.95,0.00,45.95
Children and Young Peoples Services,Head of Early Help Inclusion & Vulnerable Children.,088107,Wheatley Hill & N. Aycliffe Family Centre,Supplies and Services,324117,Provisions E324,08-Nov-2021,000007800009226,ASDA GEORGE COM LEEDS,5411,Catering costs - provisions,-4.50,0.00,-4.50
Children and Young Peoples Services,Head of Early Help Inclusion & Vulnerable Children.,088107,Wheatley Hill & N. Aycliffe Family Centre,Supplies and Services,324117,Provisions E324,08-Nov-2021,000007800009230,ASDA GROCERIES ONLINE,5411,Catering costs - provisions,-0.55,0.00,-0.55
Children and Young Peoples Services,Head of Early Help Inclusion & Vulnerable Children.,085962,Aycliffe Secure - Durham,Supplies and Services,304403,Equipment and Materials,08-Nov-2021,000007800009260,AMZNMKTPLACE AMAZON.CO,5999,Other consumables,20.48,3.42,17.06
Children and Young Peoples Services,Head of Early Help Inclusion & Vulnerable Children.,085962,Aycliffe Secure - Durham,Supplies and Services,304403,Equipment and Materials,08-Nov-2021,000007800009262,AMZNMktplace,5999,Other consumables,12.99,2.17,10.82
Children and Young Peoples Services,Head of Early Help Inclusion & Vulnerable Children.,085962,Aycliffe Secure - Durham,Supplies and Services,304403,Equipment and Materials,08-Nov-2021,000007800009266,AMZNMktplace,5999,Other consumables,16.02,2.67,13.35
Children and Young Peoples Services,Head of Early Help Inclusion & Vulnerable Children.,085962,Aycliffe Secure - Durham,Supplies and Services,304403,Equipment and Materials,08-Nov-2021,000007800009266 - 1,AMZNMktplace,5999,Other consumables,6.26,,6.26
Children and Young Peoples Services,Head of Early Help Inclusion & Vulnerable Children.,085962,Aycliffe Secure - Durham,Supplies and Services,304403,Equipment and Materials,08-Nov-2021,000007800009268,AMZNMktplace,5999,Other consumables,2.99,0.50,2.49
Children and Young Peoples Services,Head of Childrens Social Care,085334,West Rainton Satelite Home,Supplies and Services,384999,Miscellaneous Expenses,08-Nov-2021,000007800009330,MAKING FACES,7230,Other expenses,12.96,0.00,12.96
Children and Young Peoples Services,Head of Childrens Social Care,085334,West Rainton Satelite Home,Supplies and Services,328041,Clothing uniforms and laundry E328,08-Nov-2021,000007800009336,NEW LOOK 1744,5621,Clothing uniforms and laundry,44.85,0.00,44.85
Children and Young Peoples Services,Head of Childrens Social Care,085334,West Rainton Satelite Home,Supplies and Services,348037,Subsistence E348,08-Nov-2021,000007800009340,STARBUCKS,5814,Subsistence,11.63,0.00,11.63
Children and Young Peoples Services,Head of Childrens Social Care,085334,West Rainton Satelite Home,Supplies and Services,384999,Miscellaneous Expenses,08-Nov-2021,000007800009342,Lush UK,5977,Other expenses,13.90,0.00,13.90
Children and Young Peoples Services,Head of Childrens Social Care,085334,West Rainton Satelite Home,Supplies and Services,348037,Subsistence E348,08-Nov-2021,000007800009344,BUFFET KING,5812,Subsistence,47.20,0.00,47.20
Children and Young Peoples Services,Head of Childrens Social Care,085334,West Rainton Satelite Home,Supplies and Services,324117,Provisions E324,08-Nov-2021,000007800009346,Choices,5411,Catering costs - provisions,3.83,0.00,3.83
Resources BK0010,Resources Management CK0450,069000,Resources Management 069000,Supplies and Services,324117,Provisions E324,08-Nov-2021,000007800009348,APPLE.COM/BILL,5735,Catering costs - provisions,0.79,0.00,0.79
Resources BK0010,Finance & Transactional Services,065162,Resources and Regeneration Finance,Supplies and Services,372009,Subscriptions E372,08-Nov-2021,000007800009352,CREATIVE_FED,8699,Subscriptions 372009,25.00,0.00,25.00
Children and Young Peoples Services,Head of Childrens Social Care,085398,Fostering - Connected Carers Team South,Transport,235057,Public Transport,08-Nov-2021,000007800009354,HOLIDAY PAYMENT AVR,4722,Staff travelling,320.00,0.00,320.00
Children and Young Peoples Services,Head of Childrens Social Care,085398,Fostering - Connected Carers Team South,Transport,235057,Public Transport,08-Nov-2021,000007800009356,HOLIDAY PAYMENT AVR,4722,Staff travelling,309.00,0.00,309.00
Children and Young Peoples Services,Head of Childrens Social Care,085341,High Etherley Satelite Home,Supplies and Services,324117,Provisions E324,08-Nov-2021,000007800009390,TESCO STORES 6329,5411,Catering costs - provisions,181.07,0.00,181.07
Children and Young Peoples Services,Head of Childrens Social Care,085334,West Rainton Satelite Home,Supplies and Services,308011,Furniture,08-Nov-2021,000007800009414,DUNELM LTD,5714,Furniture repair and replacement,67.98,11.33,56.65
Children and Young Peoples Services,Head of Childrens Social Care,085334,West Rainton Satelite Home,Supplies and Services,308011,Furniture,08-Nov-2021,000007800009414 - 1,DUNELM LTD,5714,Furniture repair and replacement,170.02,,170.02
Children and Young Peoples Services,Head of Education and Skills,076001,Music Service,Supplies and Services,324117,Provisions E324,08-Nov-2021,000007800009444,ASDA SUPERSTORE 4987,5411,Catering costs - provisions,17.70,0.00,17.70
Children and Young Peoples Services,Head of Childrens Social Care,085333,Coxhoe Satelite Home,Supplies and Services,324117,Provisions E324,08-Nov-2021,000007800009478,WALKERS BUTCHERS & BAK,5499,Catering costs - provisions,15.00,0.00,15.00
Children and Young Peoples Services,Head of Childrens Social Care,085351,Framwellgate Moor CU,Supplies and Services,324117,Provisions E324,08-Nov-2021,000007803538394,CO-OP GROUP FOOD,5411,Catering costs - provisions,1.35,0.00,1.35
Children and Young Peoples Services,Head of Early Help Inclusion & Vulnerable Children.,085956,Lumley,Supplies and Services,348037,Subsistence E348,08-Nov-2021,000007803538404,MCDONALDS,5814,Subsistence,11.65,0.00,11.65
Regeneration Economy and Growth,Development and Housing,030776,LINKCD Flexible Fund,Supplies and Services,304403,Equipment and Materials,08-Nov-2021,000007803538434,AMZNMKTPLACE AMAZON.CO,5999,Other consumables,22.94,3.83,19.11
Children and Young Peoples Services,Head of Early Help Inclusion & Vulnerable Children.,088105,W/Close and Willington Family Centre,Supplies and Services,304259,Equipment and Materials,08-Nov-2021,000007803538446,ARGOS LTD,5310,Equipment-purchase and rental,141.92,0.00,141.92
Children and Young Peoples Services,Head of Early Help Inclusion & Vulnerable Children.,088105,W/Close and Willington Family Centre,Supplies and Services,304259,Equipment and Materials,08-Nov-2021,000007803538450,ARGOS LTD,5310,Equipment-purchase and rental,27.99,0.00,27.99
Children and Young Peoples Services,Head of Early Help Inclusion & Vulnerable Children.,088105,W/Close and Willington Family Centre,Supplies and Services,304259,Equipment and Materials,08-Nov-2021,000007803538452,ARGOS LTD,5310,Equipment-purchase and rental,38.95,6.49,32.46
Children and Young Peoples Services,Head of Early Help Inclusion & Vulnerable Children.,088105,W/Close and Willington Family Centre,Supplies and Services,304259,Equipment and Materials,08-Nov-2021,000007803538456,ARGOS LTD,5310,Equipment-purchase and rental,16.99,0.00,16.99
Children and Young Peoples Services,Head of Early Help Inclusion & Vulnerable Children.,088105,W/Close and Willington Family Centre,Supplies and Services,304259,Equipment and Materials,08-Nov-2021,000007803538460,WWW.THEWORKS.CO.UK,5310,Equipment-purchase and rental,32.00,0.00,32.00
Regeneration Economy and Growth,Culture Sport and Tourism,054812,Gala Theatre - Catering etc,Supplies and Services,324117,Provisions E324,08-Nov-2021,000007803538508,BATLEYS PERTH,5300,Catering costs - provisions,81.00,13.50,67.50
Regeneration Economy and Growth,Culture Sport and Tourism,054812,Gala Theatre - Catering etc,Supplies and Services,324117,Provisions E324,08-Nov-2021,000007803538508 - 1,BATLEYS PERTH,5300,Catering costs - provisions,41.78,,41.78
Children and Young Peoples Services,Head of Early Help Inclusion & Vulnerable Children.,085957,Secure Management,Supplies and Services,304403,Equipment and Materials,08-Nov-2021,000007803538530,AMZNMKTPLACE AMAZON.CO,5999,Other consumables,36.36,0.00,36.36
Children and Young Peoples Services,Head of Education and Skills,071732,Dean Bank Childcare,Supplies and Services,324117,Provisions E324,08-Nov-2021,000007803538600,Wm Morrisons Store Pic,5411,Catering costs - provisions,64.89,0.00,64.89
Regeneration Economy and Growth,Culture Sport and Tourism,054813,Gala Theatre - Technical,Supplies and Services,304999,Equipment and Materials,08-Nov-2021,000007803538612,AMZNMKTPLACE AMAZON.CO,5999,Misc equipment tools and materials,55.96,0.00,55.96
Children and Young Peoples Services,Head of Childrens Social Care,085334,West Rainton Satelite Home,Supplies and Services,304999,Equipment and Materials,08-Nov-2021,000007803538776,Namco Uk Ltd,7929,Misc equipment tools and materials,17.00,0.00,17.00
Children and Young Peoples Services,Head of Childrens Social Care,085331,New Lea Childrens Home,Supplies and Services,328041,Clothing uniforms and laundry E328,08-Nov-2021,000007803538780,THE WORKS,5310,Clothing uniforms and laundry,31.00,0.00,31.00
Children and Young Peoples Services,Head of Childrens Social Care,085331,New Lea Childrens Home,Supplies and Services,324117,Provisions E324,08-Nov-2021,000007803538784,SAINSBURY`S S/MKT,5411,Catering costs - provisions,10.70,0.00,10.70
Children and Young Peoples Services,Head of Childrens Social Care,085331,New Lea Childrens Home,Supplies and Services,324117,Provisions E324,08-Nov-2021,000007803538786,SAINSBURY`S S/MKT,5411,Catering costs - provisions,104.20,0.00,104.20
Children and Young Peoples Services,Head of Childrens Social Care,085331,New Lea Childrens Home,Supplies and Services,342033,Computers and Communications,08-Nov-2021,000007803538790,WWW.STUDIO.CO.UK,5964,Computer hardware,51.18,0.00,51.18
Children and Young Peoples Services,Head of Childrens Social Care,085352,New Childrens Home (previously Tow Law),Supplies and Services,348037,Subsistence E348,08-Nov-2021,000007803538832,TGI FRIDAYS UK,5812,Subsistence,44.40,0.00,44.40
Children and Young Peoples Services,Head of Childrens Social Care,085351,Framwellgate Moor CU,Supplies and Services,324117,Provisions E324,08-Nov-2021,000007803538918,SAINSBURY`S S/MKT,5411,Catering costs - provisions,100.44,0.00,100.44
Children and Young Peoples Services,Head of Childrens Social Care,085351,Framwellgate Moor CU,Supplies and Services,304403,Equipment and Materials,08-Nov-2021,000007803538920,AMZNMKTPLACE AMAZON.CO,5999,Other consumables,12.95,2.16,10.79
Regeneration Economy and Growth,Corporate Property and Land,030691,Catering - Durham Dales Centre,Supplies and Services,324117,Provisions E324,08-Nov-2021,000007803538942,BATLEYS PERTH,5300,Catering costs - provisions,55.44,9.24,46.20
Regeneration Economy and Growth,Corporate Property and Land,030691,Catering - Durham Dales Centre,Supplies and Services,324117,Provisions E324,08-Nov-2021,000007803538942 - 1,BATLEYS PERTH,5300,Catering costs - provisions,139.10,,139.10
Children and Young Peoples Services,Head of Childrens Social Care,085334,West Rainton Satelite Home,Supplies and Services,348037,Subsistence E348,08-Nov-2021,000007803538980,GREGGS,5812,Subsistence,7.85,0.00,7.85
Children and Young Peoples Services,Head of Early Help Inclusion & Vulnerable Children.,085957,Secure Management,Premises,108099,Service Repairs and Maintenance,08-Nov-2021,000007803539020,SCREWFIX DIRECT,5211,General repairs 108099,17.97,3.00,14.97
Children and Young Peoples Services,Head of Early Help Inclusion & Vulnerable Children.,085957,Secure Management,Premises,108099,Service Repairs and Maintenance,08-Nov-2021,000007803539022,AMZNMKTPLACE AMAZON.CO,5999,General repairs 108099,21.54,3.60,17.94
Regeneration Economy and Growth,Corporate Property and Land,036000,SPM-Mgt-Asset Management 036000,Employees,040149,Recruitment Instruction and Training,08-Nov-2021,000007803539026,PROCONFERENCES.COM,8220,Training-all costs,261.60,0.00,261.60
Children and Young Peoples Services,Head of Education and Skills,071802,Louisa Cent Nursery,Supplies and Services,324117,Provisions E324,08-Nov-2021,000007803539056,ALDI 11 774,5411,Catering costs - provisions,12.80,0.00,12.80
Children and Young Peoples Services,Head of Childrens Social Care,085334,West Rainton Satelite Home,Supplies and Services,328041,Clothing uniforms and laundry E328,08-Nov-2021,000007803539150,PRIMARK 670 GATESHEAD,5651,Clothing uniforms and laundry,37.00,0.00,37.00
Children and Young Peoples Services,Head of Childrens Social Care,085334,West Rainton Satelite Home,Supplies and Services,304999,Equipment and Materials,08-Nov-2021,000007803539162,Namco Uk Ltd,7929,Misc equipment tools and materials,1.90,0.00,1.90
Children and Young Peoples Services,Head of Early Help Inclusion & Vulnerable Children.,088101,Bullion Lane & Brandon Family Centre,Supplies and Services,348037,Subsistence E348,08-Nov-2021,000007803539256,Domino s Pizza,5812,Subsistence,22.49,0.00,22.49
Regeneration Economy and Growth,Business Durham CL0850,030694,Plexus 2,Supplies and Services,324117,Provisions E324,08-Nov-2021,000007803539260,SAINSBURYS S/MKTS,5411,Catering costs - provisions,13.50,0.00,13.50
Children and Young Peoples Services,Head of Early Help Inclusion & Vulnerable Children.,085957,Secure Management,Supplies and Services,304403,Equipment and Materials,09-Nov-2021,000007800008390,AMZNMktplace,5999,Other consumables,7.99,1.33,6.66
Children and Young Peoples Services,Head of Early Help Inclusion & Vulnerable Children.,085957,Secure Management,Supplies and Services,384302,Miscellaneous Expenses,09-Nov-2021,000007800009030,Microsoft Ultimate 1 M,5816,Activity expenses,10.99,1.83,9.16
Adult and Health Services,Head of Adults,055309,Peterlee Pathways,Supplies and Services,304403,Equipment and Materials,09-Nov-2021,000007800009428,AMZNMktplace,5999,Other consumables,15.99,2.67,13.32
Regeneration Economy and Growth,Business Durham CL0850,030689,Inward Investment and Aftercare,Supplies and Services,304999,Equipment and Materials,09-Nov-2021,000007803538260,MAILCHIMP MONTHLY,5968,Misc equipment tools and materials,78.51,0.00,78.51
Regeneration Economy and Growth,Business Durham CL0850,030689,Inward Investment and Aftercare,Supplies and Services,342222,Computers and Communications,09-Nov-2021,000007803538264,FASTHOSTS INTERNET,4816,Comp hardware purch-network servers,31.16,0.00,31.16
Children and Young Peoples Services,Head of Education and Skills,071801,Selby Cottage Childcare Centre,Supplies and Services,304403,Equipment and Materials,09-Nov-2021,000007803538276,AMZNMktplace,5999,Other consumables,6.72,1.14,5.58
Children and Young Peoples Services,Head of Education and Skills,071801,Selby Cottage Childcare Centre,Supplies and Services,304403,Equipment and Materials,09-Nov-2021,000007803538278,AMZNMktplace,5999,Other consumables,164.98,27.50,137.48
Children and Young Peoples Services,Head of Education and Skills,071801,Selby Cottage Childcare Centre,Supplies and Services,304403,Equipment and Materials,09-Nov-2021,000007803538282,AMZNMktplace,5999,Other consumables,23.99,4.00,19.99
Children and Young Peoples Services,Head of Education and Skills,071801,Selby Cottage Childcare Centre,Supplies and Services,304403,Equipment and Materials,09-Nov-2021,000007803538284,AMZNMktplace,5999,Other consumables,9.99,1.67,8.32
Children and Young Peoples Services,Head of Education and Skills,071801,Selby Cottage Childcare Centre,Supplies and Services,324117,Provisions E324,09-Nov-2021,000007803538286,TESCO STORES 2278,5411,Catering costs - provisions,7.31,0.00,7.31
Children and Young Peoples Services,Head of Education and Skills,071801,Selby Cottage Childcare Centre,Supplies and Services,304403,Equipment and Materials,09-Nov-2021,000007803538288,AMZNMktplace,5999,Other consumables,16.99,2.83,14.16
Children and Young Peoples Services,Head of Education and Skills,071801,Selby Cottage Childcare Centre,Supplies and Services,304403,Equipment and Materials,09-Nov-2021,000007803538292,AMZNMktplace,5999,Other consumables,24.99,4.17,20.82
Regeneration Economy and Growth,Transport and Contracted Services,032250,Traffic Signals and UTMC 032250,Supplies and Services,304403,Equipment and Materials,09-Nov-2021,000007803538316,AMZNMktplace,5999,Other consumables,40.14,0.00,40.14
Children and Young Peoples Services,Head of Education and Skills,078100,Curric and Professional Development 078100,Supplies and Services,304403,Equipment and Materials,09-Nov-2021,000007803538370,ADOBE PRODUCTS,5734,Other consumables,25.28,0.00,25.28
Children and Young Peoples Services,Head of Early Help Inclusion & Vulnerable Children.,088105,W/Close and Willington Family Centre,Supplies and Services,304259,Equipment and Materials,09-Nov-2021,000007803538464,AMZNMktplace,5999,Equipment-purchase and rental,68.94,11.49,57.45
Children and Young Peoples Services,Head of Early Help Inclusion & Vulnerable Children.,088105,W/Close and Willington Family Centre,Supplies and Services,304259,Equipment and Materials,09-Nov-2021,000007803538464 - 1,AMZNMktplace,5999,Equipment-purchase and rental,0.03,,0.03
Children and Young Peoples Services,Head of Early Help Inclusion & Vulnerable Children.,088105,W/Close and Willington Family Centre,Supplies and Services,304259,Equipment and Materials,09-Nov-2021,000007803538466,ASDA GEORGE COM LEEDS,5411,Equipment-purchase and rental,166.95,0.00,166.95
Children and Young Peoples Services,Head of Early Help Inclusion & Vulnerable Children.,071441,Bishop Auckland One Point Hub,Supplies and Services,304259,Equipment and Materials,09-Nov-2021,000007803538468,AMZNMktplace,5999,Equipment-purchase and rental,59.58,9.93,49.65
Children and Young Peoples Services,Head of Early Help Inclusion & Vulnerable Children.,071441,Bishop Auckland One Point Hub,Supplies and Services,304259,Equipment and Materials,09-Nov-2021,000007803538468 - 1,AMZNMktplace,5999,Equipment-purchase and rental,0.06,,0.06
Regeneration Economy and Growth,Development and Housing,030777,FLEX,Supplies and Services,342033,Computers and Communications,09-Nov-2021,000007803538472,crbdirect.org.uk,7372,Computer hardware,8.00,1.33,6.67
Children and Young Peoples Services,Head of Early Help Inclusion & Vulnerable Children.,085952,Secure Education,Supplies and Services,304259,Equipment and Materials,09-Nov-2021,000007803538532,SP CANNONS UK,5941,Equipment-purchase and rental,529.98,0.00,529.98
Children and Young Peoples Services,Head of Early Help Inclusion & Vulnerable Children.,085952,Secure Education,Supplies and Services,384999,Miscellaneous Expenses,09-Nov-2021,000007803538534,SP FOCUSGAMESLTD,5945,Other expenses,140.23,0.00,140.23
Children and Young Peoples Services,Head of Early Help Inclusion & Vulnerable Children.,085957,Secure Management,Supplies and Services,384999,Miscellaneous Expenses,09-Nov-2021,000007803538538,Amazon.co.uk 8B17U7VX5,5969,Other expenses,22.70,3.80,18.90
Children and Young Peoples Services,Head of Early Help Inclusion & Vulnerable Children.,085952,Secure Education,Supplies and Services,304403,Equipment and Materials,09-Nov-2021,000007803538540,AMZNMktplace,5999,Other consumables,13.50,2.25,11.25
Children and Young Peoples Services,Head of Childrens Social Care,085362,LAC & Permanence Team 2,Supplies and Services,338045,Services,09-Nov-2021,000007803538548,GEN REGISTER OFFICE,9399,Legal expenses 338045,14.00,0.00,14.00
Resources BK0010,Digital and Customer Services,065481,Technical Services 065481,Supplies and Services,372009,Subscriptions E372,09-Nov-2021,000007803538578,NOMINET UK,7392,Subscriptions 372009,32.76,5.46,27.30
Children and Young Peoples Services,Head of Education and Skills,071732,Dean Bank Childcare,Supplies and Services,304259,Equipment and Materials,09-Nov-2021,000007803538602,Amazon Music KW4W53VM5,5735,Equipment-purchase and rental,14.99,0.00,14.99
Regeneration Economy and Growth,Culture Sport and Tourism,054966,Gala Theatre - Gala Productions,Supplies and Services,338047,Services,09-Nov-2021,000007803538608,AMZNMktplace,5999,Direct production costs,169.99,0.00,169.99
Regeneration Economy and Growth,Culture Sport and Tourism,054813,Gala Theatre - Technical,Supplies and Services,342053,Computers and Communications,09-Nov-2021,000007803538610,FIGURE 53,5045,Computer software,5.58,0.00,5.58
Regeneration Economy and Growth,Culture Sport and Tourism,054813,Gala Theatre - Technical,Supplies and Services,304999,Equipment and Materials,09-Nov-2021,000007803538616,Amazon.co.uk 889GS8445,5969,Misc equipment tools and materials,115.96,0.00,115.96
Regeneration Economy and Growth,Culture Sport and Tourism,054966,Gala Theatre - Gala Productions,Supplies and Services,338047,Services,09-Nov-2021,000007803538618,WWW.FLINTS.CO.UK,5691,Direct production costs,130.80,0.00,130.80
Children and Young Peoples Services,Head of Childrens Social Care,085334,West Rainton Satelite Home,Supplies and Services,304999,Equipment and Materials,09-Nov-2021,000007803538640,Amazon Prime 5H72W5085,5968,Misc equipment tools and materials,7.99,0.00,7.99
Neighbourhoods and Climate Change,Environmental Services,026591,C&G - Hardwick Park,Supplies and Services,304337,Equipment and Materials,09-Nov-2021,000007803538642,WWW.KEYCRAFTUK.COM,5945,Consumables/items for resale,489.56,0.00,489.56
Neighbourhoods and Climate Change,Environmental Services,026591,C&G - Hardwick Park,Supplies and Services,304337,Equipment and Materials,09-Nov-2021,000007803538646,ANGEL WHOLESALE,5970,Consumables/items for resale,83.91,0.00,83.91
Children and Young Peoples Services,Head of Early Help Inclusion & Vulnerable Children.,085962,Aycliffe Secure - Durham,Supplies and Services,304403,Equipment and Materials,09-Nov-2021,000007803538650,AMZNMktplace,5999,Other consumables,40.99,6.83,34.16
Children and Young Peoples Services,Head of Early Help Inclusion & Vulnerable Children.,085962,Aycliffe Secure - Durham,Supplies and Services,304403,Equipment and Materials,09-Nov-2021,000007803538654,AMZNMktplace,5999,Other consumables,55.92,9.34,46.58
Regeneration Economy and Growth,Development and Housing,031500,Housing Solutions - Core,Supplies and Services,348037,Subsistence E348,09-Nov-2021,000007803538664,CROXDALE INN,5812,Subsistence,60.00,0.00,60.00
Neighbourhoods and Climate Change,Environmental Services,010301,C&G - North Grounds Maintenance,Supplies and Services,304221,Equipment and Materials,09-Nov-2021,000007803538680,ARCO LTD,5085,Direct materials,175.04,0.00,175.04
Neighbourhoods and Climate Change,Environmental Services,010301,C&G - North Grounds Maintenance,Supplies and Services,304221,Equipment and Materials,09-Nov-2021,000007803538682,AZTEC CHEMICALS LTD,5169,Direct materials,323.64,53.94,269.70
Children and Young Peoples Services,Head of Early Help Inclusion & Vulnerable Children.,085956,Lumley,Transfer Payments,515002,Social Services Clients,09-Nov-2021,000007803538692,SHEIN.COM,5691,Pocket money,10.49,0.00,10.49
Children and Young Peoples Services,Head of Early Help Inclusion & Vulnerable Children.,085957,Secure Management,Supplies and Services,304245,Equipment and Materials,09-Nov-2021,000007803538694,FAST KEY SERVICES LIMI,7399,Materials,16.96,0.00,16.96
Children and Young Peoples Services,Head of Early Help Inclusion & Vulnerable Children.,085956,Lumley,Transfer Payments,515002,Social Services Clients,09-Nov-2021,000007803538696,PRETTYLITTLETHING.COM,5691,Pocket money,13.20,0.00,13.20
Regeneration Economy and Growth,Corporate Property and Land,021234,Catering - Locomotion,Supplies and Services,384999,Miscellaneous Expenses,09-Nov-2021,000007803538762,ON A ROLL SANDWICH COM,5199,Other expenses,258.62,0.00,258.62
Children and Young Peoples Services,Head of Childrens Social Care,085621,Families First Aycliffe,Supplies and Services,344033,Telephones,09-Nov-2021,000007803538770,HEART OF ENGLAND NHS,8099,Telephones general-all costs,76.00,0.00,76.00
Children and Young Peoples Services,Head of Childrens Social Care,085621,Families First Aycliffe,Supplies and Services,344033,Telephones,09-Nov-2021,000007803538772,HEART OF ENGLAND NHS,8099,Telephones general-all costs,77.00,0.00,77.00
Children and Young Peoples Services,Head of Childrens Social Care,085331,New Lea Childrens Home,Supplies and Services,304999,Equipment and Materials,09-Nov-2021,000007803538796,HOME BARGAINS,5251,Misc equipment tools and materials,14.72,0.00,14.72
Dedicated Schools Grant BG0015,DSG Schools Block,418518,Belmont Community School 004185 - School ICT costs,Supplies and Services,304335,Equipment and Materials,09-Nov-2021,000007803538842,Amazon.co.uk I612R51T5,5969,ICT supplies etc,18.24,3.10,15.14
Children and Young Peoples Services,Head of Childrens Social Care,085331,New Lea Childrens Home,Supplies and Services,324117,Provisions E324,09-Nov-2021,000007803538848,TESCO STORES 6329,5411,Catering costs - provisions,10.00,0.00,10.00
Children and Young Peoples Services,Head of Childrens Social Care,085342,16 Hickstead Rise (previously 9 Cedar Ave),Supplies and Services,372009,Subscriptions E372,09-Nov-2021,000007803538874,NETFLIX.COM,4899,Subscriptions 372009,13.99,0.00,13.99
Neighbourhoods and Climate Change,Environmental Services,010367,C&G - South Grounds Maintenance,Supplies and Services,304221,Equipment and Materials,09-Nov-2021,000007803538908,WWW.TUDORENVIRONMENTAL,5261,Direct materials,48.02,0.00,48.02
Children and Young Peoples Services,Head of Childrens Social Care,085351,Framwellgate Moor CU,Supplies and Services,304403,Equipment and Materials,09-Nov-2021,000007803538924,AMZNMKTPLACE AMAZON.CO,5999,Other consumables,8.99,1.50,7.49
Children and Young Peoples Services,Head of Childrens Social Care,085351,Framwellgate Moor CU,Supplies and Services,304403,Equipment and Materials,09-Nov-2021,000007803538926,AMZNMKTPLACE AMAZON.CO,5999,Other consumables,14.98,2.50,12.48
Children and Young Peoples Services,Head of Childrens Social Care,085351,Framwellgate Moor CU,Supplies and Services,328041,Clothing uniforms and laundry E328,09-Nov-2021,000007803538930,SP ODDBALLS,5699,Clothing uniforms and laundry,224.25,0.00,224.25
Neighbourhoods and Climate Change,Environmental Services,031200,North Pennines Core,Transport,235057,Public Transport,09-Nov-2021,000007803538964,LNE RAILWAY DHM SST,4112,Staff travelling,21.80,0.00,21.80
Neighbourhoods and Climate Change,Environmental Services,031200,North Pennines Core,Transport,235057,Public Transport,09-Nov-2021,000007803538966,LNE RAILWAY YRK SST,4112,Staff travelling,15.80,0.00,15.80
Neighbourhoods and Climate Change,Environmental Services,031200,North Pennines Core,Transport,235057,Public Transport,09-Nov-2021,000007803538968,LNER CAR PARK DHM,4112,Staff travelling,5.00,0.00,5.00
Regeneration Economy and Growth,Culture Sport and Tourism,054399,Local Delivery-Libraries,Supplies and Services,312009,Newspapers books and periodicals E312,09-Nov-2021,000007803538970,Amazon.co.uk UO3S931T5,5969,Newspapers books and periodicals,53.94,0.00,53.94
Children and Young Peoples Services,Head of Childrens Social Care,085334,West Rainton Satelite Home,Supplies and Services,324117,Provisions E324,09-Nov-2021,000007803538976,TESCO STORES 2371,5411,Catering costs - provisions,156.37,0.00,156.37
Resources BK0010,Digital and Customer Services,065335,School Services - Implementations,Supplies and Services,304639,Equipment and Materials,09-Nov-2021,000007803538996,TOOLSTATION UK,5251,Technicians-supplies,17.98,0.00,17.98
Children and Young Peoples Services,Head of Early Help Inclusion & Vulnerable Children.,085957,Secure Management,Premises,108251,Service Repairs and Maintenance,09-Nov-2021,000007803539024,FAST KEY SERVICES LIMI,7399,Alarm and security maintenance,19.28,3.21,16.07
Resources BK0010,Procurement Sales & Business Services,065503,Business Support - Spectrum,Transport,235057,Public Transport,09-Nov-2021,000007803539028,WWW.GONORTHEAST.CO.UK,4111,Staff travelling,20.00,0.00,20.00
Resources BK0010,Procurement Sales & Business Services,065503,Business Support - Spectrum,Supplies and Services,304403,Equipment and Materials,09-Nov-2021,000007803539030,AMZNMKTPLACE AMAZON.CO,5999,Other consumables,19.92,3.32,16.60
Resources BK0010,Procurement Sales & Business Services,065503,Business Support - Spectrum,Supplies and Services,304403,Equipment and Materials,09-Nov-2021,000007803539030 - 1,AMZNMKTPLACE AMAZON.CO,5999,Other consumables,0.04,,0.04
Neighbourhoods and Climate Change,Environmental Services,010301,C&G - North Grounds Maintenance,Supplies and Services,304403,Equipment and Materials,09-Nov-2021,000007803539034,TIMPSON LTD,5999,Other consumables,32.45,0.00,32.45
Children and Young Peoples Services,Head of Early Help Inclusion & Vulnerable Children.,085801,CDYJS - Support,Supplies and Services,328041,Clothing uniforms and laundry E328,09-Nov-2021,000007803539040,PRINTERPIX UK LIMITED,5699,Clothing uniforms and laundry,64.47,0.00,64.47
Children and Young Peoples Services,Head of Early Help Inclusion & Vulnerable Children.,085801,CDYJS - Support,Supplies and Services,328041,Clothing uniforms and laundry E328,09-Nov-2021,000007803539042,PRINTERPIX UK LIMITED,5699,Clothing uniforms and laundry,17.16,0.00,17.16
Children and Young Peoples Services,Head of Early Help Inclusion & Vulnerable Children.,085801,CDYJS - Support,Supplies and Services,328041,Clothing uniforms and laundry E328,09-Nov-2021,000007803539044,PRINTERPIX UK LIMITED,5699,Clothing uniforms and laundry,17.16,0.00,17.16
Children and Young Peoples Services,Head of Childrens Social Care,085332,Middlestone Moor CU,Transport,235057,Public Transport,09-Nov-2021,000007803539088,ARRIVA UK BUS,4131,Staff travelling,14.80,0.00,14.80
Children and Young Peoples Services,Head of Childrens Social Care,085332,Middlestone Moor CU,Supplies and Services,304221,Equipment and Materials,09-Nov-2021,000007803539090,CUT MY PLASTIC,5085,Direct materials,14.99,0.00,14.99
Children and Young Peoples Services,Head of Childrens Social Care,085332,Middlestone Moor CU,Supplies and Services,304403,Equipment and Materials,09-Nov-2021,000007803539092,MAXWELLS D I Y,5231,Other consumables,58.00,0.00,58.00
Children and Young Peoples Services,Head of Childrens Social Care,085332,Middlestone Moor CU,Supplies and Services,304999,Equipment and Materials,09-Nov-2021,000007803539094,PLANET LEISURE,7933,Misc equipment tools and materials,24.00,0.00,24.00
Children and Young Peoples Services,Head of Early Help Inclusion & Vulnerable Children.,088107,Wheatley Hill & N. Aycliffe Family Centre,Supplies and Services,324117,Provisions E324,09-Nov-2021,000007803539096,ASDA GROCERIES ONLINE,5411,Catering costs - provisions,9.50,0.00,9.50
Children and Young Peoples Services,Head of Early Help Inclusion & Vulnerable Children.,088107,Wheatley Hill & N. Aycliffe Family Centre,Supplies and Services,324117,Provisions E324,09-Nov-2021,000007803539100,ASDA GROCERIES ONLINE,5411,Catering costs - provisions,63.62,0.00,63.62
Regeneration Economy and Growth,Culture Sport and Tourism,054233,Bishop Auckland Town Hall Library,Supplies and Services,324117,Provisions E324,09-Nov-2021,000007803539104,WILKO RETAIL LIMITED,5399,Catering costs - provisions,15.00,0.00,15.00
Regeneration Economy and Growth,Culture Sport and Tourism,054233,Bishop Auckland Town Hall Library,Supplies and Services,324117,Provisions E324,09-Nov-2021,000007803539106,HERON FOODS,5411,Catering costs - provisions,5.97,0.00,5.97
Neighbourhoods and Climate Change,Environmental Services,010341,Nei.Prot - N. Wardens,Supplies and Services,304259,Equipment and Materials,09-Nov-2021,000007803539140,Amazon.co.uk RJ9R67FI5,5969,Equipment-purchase and rental,24.90,4.15,20.75
Neighbourhoods and Climate Change,Environmental Services,010341,Nei.Prot - N. Wardens,Supplies and Services,304259,Equipment and Materials,09-Nov-2021,000007803539140 - 1,Amazon.co.uk RJ9R67FI5,5969,Equipment-purchase and rental,0.05,,0.05
Children and Young Peoples Services,Head of Childrens Social Care,085334,West Rainton Satelite Home,Supplies and Services,328041,Clothing uniforms and laundry E328,09-Nov-2021,000007803539154,Freedom Sportsline Ltd,5661,Clothing uniforms and laundry,76.49,0.00,76.49
Regeneration Economy and Growth,Development and Housing,031634,LOCAL LETTINGS AGENCY,Supplies and Services,304403,Equipment and Materials,09-Nov-2021,000007803539182,SumUp the family co,5999,Other consumables,1.74,0.29,1.45
Regeneration Economy and Growth,Development and Housing,031634,LOCAL LETTINGS AGENCY,Supplies and Services,304403,Equipment and Materials,09-Nov-2021,000007803539182 - 1,SumUp the family co,5999,Other consumables,4.26,,4.26
Children and Young Peoples Services,Head of Early Help Inclusion & Vulnerable Children.,088113,Seaham & Laurel Avenue Family Centre,Supplies and Services,324117,Provisions E324,09-Nov-2021,000007803539228,TESCO STORES 2371,5411,Catering costs - provisions,44.38,0.00,44.38
Regeneration Economy and Growth,Business Durham CL0850,030694,Plexus 2,Supplies and Services,304403,Equipment and Materials,09-Nov-2021,000007803539262,AMZNMktplace,5999,Other consumables,13.18,0.00,13.18
Neighbourhoods and Climate Change,Environmental Services,010301,C&G - North Grounds Maintenance,Supplies and Services,304221,Equipment and Materials,09-Nov-2021,000007807668120,SCREWFIX DIRECT,5211,Direct materials,85.85,0.00,85.85
Regeneration Economy and Growth,Corporate Property and Land,021242,Catering - County Hall,Supplies and Services,324117,Provisions E324,09-Nov-2021,000007807668344,BATLEYS PERTH,5300,Catering costs - provisions,123.12,20.52,102.60
Regeneration Economy and Growth,Corporate Property and Land,021242,Catering - County Hall,Supplies and Services,324117,Provisions E324,09-Nov-2021,000007807668344 - 1,BATLEYS PERTH,5300,Catering costs - provisions,46.57,,46.57
Regeneration Economy and Growth,Corporate Property and Land,021242,Catering - County Hall,Supplies and Services,324117,Provisions E324,09-Nov-2021,000007807668350,BATLEYS PERTH,5300,Catering costs - provisions,3.35,0.00,3.35
Regeneration Economy and Growth,Corporate Property and Land,021242,Catering - County Hall,Supplies and Services,324117,Provisions E324,09-Nov-2021,000007807668352,BATLEYS PERTH,5300,Catering costs - provisions,9.21,0.00,9.21
Regeneration Economy and Growth,Corporate Property and Land,021242,Catering - County Hall,Supplies and Services,324117,Provisions E324,09-Nov-2021,000007807668356,BATLEYS PERTH,5300,Catering costs - provisions,50.98,8.50,42.48
Children and Young Peoples Services,Head of Childrens Social Care,085361,LAC & Permanence Team 1,Supplies and Services,338045,Services,09-Nov-2021,000007807668446,WWW.DURHAM.GOV.UK,9399,Legal expenses 338045,11.00,0.00,11.00
Neighbourhoods and Climate Change,Environmental Services,011060,C&G - Hardwick Park Catering,Supplies and Services,324117,Provisions E324,09-Nov-2021,000007807668644,BATLEYS PERTH,5300,Catering costs - provisions,75.00,12.50,62.50
Neighbourhoods and Climate Change,Environmental Services,011060,C&G - Hardwick Park Catering,Supplies and Services,324117,Provisions E324,09-Nov-2021,000007807668644 - 1,BATLEYS PERTH,5300,Catering costs - provisions,146.62,,146.62
Children and Young Peoples Services,Head of Childrens Social Care,085334,West Rainton Satelite Home,Supplies and Services,328041,Clothing uniforms and laundry E328,09-Nov-2021,000007807668662,THEWORKS,5310,Clothing uniforms and laundry,10.20,0.00,10.20
Resources BK0010,People & Talent Management,010984,Training and Development,Supplies and Services,304259,Equipment and Materials,09-Nov-2021,000007807668676,DVSA,9399,Equipment-purchase and rental,111.00,0.00,111.00
Children and Young Peoples Services,Head of Childrens Social Care,085331,New Lea Childrens Home,Supplies and Services,342033,Computers and Communications,09-Nov-2021,000007807668712,WWW.STUDIO.CO.UK,5964,Computer hardware,-4.79,0.00,-4.79
Children and Young Peoples Services,Head of Early Help Inclusion & Vulnerable Children.,088108,Spennymoor & Shildon Intensive Family Support Team,Supplies and Services,364301,Grants to Voluntary Organisations,09-Nov-2021,000007807668802,SAINSBURYS S/MKTS,5411,Hardship,10.00,0.00,10.00
Children and Young Peoples Services,Head of Childrens Social Care,085341,High Etherley Satelite Home,Supplies and Services,324117,Provisions E324,09-Nov-2021,000007807668820,WM MORRISONS STORE,5411,Catering costs - provisions,16.40,0.00,16.40
Neighbourhoods and Climate Change,Environmental Services,031200,North Pennines Core,Supplies and Services,348037,Subsistence E348,09-Nov-2021,000007807668938,ZAAP RESTAURANTS,5812,Subsistence,12.65,0.00,12.65
Resources BK0010,Procurement Sales & Business Services,065503,Business Support - Spectrum,Supplies and Services,304403,Equipment and Materials,09-Nov-2021,000007807669006,AMZNMKTPLACE AMAZON.CO,5999,Other consumables,6.98,1.16,5.82
Resources BK0010,Procurement Sales & Business Services,065503,Business Support - Spectrum,Supplies and Services,328041,Clothing uniforms and laundry E328,09-Nov-2021,000007807669024,ARGOS LTD,5310,Clothing uniforms and laundry,-53.94,0.00,-53.94
Regeneration Economy and Growth,Transport and Contracted Services,031704,Care Connect - CCTV Countywide,Supplies and Services,384956,Miscellaneous Expenses,09-Nov-2021,000007807669036,SECURITY INDUSTRY,7393,Licences,190.00,0.00,190.00
Children and Young Peoples Services,Head of Education and Skills,071802,Louisa Cent Nursery,Supplies and Services,324117,Provisions E324,09-Nov-2021,000007807669090,WM MORRISONS STORE,5411,Catering costs - provisions,2.50,0.00,2.50
Children and Young Peoples Services,Head of Early Help Inclusion & Vulnerable Children.,088101,Bullion Lane & Brandon Family Centre,Supplies and Services,328041,Clothing uniforms and laundry E328,09-Nov-2021,000007807669316,WWW.THEWORKS.CO.UK,5310,Clothing uniforms and laundry,80.00,0.00,80.00
Children and Young Peoples Services,Head of Early Help Inclusion & Vulnerable Children.,071492,One Point - Central,Supplies and Services,324117,Provisions E324,09-Nov-2021,000007807669332,SAINSBURYS,5411,Catering costs - provisions,10.00,0.00,10.00
Children and Young Peoples Services,Head of Childrens Social Care,085362,LAC & Permanence Team 2,Supplies and Services,338045,Services,09-Nov-2021,000009869667675,GEN REGISTER OFFICE,9399,Legal expenses 338045,-7.50,0.00,-7.50
Regeneration Economy and Growth,Business Durham CL0850,030689,Inward Investment and Aftercare,Supplies and Services,304999,Equipment and Materials,10-Nov-2021,000007803538266,MAILCHIMP MONTHLY,5968,Misc equipment tools and materials,2.16,0.00,2.16
Regeneration Economy and Growth,Culture Sport and Tourism,054813,Gala Theatre - Technical,Supplies and Services,304999,Equipment and Materials,10-Nov-2021,000007803538622,SPROUTVIDEO LLC,7399,Misc equipment tools and materials,214.06,0.00,214.06
Regeneration Economy and Growth,Culture Sport and Tourism,054813,Gala Theatre - Technical,Supplies and Services,342053,Computers and Communications,10-Nov-2021,000007803538626,FIGURE 53,5045,Computer software,0.15,0.00,0.15
Regeneration Economy and Growth,Culture Sport and Tourism,054813,Gala Theatre - Technical,Supplies and Services,304999,Equipment and Materials,10-Nov-2021,000007803538628,SPROUTVIDEO LLC,7399,Misc equipment tools and materials,5.89,0.00,5.89
Children and Young Peoples Services,Head of Early Help Inclusion & Vulnerable Children.,085962,Aycliffe Secure - Durham,Supplies and Services,304403,Equipment and Materials,10-Nov-2021,000007803538656,AMZNMktplace,5999,Other consumables,29.99,5.00,24.99
Children and Young Peoples Services,Head of Early Help Inclusion & Vulnerable Children.,085962,Aycliffe Secure - Durham,Supplies and Services,304403,Equipment and Materials,10-Nov-2021,000007803538660,AMZNMktplace,5999,Other consumables,24.99,4.17,20.82
Regeneration Economy and Growth,Business Durham CL0850,030689,Inward Investment and Aftercare,Third Party Payments,430100,Rendered by Private Contractors,10-Nov-2021,000007807668088,BLS monday.com,7399,Payments to sub-contractors,148.80,0.00,148.80
Children and Young Peoples Services,Head of Education and Skills,071801,Selby Cottage Childcare Centre,Supplies and Services,304403,Equipment and Materials,10-Nov-2021,000007807668102,AMZNMKTPLACE AMAZON.CO,5999,Other consumables,3.49,0.00,3.49
Children and Young Peoples Services,Head of Education and Skills,071801,Selby Cottage Childcare Centre,Supplies and Services,304403,Equipment and Materials,10-Nov-2021,000007807668106,AMZNMKTPLACE AMAZON.CO,5999,Other consumables,53.88,8.98,44.90
Children and Young Peoples Services,Head of Education and Skills,071801,Selby Cottage Childcare Centre,Supplies and Services,304403,Equipment and Materials,10-Nov-2021,000007807668106 - 1,AMZNMKTPLACE AMAZON.CO,5999,Other consumables,0.05,,0.05
Children and Young Peoples Services,Head of Education and Skills,071801,Selby Cottage Childcare Centre,Supplies and Services,304403,Equipment and Materials,10-Nov-2021,000007807668108,AMZNMKTPLACE AMAZON.CO,5999,Other consumables,23.28,3.88,19.40
Children and Young Peoples Services,Head of Education and Skills,071801,Selby Cottage Childcare Centre,Supplies and Services,304403,Equipment and Materials,10-Nov-2021,000007807668108 - 1,AMZNMKTPLACE AMAZON.CO,5999,Other consumables,36.15,,36.15
Children and Young Peoples Services,Head of Education and Skills,071801,Selby Cottage Childcare Centre,Supplies and Services,304403,Equipment and Materials,10-Nov-2021,000007807668112,AMZNMKTPLACE AMAZON.CO,5999,Other consumables,4.24,0.71,3.53
Regeneration Economy and Growth,Transport and Contracted Services,032250,Traffic Signals and UTMC 032250,Supplies and Services,304403,Equipment and Materials,10-Nov-2021,000007807668122,WWW.TINYBOX.COM,5947,Other consumables,87.36,0.00,87.36
Dedicated Schools Grant BG0015,DSG Schools Block,110013,The Woodlands 1100 - Primary,Supplies and Services,304403,Equipment and Materials,10-Nov-2021,000007807668136,AMZNMktplace,5999,Other consumables,169.88,28.32,141.56
Children and Young Peoples Services,Head of Childrens Social Care,085341,High Etherley Satelite Home,Supplies and Services,304403,Equipment and Materials,10-Nov-2021,000007807668154,CEX (TRINITY SQUARE),5065,Other consumables,9.00,0.00,9.00
Children and Young Peoples Services,Head of Childrens Social Care,085341,High Etherley Satelite Home,Supplies and Services,324117,Provisions E324,10-Nov-2021,000007807668160,TESCO STORES 6329,5411,Catering costs - provisions,16.82,0.00,16.82
Children and Young Peoples Services,Head of Childrens Social Care,085341,High Etherley Satelite Home,Supplies and Services,324117,Provisions E324,10-Nov-2021,000007807668164,TESCO STORES 6329,5411,Catering costs - provisions,3.59,0.00,3.59
Children and Young Peoples Services,Head of Education and Skills,078429,PT Work Related Learning,Supplies and Services,304259,Equipment and Materials,10-Nov-2021,000007807668168,WWW.COOMBER.CO.UK,5732,Equipment-purchase and rental,47.40,0.00,47.40
Regeneration Economy and Growth,Culture Sport and Tourism,054813,Gala Theatre - Technical,Supplies and Services,304259,Equipment and Materials,10-Nov-2021,000007807668188,FIGURE 53,5045,Equipment-purchase and rental,553.87,0.00,553.87
Regeneration Economy and Growth,Culture Sport and Tourism,054991,COMF Bids - CS&T Events Programme,Supplies and Services,338047,Services,10-Nov-2021,000007807668190,AMZNMKTPLACE AMAZON.CO,5999,Direct production costs,95.28,15.88,79.40
Regeneration Economy and Growth,Culture Sport and Tourism,054991,COMF Bids - CS&T Events Programme,Supplies and Services,338047,Services,10-Nov-2021,000007807668190 - 1,AMZNMKTPLACE AMAZON.CO,5999,Direct production costs,0.08,,0.08
Regeneration Economy and Growth,Culture Sport and Tourism,054991,COMF Bids - CS&T Events Programme,Supplies and Services,338047,Services,10-Nov-2021,000007807668194,Amazon.co.uk A801K98B5,5969,Direct production costs,124.80,20.80,104.00
Regeneration Economy and Growth,Culture Sport and Tourism,054991,COMF Bids - CS&T Events Programme,Supplies and Services,338047,Services,10-Nov-2021,000007807668194 - 1,Amazon.co.uk A801K98B5,5969,Direct production costs,0.05,,0.05
Regeneration Economy and Growth,Culture Sport and Tourism,054991,COMF Bids - CS&T Events Programme,Supplies and Services,338047,Services,10-Nov-2021,000007807668196,Amazon.co.uk ED4JU6HC5,5969,Direct production costs,24.97,4.16,20.81
Children and Young Peoples Services,Head of Childrens Social Care,085342,16 Hickstead Rise (previously 9 Cedar Ave),Supplies and Services,324117,Provisions E324,10-Nov-2021,000007807668208,TESCO STORES 2916,5411,Catering costs - provisions,13.80,0.00,13.80
Children and Young Peoples Services,Head of Childrens Social Care,085342,16 Hickstead Rise (previously 9 Cedar Ave),Supplies and Services,324117,Provisions E324,10-Nov-2021,000007807668210,STARBUCKS THINFORD,5499,Catering costs - provisions,14.05,0.00,14.05
Children and Young Peoples Services,Head of Education and Skills,078100,Curric and Professional Development 078100,Supplies and Services,384999,Miscellaneous Expenses,10-Nov-2021,000007807668262,Amazon.co.uk JX6XJ5TC5,5969,Other expenses,14.99,0.00,14.99
Children and Young Peoples Services,Head of Childrens Social Care,085357,LAC Bespoke Placements,Transport,235057,Public Transport,10-Nov-2021,000007807668274,HARROWGATE HILL LODGE,7011,Staff travelling,"1,330.00",0.00,1330.00
Children and Young Peoples Services,Head of Early Help Inclusion & Vulnerable Children.,088104,BA/BC/Crook Intensive Family Support Team,Supplies and Services,364301,Grants to Voluntary Organisations,10-Nov-2021,000007807668324,ASDA GROCERIES ONLINE,5411,Hardship,294.20,0.00,294.20
Children and Young Peoples Services,Head of Early Help Inclusion & Vulnerable Children.,071569,Woodhouse Close Childrens Centre,Supplies and Services,324117,Provisions E324,10-Nov-2021,000007807668326,ASDA GROCERIES ONLINE,5411,Catering costs - provisions,43.46,0.00,43.46
Children and Young Peoples Services,Head of Early Help Inclusion & Vulnerable Children.,071670,Willington Childrens Centre,Supplies and Services,324117,Provisions E324,10-Nov-2021,000007807668328,ASDA GROCERIES ONLINE,5411,Catering costs - provisions,42.56,0.00,42.56
Children and Young Peoples Services,Head of Early Help Inclusion & Vulnerable Children.,071569,Woodhouse Close Childrens Centre,Supplies and Services,324117,Provisions E324,10-Nov-2021,000007807668332,ASDA GROCERIES ONLINE,5411,Catering costs - provisions,-0.90,0.00,-0.90
Children and Young Peoples Services,Head of Early Help Inclusion & Vulnerable Children.,088104,BA/BC/Crook Intensive Family Support Team,Supplies and Services,364301,Grants to Voluntary Organisations,10-Nov-2021,000007807668336,ASDA GROCERIES ONLINE,5411,Hardship,-0.51,0.00,-0.51
Regeneration Economy and Growth,Corporate Property and Land,021242,Catering - County Hall,Supplies and Services,324117,Provisions E324,10-Nov-2021,000007807668360,JR HOLLAND FOODSERVICE,5499,Catering costs - provisions,52.44,0.00,52.44
Regeneration Economy and Growth,Corporate Property and Land,021242,Catering - County Hall,Supplies and Services,324117,Provisions E324,10-Nov-2021,000007807668362,JR HOLLAND FOODSERVICE,5499,Catering costs - provisions,38.38,0.00,38.38
Regeneration Economy and Growth,Culture Sport and Tourism,054812,Gala Theatre - Catering etc,Supplies and Services,324117,Provisions E324,10-Nov-2021,000007807668400,JR HOLLAND FOODSERVICE,5499,Catering costs - provisions,69.55,0.00,69.55
Children and Young Peoples Services,Head of Early Help Inclusion & Vulnerable Children.,085952,Secure Education,Supplies and Services,304403,Equipment and Materials,10-Nov-2021,000007807668406,AMZNMktplace,5999,Other consumables,15.48,2.58,12.90
Children and Young Peoples Services,Head of Early Help Inclusion & Vulnerable Children.,085952,Secure Education,Supplies and Services,304403,Equipment and Materials,10-Nov-2021,000007807668406 - 1,AMZNMktplace,5999,Other consumables,0.03,,0.03
Children and Young Peoples Services,Head of Early Help Inclusion & Vulnerable Children.,085952,Secure Education,Supplies and Services,304403,Equipment and Materials,10-Nov-2021,000007807668410,AMZNMktplace,5999,Other consumables,18.66,3.12,15.54
Children and Young Peoples Services,Head of Early Help Inclusion & Vulnerable Children.,085952,Secure Education,Supplies and Services,384999,Miscellaneous Expenses,10-Nov-2021,000007807668412,Amazon.co.uk TG1SO3ED5,5969,Other expenses,6.98,1.16,5.82
Children and Young Peoples Services,Head of Early Help Inclusion & Vulnerable Children.,085957,Secure Management,Supplies and Services,304403,Equipment and Materials,10-Nov-2021,000007807668416,AMZNMktplace,5999,Other consumables,149.90,25.00,124.90
Children and Young Peoples Services,Head of Early Help Inclusion & Vulnerable Children.,085952,Secure Education,Supplies and Services,308011,Furniture,10-Nov-2021,000007807668418,WWW.FURNITUREATWORK.CO,5712,Furniture repair and replacement,763.20,127.20,636.00
Regeneration Economy and Growth,Development and Housing,031576,B& B - Temp Accom,Transport,235073,Public Transport,10-Nov-2021,000007807668458,STAGECOACH SERVICE,4131,Travel-clients/students/children,18.30,0.00,18.30
Regeneration Economy and Growth,Culture Sport and Tourism,054966,Gala Theatre - Gala Productions,Supplies and Services,338047,Services,10-Nov-2021,000007807668554,Amazon.co.uk 7F76L8YB5,5969,Direct production costs,9.67,0.00,9.67
Regeneration Economy and Growth,Culture Sport and Tourism,054966,Gala Theatre - Gala Productions,Supplies and Services,338047,Services,10-Nov-2021,000007807668560,AMZNMktplace,5999,Direct production costs,2.69,0.00,2.69
Regeneration Economy and Growth,Development and Housing,030771,Durham Advance Flexible Fund,Transport,235057,Public Transport,10-Nov-2021,000007807668602,WWW.GONORTHEAST.CO.UK,4111,Staff travelling,4.50,0.00,4.50
Regeneration Economy and Growth,Development and Housing,030771,Durham Advance Flexible Fund,Transport,235057,Public Transport,10-Nov-2021,000007807668606,WWW.GONORTHEAST.CO.UK,4111,Staff travelling,4.50,0.00,4.50
Regeneration Economy and Growth,Development and Housing,030771,Durham Advance Flexible Fund,Transport,235057,Public Transport,10-Nov-2021,000007807668608,WWW.GONORTHEAST.CO.UK,4111,Staff travelling,20.00,0.00,20.00
Children and Young Peoples Services,Head of Early Help Inclusion & Vulnerable Children.,085957,Secure Management,Supplies and Services,340001,Postages E340,10-Nov-2021,000007807668614,TSB Returns Ltd,4215,Postages,1.75,0.00,1.75
Children and Young Peoples Services,Head of Early Help Inclusion & Vulnerable Children.,085956,Lumley,Transfer Payments,515002,Social Services Clients,10-Nov-2021,000007807668618,AMZNMktplace,5999,Pocket money,5.00,0.83,4.17
Children and Young Peoples Services,Head of Early Help Inclusion & Vulnerable Children.,085956,Lumley,Transfer Payments,515002,Social Services Clients,10-Nov-2021,000007807668622,BEAUTY BAY LTD,5977,Pocket money,10.95,0.00,10.95
Children and Young Peoples Services,Head of Early Help Inclusion & Vulnerable Children.,085962,Aycliffe Secure - Durham,Supplies and Services,324117,Provisions E324,10-Nov-2021,000007807668624,TESCO STORES 6329,5411,Catering costs - provisions,118.43,0.00,118.43
Children and Young Peoples Services,Head of Early Help Inclusion & Vulnerable Children.,085954,Walworth,Transfer Payments,515002,Social Services Clients,10-Nov-2021,000007807668628,SPORTSDIRECT.COM,5691,Pocket money,64.98,0.00,64.98
Neighbourhoods and Climate Change,Environmental Services,011060,C&G - Hardwick Park Catering,Supplies and Services,324117,Provisions E324,10-Nov-2021,000007807668650,JR HOLLAND FOODSERVICE,5499,Catering costs - provisions,58.99,0.00,58.99
Neighbourhoods and Climate Change,Environmental Services,031238,North Pennines - Tees Swale,Supplies and Services,352001,Conference Expenses,10-Nov-2021,000007807668682,Hotel at Booking.com,7011,Conferencesseminars fees etc,109.48,0.00,109.48
Children and Young Peoples Services,Head of Childrens Social Care,085621,Families First Aycliffe,Supplies and Services,304403,Equipment and Materials,10-Nov-2021,000007807668690,AMZNMktplace,5999,Other consumables,43.20,7.20,36.00
Children and Young Peoples Services,Head of Childrens Social Care,085621,Families First Aycliffe,Supplies and Services,304403,Equipment and Materials,10-Nov-2021,000007807668690 - 1,AMZNMktplace,5999,Other consumables,0.40,,0.40
Children and Young Peoples Services,Head of Childrens Social Care,085621,Families First Aycliffe,Supplies and Services,304403,Equipment and Materials,10-Nov-2021,000007807668692,AMZNMktplace,5999,Other consumables,33.98,5.66,28.32
Children and Young Peoples Services,Head of Childrens Social Care,085621,Families First Aycliffe,Supplies and Services,304403,Equipment and Materials,10-Nov-2021,000007807668694,AMZNMktplace,5999,Other consumables,45.96,7.66,38.30
Regeneration Economy and Growth,Corporate Property and Land,010525,Catering - Green Lane,Supplies and Services,324117,Provisions E324,10-Nov-2021,000007807668746,JR HOLLAND FOODSERVICE,5499,Catering costs - provisions,21.16,0.00,21.16
Children and Young Peoples Services,Head of Childrens Social Care,085551,Short Break Services-Park Hse Sher,Supplies and Services,324117,Provisions E324,10-Nov-2021,000007807668776,TESCO STORES 6329,5411,Catering costs - provisions,32.00,0.00,32.00
Dedicated Schools Grant BG0015,DSG Schools Block,418507,Belmont Community School 004185 - Performing Arts,Supplies and Services,304259,Equipment and Materials,10-Nov-2021,000007807668784,AMZNMktplace,5999,Equipment-purchase and rental,16.98,2.84,14.14
Dedicated Schools Grant BG0015,DSG Schools Block,418507,Belmont Community School 004185 - Performing Arts,Supplies and Services,304259,Equipment and Materials,10-Nov-2021,000007807668786,AMZNMktplace,5999,Equipment-purchase and rental,15.00,2.50,12.50
Dedicated Schools Grant BG0015,DSG Schools Block,418507,Belmont Community School 004185 - Performing Arts,Supplies and Services,304403,Equipment and Materials,10-Nov-2021,000007807668788,AMZNMktplace,5999,Other consumables,12.75,2.13,10.62
Dedicated Schools Grant BG0015,DSG Schools Block,418507,Belmont Community School 004185 - Performing Arts,Supplies and Services,304259,Equipment and Materials,10-Nov-2021,000007807668794,AMZNMktplace,5999,Equipment-purchase and rental,7.99,1.33,6.66
Children and Young Peoples Services,Head of Education and Skills,071802,Louisa Cent Nursery,Supplies and Services,324117,Provisions E324,10-Nov-2021,000007807668852,ASDA SUPERSTORE,5411,Catering costs - provisions,5.00,0.00,5.00
Children and Young Peoples Services,Head of Education and Skills,071802,Louisa Cent Nursery,Supplies and Services,324117,Provisions E324,10-Nov-2021,000007807668856,ASDA SUPERSTORE,5411,Catering costs - provisions,12.35,0.00,12.35
Children and Young Peoples Services,Head of Education and Skills,078554,Adult Skills-Main,Supplies and Services,312009,Newspapers books and periodicals E312,10-Nov-2021,000007807668878,KEDA PUBLICATIONS-KP,5192,Newspapers books and periodicals,68.00,0.00,68.00
Children and Young Peoples Services,Head of Education and Skills,071732,Dean Bank Childcare,Supplies and Services,324117,Provisions E324,10-Nov-2021,000007807668892,B&M 147 - FERRYHILL,5399,Catering costs - provisions,5.28,0.00,5.28
Children and Young Peoples Services,Head of Childrens Social Care,085351,Framwellgate Moor CU,Supplies and Services,304403,Equipment and Materials,10-Nov-2021,000007807668896,AMZNMktplace,5999,Other consumables,44.64,7.44,37.20
Children and Young Peoples Services,Head of Childrens Social Care,085351,Framwellgate Moor CU,Supplies and Services,304403,Equipment and Materials,10-Nov-2021,000007807668896 - 1,AMZNMktplace,5999,Other consumables,0.06,,0.06
Regeneration Economy and Growth,Corporate Property and Land,030691,Catering - Durham Dales Centre,Supplies and Services,324117,Provisions E324,10-Nov-2021,000007807668906,JR HOLLAND FOODSERVICE,5499,Catering costs - provisions,33.25,0.00,33.25
Adult and Health Services,Head of Adults,055643,Hawthorn House LD Respite Unit,Supplies and Services,324117,Provisions E324,10-Nov-2021,000007807668926,JR HOLLAND FOODSERVICE,5499,Catering costs - provisions,4.75,0.00,4.75
Adult and Health Services,Head of Adults,055643,Hawthorn House LD Respite Unit,Supplies and Services,324117,Provisions E324,10-Nov-2021,000007807668930,JR HOLLAND FOODSERVICE,5499,Catering costs - provisions,11.07,0.00,11.07
Adult and Health Services,Head of Adults,055643,Hawthorn House LD Respite Unit,Supplies and Services,324117,Provisions E324,10-Nov-2021,000007807668934,JR HOLLAND FOODSERVICE,5499,Catering costs - provisions,12.27,0.00,12.27
Children and Young Peoples Services,Head of Early Help Inclusion & Vulnerable Children.,088103,Stanley & Moorside Family Centre,Supplies and Services,384302,Miscellaneous Expenses,10-Nov-2021,000007807668960,Amazon.co.uk WJ6MT3SA5,5969,Activity expenses,104.40,17.40,87.00
Children and Young Peoples Services,Head of Early Help Inclusion & Vulnerable Children.,088103,Stanley & Moorside Family Centre,Supplies and Services,384302,Miscellaneous Expenses,10-Nov-2021,000007807668960 - 1,Amazon.co.uk WJ6MT3SA5,5969,Activity expenses,1.05,,1.05
Dedicated Schools Grant BG0015,DSG High Needs Block,079040,HNB Management and support,Supplies and Services,384999,Miscellaneous Expenses,10-Nov-2021,000007807668994,Amazon.co.uk YI8AQ63J5,5969,Other expenses,17.32,0.00,17.32
Resources BK0010,Procurement Sales & Business Services,065503,Business Support - Spectrum,Supplies and Services,304403,Equipment and Materials,10-Nov-2021,000007807669010,AMZNMKTPLACE AMAZON.CO,5999,Other consumables,78.72,13.12,65.60
Resources BK0010,Procurement Sales & Business Services,065503,Business Support - Spectrum,Supplies and Services,304403,Equipment and Materials,10-Nov-2021,000007807669010 - 1,AMZNMKTPLACE AMAZON.CO,5999,Other consumables,0.32,,0.32
Resources BK0010,Procurement Sales & Business Services,065503,Business Support - Spectrum,Supplies and Services,304403,Equipment and Materials,10-Nov-2021,000007807669012,AMZNMKTPLACE AMAZON.CO,5999,Other consumables,16.80,2.80,14.00
Resources BK0010,Procurement Sales & Business Services,065503,Business Support - Spectrum,Supplies and Services,304403,Equipment and Materials,10-Nov-2021,000007807669012 - 1,AMZNMKTPLACE AMAZON.CO,5999,Other consumables,0.20,,0.20
Resources BK0010,Procurement Sales & Business Services,065503,Business Support - Spectrum,Supplies and Services,324117,Provisions E324,10-Nov-2021,000007807669016,SP POUNDTOY.COM,5399,Catering costs - provisions,21.49,0.00,21.49
Resources BK0010,Procurement Sales & Business Services,065503,Business Support - Spectrum,Supplies and Services,304403,Equipment and Materials,10-Nov-2021,000007807669018,AMZNMktplace,5999,Other consumables,13.92,2.32,11.60
Resources BK0010,Procurement Sales & Business Services,065503,Business Support - Spectrum,Supplies and Services,304403,Equipment and Materials,10-Nov-2021,000007807669018 - 1,AMZNMktplace,5999,Other consumables,0.04,,0.04
Resources BK0010,Procurement Sales & Business Services,065503,Business Support - Spectrum,Supplies and Services,304403,Equipment and Materials,10-Nov-2021,000007807669020,AMZNMKTPLACE AMAZON.CO,5999,Other consumables,39.84,6.64,33.20
Resources BK0010,Procurement Sales & Business Services,065503,Business Support - Spectrum,Supplies and Services,304403,Equipment and Materials,10-Nov-2021,000007807669020 - 1,AMZNMKTPLACE AMAZON.CO,5999,Other consumables,0.08,,0.08
Resources BK0010,Procurement Sales & Business Services,065503,Business Support - Spectrum,Supplies and Services,304259,Equipment and Materials,10-Nov-2021,000007807669022,CURRYS ONLINE,5732,Equipment-purchase and rental,139.00,0.00,139.00
Regeneration Economy and Growth,Culture Sport and Tourism,054235,Bishop Auckland Town Hall Cafe,Supplies and Services,324117,Provisions E324,10-Nov-2021,000007807669032,JR HOLLAND FOODSERVICE,5499,Catering costs - provisions,76.50,0.00,76.50
Regeneration Economy and Growth,Transport and Contracted Services,031701,Care Connect All Localities,Transport,215995,Running Costs of Vehicles,10-Nov-2021,000007807669040,ESSO NEW SEAHAM SSTN,5541,Vehicle running expenses,36.71,0.00,36.71
Regeneration Economy and Growth,Corporate Property and Land,021324,Catering - Meadowfield,Supplies and Services,324117,Provisions E324,10-Nov-2021,000007807669046,JR HOLLAND FOODSERVICE,5499,Catering costs - provisions,64.49,0.00,64.49
